Workbook

Sheet cover
A58: Berte prosím na vědomí, že nástroj je prototyp experimentální povahy, který se poskytuje „TAK, JAK JE“. V maximálním možném rozsahu povoleném příslušnými zákony neposkytuje společnost Rina Consulting S.p.A. ani její subdodavatel žádné záruky jakéhokoli druhu ohledně tohoto nástroje, ať už výslovné či implikované, včetně, bez omezení, záruk ohledně neporušení předpisů, vlastnického práva, možnosti patentování, obchodovatelnosti či vhodnosti ke konkrétnímu účelu a záruk vyplývajících ze zvyklostí, obchodního využití, příslibů, příkladů či popisu; veškeré takové záruky společnost Rina Consulting S.p.A. a její subdodavatel výslovně vylučují a uživatel nástroje se jich vzdává. Uživatel nástroje přijímá veškerou odpovědnost související s používáním nástroje a související s veškerými případnými následky vyplývajícími z takového použití. Společnost Rina Consulting S.p.A. a její subdodavatel odmítají veškerou odpovědnost vůči uživateli nástroje a/nebo vůči třetí straně za přímé a/nebo nepřímé škody včetně, bez omezení, ztráty a/nebo poškození dat, ušlý zisk, ztráty úspor, náhodných, zvláštních nebo následných škod utrpěných uživatelem nástroje a/nebo třetími stranami v souvislosti s tímto používáním.

Sheet Tool interface (hidden)
A8: 1.1 | B8: Does your organization have previous experience with BIM (it has started any pilot project or completed one adopting BIM)? | C8: =+Inputs!$U$11 -> 0
A9: 1.2/1.3 | B9: In how many project per year your organization uses or might use BIM? | C9: =IF(C8="yes",Inputs!$U$13,IF(C8="No",Inputs!$U$15,1)) -> 1
A11: 2.1 | B11: Please select whether the project under analysis refers to a new asset construction or to a work on an existing building/infrastructure (renovation, refurbishment). | C11: =+Inputs!$K$19 -> 0
A12: 2.2 | B12: In case the project refers to a work on an existing building, is there a BIM model already available? | C12: =+Inputs!$K$23 -> 0
A15: 3.1 | B15: Cost of planning (including design) | C15: =+Inputs!$P$27 -> 0
A16: 3.2 | B16: Cost of construction | C16: =+Inputs!$P$29 -> 0
B17: Projected investment amount | C17: =+C15+C16 -> 0
A18: 4.1 | B18: Please select the planned number of years of the construction phase of the project | C18: =Inputs!K33 -> 0
A19: 4.2 | B19: Please select the number of years from the start of the project planning activities to the completion of the design activities and the subsequent start of the construction phase, from the drop down menu. | C19: =Inputs!K37 -> 0
A21: 5.1/5.2 | B21: What is the estimated number of employees of your organization that are/might be be involved in BIM related activities? (Please indicate the number of individuals that work/ will work with BIM software) | C21: =+IF($C$8="Yes",Inputs!$K$41,IF($C$8="No",Inputs!$K$45,1)) -> 1
A22: 6 | B22: Please indicate the actual (or estimated) Gross Floor Area of the project asset (in m^2). The Gross Floor Area (GOA) is the sum of the floor areas of all the spaces within the building, with no exclusions; it essentially corresponds to the total area within the perimeter of the outside walls. | C22: =+Inputs!K49 -> 0
A23: 7 | B23: Please type the value (or estimate it) of the annual maintenance costs for the project asset. | C23: =Inputs!K53 -> 0
A26: 8 | B26: Please indicate whether the BIM adoption requires hiring external consultants for BIM coordination activities, or if such task is executed by internal employees of the organization. | C26: =+Inputs!$K$57 -> 0
A27: 9 | B27: Please indicate the average annual salary of an employee of your organization (€). | C27: =Inputs!K61 -> 0
A28: 10 | B28: Is a Common Data Environment (CDE) going to be employed in the project? | C28: =+Inputs!$K$65 -> 0
A29: 11 | B29: Inflation rate | C29: =+Inputs!$K$69 -> 0.058
A34: BIM MODEL CREATION INFORMATION | B34: Please indicate the level of details/development required in the tender, among the options below (type in the cell the corresponding LOD, either 200, 350 or 500) | C34: =Inputs!K79 -> 0
B35: 1 - BASIC DESIGN - LOD 200
B36: 2 - DETAIL DESIGN - LOD 350
B37: 3 - CONSTRUCTION - AS BUILT - LOD 500
B39: Please indicate, referring to the tender, the category of asset involved, among the options below (type in the cell the corresponding category number, either 1,2 or 3) | C39: =Inputs!K86 -> 0
B40: 1- INFRASTRUCTURE
B41: 2- BUILDING
B42: 3- MIXED
B44: Please indicate the average national hourly cost for BIM specialist (€): | C44: =Inputs!K89 -> 0
B46: COMPLETE THE FOLLOWING TWO SECTIONS, "ARCHITECTURE AND STRUCTURE" and "MEP DESIGN", ONLY IN THE CASE THE ASSET INDICATED IS "BUILDING" or "MIXED"
A48: ARCHITECTURE AND STRUCTURE | B48: Please indicate, in the section below, whether the asset is composed of areas of the proposed surfaces and select their related average level of complexity basing on the scale below
B49: Area complexity levels:
B50: LOW - The areas of this category, on average, have a low level of complexity, being fairly standard, with a regular shape, without specific requirements that would lead to increase the modelling activity time. - 1
B51: MEDIUM - 2
B52: HIGH - The areas of this category, on average, entail a high level of complexity, with specific, tailored and complex requirements that would lead to a substantial increase of the modelling activity time. - 3
B54: Please, select Yes/No to indicate the presence of areas of the proposed surfaces and indicate the average degree of complexity for each category.
B55: Area surface category | C55: Indicate: "Yes" / "No" | D55: Indicate the level of complexity for the specific area category:
B56: Surface < 25 m^2 | C56: =Inputs!M105 -> 0 | D56: =Inputs!P105 -> 0
B57: 25 m^2 < Surface < 150 m^2 | C57: =Inputs!M106 -> 0 | D57: =Inputs!P106 -> 0
B58: 150 m^2 < Surface < 300 m^2 | C58: =+Inputs!M107 -> 0 | D58: =Inputs!P107 -> 0
B59: Surface > 300 m^2 | C59: =Inputs!M108 -> 0 | D59: =Inputs!P108 -> 0
B61: Please, indicate the number of areas of each surface category. | C61: Indicate the number of areas:
B62: Surface < 25 m^2 | C62: =Inputs!M112 -> 0
B63: 25 m^2 < Surface < 150 m^2 | C63: =Inputs!M113 -> 0
B64: 150 m^2 < Surface < 300 m^2 | C64: =Inputs!M114 -> 0
B65: Surface > 300 m^2 | C65: =Inputs!M115 -> 0
B67: Please indicate the average level of standardization (1,2,3) of areas belonging to the same surface category, basing on the scale below | C67: =Inputs!J123 -> 0
B68: Levels of standardization:
B69: LOW - Areas belonging to the same surface category tend to be, on average, extremely different, as designed for completely different purposes. Each area must be modelled individually and independently and it has no common features with areas belonging to the same surface category (increasing the modelling time). - 1
B70: MEDIUM - 2
B71: HIGH - Areas belonging to the same surface category tend to be, on average, very similar. Once the first area has been modelled, the others will be copied starting from the first one and will require vert few adjustments (reducing the modelling time) - 3
A74: MEP DESIGN | B74: Please indicate, in the section below, the presence of the proposed systems and the level of complexity of each system basing on the scale provided below
B75: System complexity levels:
B76: LOW - The system has, on average, a low level of complexity, being fairly standard, without specific requirements that would lead to increase the modelling activity time. - 1
B77: MEDIUM - 2
B78: HIGH - The system is very complex, with very specific, tailored and complex requirements that would lead to a substantial increase the modelling activity time. - 3
B80: Please, select Yes/No to indicate the presence of the following systems and select the extension (surface of the area involved) for each system, from the surface categories proposed.
B82: Heating, Ventilation and Air Conditioning, Refrigeration
B83: Indicate: "Yes" / "No" | C83: =Inputs!J139 -> 0
B84: Please indicate the level of complexity of the system | C84: =Inputs!J143 -> 0
B86: Please indicate the surface of the HVAC-R System typing the corresponding number between 1 and 5 | C86: =Inputs!J152 -> 0
B87: 1 - Surface < 400 m^2
B88: 2 - 400 m^2 < Surface < 1500 m^2
B89: 3 - 1500 m^2 < Surface < 3000 m^2
B90: 4 - 3000 m^2 < Surface < 5000 m^2
B91: 5 - Surface > 5000 m^2
B93: Piping system
B94: Indicate: "Yes" / "No" | C94: =Inputs!J157 -> 0
B95: Please indicate the level of complexity of the system | C95: =Inputs!J161 -> 0
B97: Please indicate the surface of the Piping system typing the corresponding number between 1 and 5 | C97: =Inputs!J170 -> 0
B98: 1 - Surface < 400 m^2
B99: 2 - 400 m^2 < Surface < 1500 m^2
B100: 3 - 1500 m^2 < Surface < 3000 m^2
B101: 4 - 3000 m^2 < Surface < 5000 m^2
B102: 5 - Surface > 5000 m^2
B104: Electrical and Lighting system
B105: Indicate: "Yes" / "No" | C105: =Inputs!J176 -> 0
B106: Please indicate the level of complexity of the system | C106: =Inputs!J180 -> 0
B108: Please indicate the surface of theElectrical and Lighting system typing the corresponding number between 1 and 5 | C108: =Inputs!J189 -> 0
B109: 1 - Surface < 400 m^2
B110: 2 - 400 m^2 < Surface < 1500 m^2
B111: 3 - 1500 m^2 < Surface < 3000 m^2
B112: 4 - 3000 m^2 < Surface < 5000 m^2
B113: 5 - Surface > 5000 m^2
B115: Special systems
B116: Indicate: "Yes" / "No" | C116: =Inputs!J195 -> 0
B117: Please indicate the level of complexity of the system | C117: =Inputs!J199 -> 0
B119: Please indicate the surface of the Firefighting and Safety systems typing the corresponding number between 1 and 5 | C119: =Inputs!J208 -> 0
B120: 1 - Surface < 400 m^2
B121: 2 - 400 m^2 < Surface < 1500 m^2
B122: 3 - 1500 m^2 < Surface < 3000 m^2
B123: 4 - 3000 m^2 < Surface < 5000 m^2
B124: 5 - Surface > 5000 m^2
B127: Please, indicate the infrastructure total surface (m^2) | C127: =+Inputs!$J$218 -> 0
B129: Please, select the level of complexity of the infrastructural asset basing on the scale below. | C129: =+Inputs!$J$222 -> 0
B132: Heating, Ventilation and Air Conditioning, Refrigeration
B134: Indicate: "Yes" / "No" | C134: =+Inputs!$J$241 -> 0
B136: Please select the level of complexity of the HVAC system | C136: =+Inputs!$J$245 -> 0
B138: Please indicate the surface occupied by the HVAC-R system (m^2) | C138: =+Inputs!$J$249 -> 0
B142: Piping system
B144: Indicate: "Yes" / "No" | C144: =+Inputs!$J$255 -> 0
B146: Please select the level of complexity of the piping system | C146: =+Inputs!$J$259 -> 0
B148: Please indicate the surface occupied by the piping system (m^2) | C148: =+Inputs!$J$263 -> 0
B152: Electrical and Lighting system
B154: Indicate: "Yes" / "No" | C154: =+Inputs!$J$269 -> 0
B156: Please select the level of complexity of the eletrical and lighting system | C156: =+Inputs!$J$273 -> 0
B158: Please indicate the surface occupied by the electrical and lighting system (m^2) | C158: =+Inputs!$J$277 -> 0
B162: Special systems
B164: Indicate: "Yes" / "No" | C164: =+Inputs!$J$283 -> 0
B166: Please select the level of complexity of the firefighting and safety systems | C166: =+Inputs!$J$287 -> 0
B168: Please indicate the surface occupied by the firefighting and safety system (m^2) | C168: =+Inputs!$J$291 -> 0

Sheet BIM Costs Database (hidden)
B1: BIM MODEL CREATION COSTS | T1: BIM COORDINATION COST
B2: BIM MODEL COST + initial analysis (4%) (€) | D2: =+D3 -> 0 | E2: Hours | T2: COORDINATION Cost | U2: =+IF('Tool interface'!$C$39=1,'BIM Costs Database'!$U$28,IF('Tool interface'!$C$39=2,'BIM Costs Database'!$U$14,IF('Tool interface'!$C$39=3,'BIM Costs Database'!$U$38,0))) -> 0
B3: BIM MODEL COST (€) | D3: =+'Tool interface'!$C$44*(1+0.3)*IF('Tool interface'!$C$34<=1,'BIM Costs Database'!D5,IF('Tool interface'!$C$34=2,'BIM Costs Database'!J5,IF('Tool interface'!$C$34>=3,'BIM Costs Database'!P5,""))) -> 0 | E3: =(1+0.3)*IF('Tool interface'!$C$34<=1,'BIM Costs Database'!D5,IF('Tool interface'!$C$34=2,'BIM Costs Database'!J5,IF('Tool interface'!$C$34>=3,'BIM Costs Database'!P5,""))) -> 0
D4: Tot h | J4: Tot h | P4: Tot h | T4: Building | U4: Average complex. Level | V4: N. of area ranges involved | W4: Avg. complex. of area ranges involved | X4: Max level of complex
B5: BASIC DESIGN - LOD 200 | D5: =+IF('Tool interface'!$C$39<=1,'BIM Costs Database'!D8,IF('Tool interface'!$C$39=2,'BIM Costs Database'!D34,IF('Tool interface'!$C$39>=3,'BIM Costs Database'!D8+'BIM Costs Database'!D34,""))) -> 0 | H5: DETAIL DESIGN - LOD 350 | J5: =+IF('Tool interface'!$C$39<=1,'BIM Costs Database'!J8,IF('Tool interface'!$C$39=2,'BIM Costs Database'!J34,IF('Tool interface'!$C$39>=3,'BIM Costs Database'!J8+'BIM Costs Database'!J34,""))) -> 0 | N5: CONSTRUCTION - AS BUILT - LOD 500 | P5: =+IF('Tool interface'!$C$39<=1,'BIM Costs Database'!P8,IF('Tool interface'!$C$39=2,'BIM Costs Database'!P34,IF('Tool interface'!$C$39>=3,'BIM Costs Database'!P8+'BIM Costs Database'!P34,""))) -> 0 | T5: Architec. & Struct. | U5: =W5/V5 ->  | V5: =+IF('Tool interface'!$C$56="Yes",1,0)+IF('Tool interface'!$C$57="Yes",1,0)+IF('Tool interface'!$C$58="Yes",1,0)+IF('Tool interface'!$C$59="Yes",1,0) -> 0 | W5: =+IF(+'Tool interface'!$C$56="Yes",'Tool interface'!$D$56,0)+IF('Tool interface'!$C$57="Yes",'Tool interface'!$D$57,0)+IF('Tool interface'!$C$58="Yes",'Tool interface'!$D$58,0)+IF('Tool interface'!$C$59="Yes",'Tool interface'!$D$59,0) -> 0 | X5: =+(IF('Tool interface'!$C$56="Yes",3,0)+IF('Tool interface'!$C$57="Yes",3,0)+IF('Tool interface'!$C$58="Yes",3,0)+IF('Tool interface'!$C$59="Yes",3,0))/'BIM Costs Database'!$V$5 -> 
T6: HVAC system | U6: =IF('Tool interface'!$C$83="Yes",'Tool interface'!$C$84,0) -> 0 | X6: =+IF('Tool interface'!$C$83="Yes",3,0) -> 0
D7: Tot h infrastructure | J7: Tot h infrastructure | P7: Tot h infrastructure | T7: Piping system | U7: =IF('Tool interface'!$C$94="Yes",'Tool interface'!$C$95,0) -> 0 | X7: =+IF('Tool interface'!$C$94="Yes",3,0) -> 0
B8: 1- INFRASTRUCTURE | D8: =+E11+E20+E23+E26+E29 -> 0 | H8: 1- INFRASTRUCTURE | J8: =+K11+K20+K23+K26+K29 -> 0 | N8: 1- INFRASTRUCTURE | P8: =+Q11+Q20+Q23+Q26+Q29 -> 0 | T8: Electrical and Lighting system | U8: =IF('Tool interface'!$C$105="Yes",'Tool interface'!$C$106,0) -> 0 | X8: =+IF('Tool interface'!$C$105="Yes",3,0) -> 0
T9: Firefighting and Safety systems | U9: =IF('Tool interface'!$C$116="Yes",'Tool interface'!$C$117,0) -> 0 | X9: =+IF('Tool interface'!$C$116="Yes",3,0) -> 0
C10: Effort BASIC (h/m^2) | D10: Effort (h/m^2) adjusted for complexity level | E10: Tot hours (excluding systems) | I10: Effort BASIC (h/m^2) | J10: Effort (h/m^2) adjusted for complexity level | K10: Tot hours (excluding systems) | O10: Effort BASIC (h/m^2) | P10: Effort (h/m^2) adjusted for complexity level | Q10: Tot hours (excluding systems) | T10: Sum of complexity levels | U10: =+SUM(U5:U9) ->  | X10: =+SUM(X5:X9) -> 
B11: Infrastructure total surface | C11: 0.0173 | D11: =IF('Tool interface'!$C$129=1,'BIM Costs Database'!$C$11,IF('Tool interface'!$C$129=2,'BIM Costs Database'!$C$11+(20%*'BIM Costs Database'!$C$11),IF('Tool interface'!$C$129=3,'BIM Costs Database'!$C$11+('BIM Costs Database'!$C$11*40%),0))) -> 0 | E11: =+D11*'Tool interface'!$C$127 -> 0 | H11: Infrastructure total surface | I11: 0.029 | J11: =IF('Tool interface'!$C$129=1,'BIM Costs Database'!$I$11,IF('Tool interface'!$C$129=2,'BIM Costs Database'!$I$11+(20%*'BIM Costs Database'!$I$11),IF('Tool interface'!$C$129=3,'BIM Costs Database'!$I$11+('BIM Costs Database'!$I$11*40%),0))) -> 0 | K11: =+J11*'Tool interface'!$C$127 -> 0 | N11: Infrastructure total surface | O11: 0.0405 | P11: =IF('Tool interface'!$C$129=1,'BIM Costs Database'!$O$11,IF('Tool interface'!$C$129=2,'BIM Costs Database'!$O$11+(20%*'BIM Costs Database'!$O$11),IF('Tool interface'!$C$129=3,'BIM Costs Database'!$O$11+('BIM Costs Database'!$O$11*40%),0))) -> 0 | Q11: =+P11*'Tool interface'!$C$127 -> 0
T12: Actual complexity level / Max. complexity level | U12: =+$U$10/$X$10 -> 
T13: Maximum coordination cost (= modelling activity cost) | U13: =+IF('Tool interface'!$C$34=1,'BIM Costs Database'!$D$5,IF('Tool interface'!$C$34=2,$J$5,IF('Tool interface'!$C$34=3,$P$5,0)))*'Tool interface'!$C$44 -> 0
T14: Resulting coordination cost | U14: =+$U$13*$U$12 -> 
B15: Systems | H15: Systems | N15: Systems
T18: Infrastructure | U18: Average complex. Level | V18: Max level of complexity
B19: HVAC system | C19: Effort BASIC (h/m^2) | D19: Effort (h/m^2) adjusted for complexity level | E19: Tot hours | H19: HVAC system | I19: Effort BASIC (h/m^2) | J19: Effort (h/m^2) adjusted for complexity level | K19: Tot hours | N19: HVAC system | O19: Effort BASIC (h/m^2) | P19: Effort (h/m^2) adjusted for complexity level | Q19: Tot hours | T19: Architec. & Struct. | U19: =+'Tool interface'!$C$129 -> 0 | V19: 3
C20: 0.00185 | D20: =IF('Tool interface'!$C$134="Yes",IF('Tool interface'!$C$136=1,'BIM Costs Database'!$C$20,IF('Tool interface'!$C$136=2,'BIM Costs Database'!$C$20+(20%*'BIM Costs Database'!$C$20),IF('Tool interface'!$C$136=3,'BIM Costs Database'!$C$20+('BIM Costs Database'!$C$20*40%),0))),0) -> 0 | E20: =+D20*'Tool interface'!$C$138 -> 0 | I20: 0.0036 | J20: =IF('Tool interface'!$C$134="Yes",IF('Tool interface'!$C$136=1,'BIM Costs Database'!$I$20,IF('Tool interface'!$C$136=2,'BIM Costs Database'!$I$20+(20%*'BIM Costs Database'!$I$20),IF('Tool interface'!$C$136=3,'BIM Costs Database'!$I$20+('BIM Costs Database'!$I$20*40%),0))),0) -> 0 | K20: =+J20*'Tool interface'!$C$138 -> 0 | O20: 0.0045 | P20: =IF('Tool interface'!$C$134="Yes",IF('Tool interface'!$C$136=1,'BIM Costs Database'!$O$20,IF('Tool interface'!$C$136=2,'BIM Costs Database'!$O$20+(20%*'BIM Costs Database'!$O$20),IF('Tool interface'!$C$136=3,'BIM Costs Database'!$O$20+('BIM Costs Database'!$O$20*40%),0))),0) -> 0 | Q20: =+P20*'Tool interface'!$C$138 -> 0 | T20: HVAC system | U20: =+IF('Tool interface'!$C$134="Yes",'Tool interface'!$C$136,0) -> 0 | V20: =+IF('Tool interface'!$C$134="Yes",3,0) -> 0
T21: Piping system | U21: =+IF('Tool interface'!$C$144="Yes",'Tool interface'!$C$146,0) -> 0 | V21: =+IF('Tool interface'!$C$144="Yes",3,0) -> 0
B22: Piping system | C22: Effort BASIC (h/m^2) | D22: Effort (h/m^2) adjusted for complexity level | E22: Tot hours | H22: Piping system | I22: Effort BASIC (h/m^2) | J22: Effort (h/m^2) adjusted for complexity level | K22: Tot hours | N22: Piping system | O22: Effort BASIC (h/m^2) | P22: Effort (h/m^2) adjusted for complexity level | Q22: Tot hours | T22: Electrical and Lighting system | U22: =+IF('Tool interface'!$C$154="Yes",'Tool interface'!$C$156,0) -> 0 | V22: =+IF('Tool interface'!$C$154="Yes",3,0) -> 0
C23: 0.0019 | D23: =IF('Tool interface'!$C$144="Yes",IF('Tool interface'!$C$146=1,'BIM Costs Database'!$C$23,IF('Tool interface'!$C$146=2,'BIM Costs Database'!$C$23+(20%*'BIM Costs Database'!$C$23),IF('Tool interface'!$C$146=3,'BIM Costs Database'!$C$23+('BIM Costs Database'!$C$23*40%),0))),0) -> 0 | E23: =+D23*'Tool interface'!$C$148 -> 0 | I23: 0.0037 | J23: =IF('Tool interface'!$C$144="Yes",IF('Tool interface'!$C$146=1,'BIM Costs Database'!$I$23,IF('Tool interface'!$C$146=2,'BIM Costs Database'!$I$23+(20%*'BIM Costs Database'!$I$23),IF('Tool interface'!$C$146=3,'BIM Costs Database'!$I$23+('BIM Costs Database'!$I$23*40%),0))),0) -> 0 | K23: =+J23*'Tool interface'!$C$148 -> 0 | O23: 0.004725 | P23: =IF('Tool interface'!$C$144="Yes",IF('Tool interface'!$C$146=1,'BIM Costs Database'!$O$23,IF('Tool interface'!$C$146=2,'BIM Costs Database'!$O$23+(20%*'BIM Costs Database'!$O$23),IF('Tool interface'!$C$146=3,'BIM Costs Database'!$O$23+('BIM Costs Database'!$O$23*40%),0))),0) -> 0 | Q23: =+P23*'Tool interface'!$C$148 -> 0 | T23: Firefighting and Safety systems | U23: =+IF('Tool interface'!$C$164="Yes",'Tool interface'!$C$166,0) -> 0 | V23: =+IF('Tool interface'!$C$164="Yes",3,0) -> 0
T24: Sum of complexity levels | U24: =+SUM(U19:U23) -> 0 | V24: =+SUM(V19:V23) -> 3
B25: Electrical and Lighting system | C25: Effort BASIC (h/m^2) | D25: Effort (h/m^2) adjusted for complexity level | E25: Tot hours | H25: Electrical and Lighting system | I25: Effort BASIC (h/m^2) | J25: Effort (h/m^2) adjusted for complexity level | K25: Tot hours | N25: Electrical and Lighting system | O25: Effort BASIC (h/m^2) | P25: Effort (h/m^2) adjusted for complexity level | Q25: Tot hours
C26: 0.0017 | D26: =IF('Tool interface'!$C$154="Yes",IF('Tool interface'!$C$156=1,'BIM Costs Database'!$C$26,IF('Tool interface'!$C$156=2,'BIM Costs Database'!$C$26+(20%*'BIM Costs Database'!$C$26),IF('Tool interface'!$C$156=3,'BIM Costs Database'!$C$26+('BIM Costs Database'!$C$26*40%),0))),0) -> 0 | E26: =+D26*'Tool interface'!$C$158 -> 0 | I26: 0.0036 | J26: =IF('Tool interface'!$C$154="Yes",IF('Tool interface'!$C$156=1,'BIM Costs Database'!$I$26,IF('Tool interface'!$C$156=2,'BIM Costs Database'!$I$26+(20%*'BIM Costs Database'!$I$26),IF('Tool interface'!$C$156=3,'BIM Costs Database'!$I$26+('BIM Costs Database'!$I$26*40%),0))),0) -> 0 | K26: =+J26*'Tool interface'!$C$158 -> 0 | O26: 0.003825 | P26: =IF('Tool interface'!$C$154="Yes",IF('Tool interface'!$C$156=1,'BIM Costs Database'!$O$26,IF('Tool interface'!$C$156=2,'BIM Costs Database'!$O$26+(20%*'BIM Costs Database'!$O$26),IF('Tool interface'!$C$156=3,'BIM Costs Database'!$O$26+('BIM Costs Database'!$O$26*40%),0))),0) -> 0 | Q26: =+P26*'Tool interface'!$C$158 -> 0 | T26: Actual complexity level / Max. complexity level | U26: =+U24/V24 -> 0
T27: Maximum coordination cost (= modelling activity cost) | U27: =+IF('Tool interface'!$C$34=1,'BIM Costs Database'!$D$5,IF('Tool interface'!$C$34=2,$J$5,IF('Tool interface'!$C$34=3,$P$5,0)))*'Tool interface'!$C$44 -> 0
B28: Special systems | C28: Effort BASIC (h/m^2) | D28: Effort (h/m^2) adjusted for complexity level | E28: Tot hours | H28: Special systems | I28: Effort BASIC (h/m^2) | J28: Effort (h/m^2) adjusted for complexity level | K28: Tot hours | N28: Special systems | O28: Effort BASIC (h/m^2) | P28: Effort (h/m^2) adjusted for complexity level | Q28: Tot hours | T28: Resulting coordination cost | U28: =+$U$26*$U$27 -> 0
C29: 0.0019 | D29: =IF('Tool interface'!$C$164="Yes",IF('Tool interface'!$C$166=1,'BIM Costs Database'!$C$29,IF('Tool interface'!$C$166=2,'BIM Costs Database'!$C$29+(20%*'BIM Costs Database'!$C$29),IF('Tool interface'!$C$166=3,'BIM Costs Database'!$C$29+('BIM Costs Database'!$C$29*40%),0))),0) -> 0 | E29: =+D29*'Tool interface'!$C$168 -> 0 | I29: 0.0038 | J29: =IF('Tool interface'!$C$164="Yes",IF('Tool interface'!$C$166=1,'BIM Costs Database'!$I$29,IF('Tool interface'!$C$166=2,'BIM Costs Database'!$I$29+(20%*'BIM Costs Database'!$I$29),IF('Tool interface'!$C$166=3,'BIM Costs Database'!$I$29+('BIM Costs Database'!$I$29*40%),0))),0) -> 0 | K29: =+J29*'Tool interface'!$C$168 -> 0 | O29: 0.0045 | P29: =IF('Tool interface'!$C$164="Yes",IF('Tool interface'!$C$166=1,'BIM Costs Database'!$O$29,IF('Tool interface'!$C$166=2,'BIM Costs Database'!$O$29+(20%*'BIM Costs Database'!$O$29),IF('Tool interface'!$C$166=3,'BIM Costs Database'!$O$29+('BIM Costs Database'!$O$29*40%),0))),0) -> 0 | Q29: =+P29*'Tool interface'!$C$168 -> 0
T32: Mixed
D33: Tot h building | J33: Tot h building | P33: Tot h building | T33: Share of modelling time represented by "Building" | U33: =+IF('Tool interface'!$C$34=1,'BIM Costs Database'!D34/('BIM Costs Database'!$D$8+'BIM Costs Database'!$D$34),IF('Tool interface'!$C$34=2,'BIM Costs Database'!$J$34/('BIM Costs Database'!$J$34+'BIM Costs Database'!$J$8),IF('Tool interface'!$C$34=3,'BIM Costs Database'!$P$34/('BIM Costs Database'!$P$34+'BIM Costs Database'!$P$8),0))) -> 0
B34: 2- BUILDING | D34: =+SUM(E40:E44)+E50+E58+E66+E74 -> 0 | H34: 2- BUILDING | J34: =+SUM(K40:K44)+K50+K58+K66+K74 -> 0 | N34: 2- BUILDING | P34: =+SUM(Q40:Q44)+Q50+Q58+Q66+Q74 -> 0 | T34: Share of modelling time represented by "Infrastructure" | U34: =+IF('Tool interface'!$C$34=1,'BIM Costs Database'!$D$8/('BIM Costs Database'!$D$8+'BIM Costs Database'!$D$34),IF('Tool interface'!$C$34=2,'BIM Costs Database'!$J$8/('BIM Costs Database'!$J$34+'BIM Costs Database'!$J$8),IF('Tool interface'!$C$34=3,'BIM Costs Database'!$P$8/('BIM Costs Database'!$P$34+'BIM Costs Database'!$P$8),0))) -> 0
T35: Share of the complexity ratio represented by "Building" | U35: =+$U$33*$U$12 -> 
B36: Architect. & Struct. | H36: Architect. & Struct. | N36: Architect. & Struct. | T36: Share of the complexity ratio represented by "Infrastructure" | U36: =+$U$26*$U$34 -> 0
T37: Resulting complexity level | U37: =+$U$35+$U$36 -> 
D38: Adj. for complex. lvl. | E38: Adj. for number and std. | T38: Resulting coordination cost | U38: =+$U$37*U27 -> 
B39: Area categories | C39: Hour/Effort BASIC | D39: Hours/single area | E39: Tot. hours/area | H39: Area categories | I39: Hour/Effort BASIC | J39: Hours/single area | K39: Tot. hours/area | N39: Area categories | O39: Hour/Effort BASIC | P39: Hours/single area | Q39: Tot. hours/area
B40: Surface < 25 m^2 | C40: 3 | D40: =+IF('Tool interface'!C56="Yes",IF('Tool interface'!D56<=1,C40,IF('Tool interface'!D56=2,'BIM Costs Database'!C40+('BIM Costs Database'!C40*20%),IF('Tool interface'!D56>=3,'BIM Costs Database'!C40+('BIM Costs Database'!C40*40%)))),0) -> 0 | E40: =+IF('Tool interface'!C62>1,IF('Tool interface'!$C$67<=1,'Tool interface'!C62*'BIM Costs Database'!D40,IF('Tool interface'!$C$67=2,(('Tool interface'!C62-1)*40%)*'BIM Costs Database'!D40+'BIM Costs Database'!D40,IF('Tool interface'!$C$67>=3,(('Tool interface'!C62-1)*20%)*'BIM Costs Database'!D40+'BIM Costs Database'!D40))),'BIM Costs Database'!D40*'Tool interface'!C62) -> 0 | H40: Surface < 25 m^2 | I40: 4 | J40: =+IF('Tool interface'!C56="Yes",IF('Tool interface'!D56<=1,I40,IF('Tool interface'!D56=2,'BIM Costs Database'!I40+('BIM Costs Database'!I40*20%),IF('Tool interface'!D56>=3,'BIM Costs Database'!I40+('BIM Costs Database'!I40*40%)))),0) -> 0 | K40: =+IF('Tool interface'!C62>1,IF('Tool interface'!$C$67<=1,'Tool interface'!C62*'BIM Costs Database'!J40,IF('Tool interface'!$C$67=2,(('Tool interface'!C62-1)*40%)*'BIM Costs Database'!J40+'BIM Costs Database'!J40,IF('Tool interface'!$C$67>=3,(('Tool interface'!C62-1)*20%)*'BIM Costs Database'!J40+'BIM Costs Database'!J40))),'BIM Costs Database'!J40*'Tool interface'!C62) -> 0 | N40: Surface < 25 m^2 | O40: 6 | P40: =+IF('Tool interface'!C56="Yes",IF('Tool interface'!D56<=1,O40,IF('Tool interface'!D56=2,'BIM Costs Database'!O40+('BIM Costs Database'!O40*20%),IF('Tool interface'!D56>=3,'BIM Costs Database'!O40+('BIM Costs Database'!O40*40%)))),0) -> 0 | Q40: =+IF('Tool interface'!C62>1,IF('Tool interface'!$C$67<=1,'Tool interface'!C62*'BIM Costs Database'!P40,IF('Tool interface'!$C$67=2,(('Tool interface'!C62-1)*40%)*'BIM Costs Database'!P40+'BIM Costs Database'!P40,IF('Tool interface'!$C$67>=3,(('Tool interface'!C62-1)*20%)*'BIM Costs Database'!P40+'BIM Costs Database'!P40))),'BIM Costs Database'!P40*'Tool interface'!C62) -> 0
B41: 25 m^2 < Surface < 150 m^2 | C41: 4 | D41: =+IF('Tool interface'!C57="Yes",IF('Tool interface'!D57<=1,C41,IF('Tool interface'!D57=2,'BIM Costs Database'!C41+('BIM Costs Database'!C41*20%),IF('Tool interface'!D57>=3,'BIM Costs Database'!C41+('BIM Costs Database'!C41*40%)))),0) -> 0 | E41: =+IF('Tool interface'!C63>1,IF('Tool interface'!$C$67<=1,'Tool interface'!C63*'BIM Costs Database'!D41,IF('Tool interface'!$C$67=2,(('Tool interface'!C63-1)*40%)*'BIM Costs Database'!D41+'BIM Costs Database'!D41,IF('Tool interface'!$C$67>=3,(('Tool interface'!C63-1)*20%)*'BIM Costs Database'!D41+'BIM Costs Database'!D41))),'BIM Costs Database'!D41*'Tool interface'!C63) -> 0 | H41: 25 m^2 < Surface < 150 m^2 | I41: 5 | J41: =+IF('Tool interface'!C57="Yes",IF('Tool interface'!D57<=1,I41,IF('Tool interface'!D57=2,'BIM Costs Database'!I41+('BIM Costs Database'!I41*20%),IF('Tool interface'!D57>=3,'BIM Costs Database'!I41+('BIM Costs Database'!I41*40%)))),0) -> 0 | K41: =+IF('Tool interface'!C63>1,IF('Tool interface'!$C$67<=1,'Tool interface'!C63*'BIM Costs Database'!J41,IF('Tool interface'!$C$67=2,(('Tool interface'!C63-1)*40%)*'BIM Costs Database'!J41+'BIM Costs Database'!J41,IF('Tool interface'!$C$67>=3,(('Tool interface'!C63-1)*20%)*'BIM Costs Database'!J41+'BIM Costs Database'!J41))),'BIM Costs Database'!J41*'Tool interface'!C63) -> 0 | N41: 25 m^2 < Surface < 150 m^2 | O41: 8 | P41: =+IF('Tool interface'!C57="Yes",IF('Tool interface'!D57<=1,O41,IF('Tool interface'!D57=2,'BIM Costs Database'!O41+('BIM Costs Database'!O41*20%),IF('Tool interface'!D57>=3,'BIM Costs Database'!O41+('BIM Costs Database'!O41*40%)))),0) -> 0 | Q41: =+IF('Tool interface'!C63>1,IF('Tool interface'!$C$67<=1,'Tool interface'!C63*'BIM Costs Database'!P41,IF('Tool interface'!$C$67=2,(('Tool interface'!C63-1)*40%)*'BIM Costs Database'!P41+'BIM Costs Database'!P41,IF('Tool interface'!$C$67>=3,(('Tool interface'!C63-1)*20%)*'BIM Costs Database'!P41+'BIM Costs Database'!P41))),'BIM Costs Database'!P41*'Tool interface'!C63) -> 0
B42: 150 m^2 < Surface < 300 m^2 | C42: 5 | D42: =+IF('Tool interface'!C58="Yes",IF('Tool interface'!D58<=1,C42,IF('Tool interface'!D58=2,'BIM Costs Database'!C42+('BIM Costs Database'!C42*20%),IF('Tool interface'!D58>=3,'BIM Costs Database'!C42+('BIM Costs Database'!C42*40%)))),0) -> 0 | E42: =+IF('Tool interface'!C64>1,IF('Tool interface'!$C$67<=1,'Tool interface'!C64*'BIM Costs Database'!D42,IF('Tool interface'!$C$67=2,(('Tool interface'!C64-1)*40%)*'BIM Costs Database'!D42+'BIM Costs Database'!D42,IF('Tool interface'!$C$67>=3,(('Tool interface'!C64-1)*20%)*'BIM Costs Database'!D42+'BIM Costs Database'!D42))),'BIM Costs Database'!D42*'Tool interface'!C64) -> 0 | H42: 150 m^2 < Surface < 300 m^2 | I42: 7 | J42: =+IF('Tool interface'!C58="Yes",IF('Tool interface'!D58<=1,I42,IF('Tool interface'!D58=2,'BIM Costs Database'!I42+('BIM Costs Database'!I42*20%),IF('Tool interface'!D58>=3,'BIM Costs Database'!I42+('BIM Costs Database'!I42*40%)))),0) -> 0 | K42: =+IF('Tool interface'!C64>1,IF('Tool interface'!$C$67<=1,'Tool interface'!C64*'BIM Costs Database'!J42,IF('Tool interface'!$C$67=2,(('Tool interface'!C64-1)*40%)*'BIM Costs Database'!J42+'BIM Costs Database'!J42,IF('Tool interface'!$C$67>=3,(('Tool interface'!C64-1)*20%)*'BIM Costs Database'!J42+'BIM Costs Database'!J42))),'BIM Costs Database'!J42*'Tool interface'!C64) -> 0 | N42: 150 m^2 < Surface < 300 m^2 | O42: 10 | P42: =+IF('Tool interface'!C58="Yes",IF('Tool interface'!D58<=1,O42,IF('Tool interface'!D58=2,'BIM Costs Database'!O42+('BIM Costs Database'!O42*20%),IF('Tool interface'!D58>=3,'BIM Costs Database'!O42+('BIM Costs Database'!O42*40%)))),0) -> 0 | Q42: =+IF('Tool interface'!C64>1,IF('Tool interface'!$C$67<=1,'Tool interface'!C64*'BIM Costs Database'!P42,IF('Tool interface'!$C$67=2,(('Tool interface'!C64-1)*40%)*'BIM Costs Database'!P42+'BIM Costs Database'!P42,IF('Tool interface'!$C$67>=3,(('Tool interface'!C64-1)*20%)*'BIM Costs Database'!P42+'BIM Costs Database'!P42))),'BIM Costs Database'!P42*'Tool interface'!C64) -> 0
B43: Surface > 300 m^2 | C43: 4.5 | D43: =+IF('Tool interface'!C59="Yes",IF('Tool interface'!D59<=1,C43,IF('Tool interface'!D59=2,'BIM Costs Database'!C43+('BIM Costs Database'!C43*20%),IF('Tool interface'!D59>=3,'BIM Costs Database'!C43+('BIM Costs Database'!C43*40%)))),0) -> 0 | E43: =+IF('Tool interface'!C65>1,IF('Tool interface'!$C$67<=1,'Tool interface'!C65*'BIM Costs Database'!D43,IF('Tool interface'!$C$67=2,(('Tool interface'!C65-1)*40%)*'BIM Costs Database'!D43+'BIM Costs Database'!D43,IF('Tool interface'!$C$67>=3,(('Tool interface'!C65-1)*20%)*'BIM Costs Database'!D43+'BIM Costs Database'!D43))),'BIM Costs Database'!D43*'Tool interface'!C65) -> 0 | H43: Surface > 300 m^2 | I43: 6 | J43: =+IF('Tool interface'!C59="Yes",IF('Tool interface'!D59<=1,I43,IF('Tool interface'!D59=2,'BIM Costs Database'!I43+('BIM Costs Database'!I43*20%),IF('Tool interface'!D59>=3,'BIM Costs Database'!I43+('BIM Costs Database'!I43*40%)))),0) -> 0 | K43: =+IF('Tool interface'!C65>1,IF('Tool interface'!$C$67<=1,'Tool interface'!C65*'BIM Costs Database'!J43,IF('Tool interface'!$C$67=2,(('Tool interface'!C65-1)*40%)*'BIM Costs Database'!J43+'BIM Costs Database'!J43,IF('Tool interface'!$C$67>=3,(('Tool interface'!C65-1)*20%)*'BIM Costs Database'!J43+'BIM Costs Database'!J43))),'BIM Costs Database'!J43*'Tool interface'!C65) -> 0 | N43: Surface > 300 m^2 | O43: 12 | P43: =+IF('Tool interface'!C59="Yes",IF('Tool interface'!D59<=1,O43,IF('Tool interface'!D59=2,'BIM Costs Database'!O43+('BIM Costs Database'!O43*20%),IF('Tool interface'!D59>=3,'BIM Costs Database'!O43+('BIM Costs Database'!O43*40%)))),0) -> 0 | Q43: =+IF('Tool interface'!C65>1,IF('Tool interface'!$C$67<=1,'Tool interface'!C65*'BIM Costs Database'!P43,IF('Tool interface'!$C$67=2,(('Tool interface'!C65-1)*40%)*'BIM Costs Database'!P43+'BIM Costs Database'!P43,IF('Tool interface'!$C$67>=3,(('Tool interface'!C65-1)*20%)*'BIM Costs Database'!P43+'BIM Costs Database'!P43))),'BIM Costs Database'!P43*'Tool interface'!C65) -> 0
B47: MEP Design | H47: MEP Design | N47: MEP Design
B49: HVAC system | C49: Flat rate (h) | D49: Selected surface flat rate (h) | E49: Complexity Adj. rate (h) | H49: HVAC system | I49: Flat rate (h) | J49: Selected surface flat rate (h) | K49: Complexity Adj. rate (h) | N49: HVAC system | O49: Flat rate (h) | P49: Selected surface flat rate (h) | Q49: Complexity Adj. rate (h)
B50: 1 - Surface < 400 m^2 | C50: 16 | D50: =+IF('Tool interface'!$C$83="Yes",IF('Tool interface'!$C$86=1,'BIM Costs Database'!$C$50,IF('Tool interface'!$C$86=2,'BIM Costs Database'!$C$51,IF('Tool interface'!$C$86=3,'BIM Costs Database'!$C$52,IF('Tool interface'!$C$86=4,'BIM Costs Database'!$C$53,IF('Tool interface'!$C$86=5,'BIM Costs Database'!$C$54,0))))),0) -> 0 | E50: =+'BIM Costs Database'!D50+IF('Tool interface'!$C$84<=1,0,IF('Tool interface'!$C$84=2,'BIM Costs Database'!D50*20%,IF('Tool interface'!$C$84>=3,'BIM Costs Database'!D50*40%,"Error"))) -> 0 | H50: 1 - Surface < 400 m^2 | I50: 22 | J50: =+IF('Tool interface'!$C$83="Yes",IF('Tool interface'!$C$86=1,'BIM Costs Database'!$I$50,IF('Tool interface'!$C$86=2,'BIM Costs Database'!$I$51,IF('Tool interface'!$C$86=3,'BIM Costs Database'!$I$52,IF('Tool interface'!$C$86=4,'BIM Costs Database'!$I$53,IF('Tool interface'!$C$86=5,'BIM Costs Database'!$I$54,0))))),0) -> 0 | K50: =+'BIM Costs Database'!J50+IF('Tool interface'!$C$84<=1,0,IF('Tool interface'!$C$84=2,'BIM Costs Database'!J50*20%,IF('Tool interface'!$C$84>=3,'BIM Costs Database'!J50*40%,"Error"))) -> 0 | N50: 1 - Surface < 400 m^2 | O50: 50 | P50: =+IF('Tool interface'!$C$83="Yes",IF('Tool interface'!$C$86=1,'BIM Costs Database'!$O$50,IF('Tool interface'!$C$86=2,'BIM Costs Database'!$O$51,IF('Tool interface'!$C$86=3,'BIM Costs Database'!$O$52,IF('Tool interface'!$C$86=4,'BIM Costs Database'!$O$53,IF('Tool interface'!$C$86=5,'BIM Costs Database'!$O$54,0))))),0) -> 0 | Q50: =+'BIM Costs Database'!P50+IF('Tool interface'!$C$84<=1,0,IF('Tool interface'!$C$84=2,'BIM Costs Database'!P50*20%,IF('Tool interface'!$C$84>=3,'BIM Costs Database'!P50*40%,"Error"))) -> 0
B51: 2 - 400 m^2 < Surface < 1500 m^2 | C51: =+C50*1.8 -> 28.8 | H51: 2 - 400 m^2 < Surface < 1500 m^2 | I51: 38 | N51: 2 - 400 m^2 < Surface < 1500 m^2 | O51: 100
B52: 3 - 1500 m^2 < Surface < 3000 m^2 | C52: =+C51*1.8 -> 51.84 | H52: 3 - 1500 m^2 < Surface < 3000 m^2 | I52: 67 | N52: 3 - 1500 m^2 < Surface < 3000 m^2 | O52: 200
B53: 4 - 3000 m^2 < Surface < 5000 m^2 | C53: =+C52*1.2 -> 62.208 | H53: 4 - 3000 m^2 < Surface < 5000 m^2 | I53: 80 | N53: 4 - 3000 m^2 < Surface < 5000 m^2 | O53: 400
B54: 5 - Surface > 5000 m^2 | C54: =+C53*2 -> 124.416 | H54: 5 - Surface > 5000 m^2 | I54: =+I53*2 -> 160 | N54: 5 - Surface > 5000 m^2 | O54: 800
B57: Piping system | C57: Flat rate (h) | D57: Selected surface flat rate (h) | E57: Complexity Adj. rate (h) | H57: Piping system | I57: Flat rate (h) | J57: Selected surface flat rate (h) | K57: Complexity Adj. rate (h) | N57: Piping system | O57: Flat rate (h) | P57: Selected surface flat rate (h) | Q57: Complexity Adj. rate (h)
B58: 1 - Surface < 400 m^2 | C58: =+C59/1.2 -> 29.16666667 | D58: =+IF('Tool interface'!$C$94="Yes",IF('Tool interface'!$C$97=1,'BIM Costs Database'!$C$58,IF('Tool interface'!$C$97=2,'BIM Costs Database'!$C$59,IF('Tool interface'!$C$97=3,'BIM Costs Database'!$C$60,IF('Tool interface'!$C$97=4,'BIM Costs Database'!$C$61,IF('Tool interface'!$C$97=5,'BIM Costs Database'!$C$62,0))))),0) -> 0 | E58: =+'BIM Costs Database'!D58+IF('Tool interface'!$C$95<=1,0,IF('Tool interface'!$C$95=2,'BIM Costs Database'!D58*20%,IF('Tool interface'!$C$95>=3,'BIM Costs Database'!D58*40%,"Error"))) -> 0 | H58: 1 - Surface < 400 m^2 | I58: =+I59/1.2 -> 46.2962963 | J58: =+IF('Tool interface'!$C$94="Yes",IF('Tool interface'!$C$97=1,'BIM Costs Database'!$I$58,IF('Tool interface'!$C$97=2,'BIM Costs Database'!$I$59,IF('Tool interface'!$C$97=3,'BIM Costs Database'!$I$60,IF('Tool interface'!$C$97=4,'BIM Costs Database'!$I$61,IF('Tool interface'!$C$97=5,'BIM Costs Database'!$I$62,0))))),0) -> 0 | K58: =+'BIM Costs Database'!J58+IF('Tool interface'!$C$95<=1,0,IF('Tool interface'!$C$95=2,'BIM Costs Database'!J58*20%,IF('Tool interface'!$C$95>=3,'BIM Costs Database'!J58*40%,"Error"))) -> 0 | N58: 1 - Surface < 400 m^2 | O58: 85 | P58: =+IF('Tool interface'!$C$94="Yes",IF('Tool interface'!$C$97=1,'BIM Costs Database'!$O$58,IF('Tool interface'!$C$97=2,'BIM Costs Database'!$O$59,IF('Tool interface'!$C$97=3,'BIM Costs Database'!$O$60,IF('Tool interface'!$C$97=4,'BIM Costs Database'!$O$61,IF('Tool interface'!$C$97=5,'BIM Costs Database'!$O$62,0))))),0) -> 0 | Q58: =+'BIM Costs Database'!P58+IF('Tool interface'!$C$95<=1,0,IF('Tool interface'!$C$95=2,'BIM Costs Database'!P58*20%,IF('Tool interface'!$C$95>=3,'BIM Costs Database'!P58*40%,"Error"))) -> 0
B59: 2 - 400 m^2 < Surface < 1500 m^2 | C59: 35 | H59: 2 - 400 m^2 < Surface < 1500 m^2 | I59: =+I60/1.2 -> 55.55555556 | N59: 2 - 400 m^2 < Surface < 1500 m^2 | O59: 110
B60: 3 - 1500 m^2 < Surface < 3000 m^2 | C60: =+C59*1.2 -> 42 | H60: 3 - 1500 m^2 < Surface < 3000 m^2 | I60: =+I61/1.2 -> 66.66666667 | N60: 3 - 1500 m^2 < Surface < 3000 m^2 | O60: 200
B61: 4 - 3000 m^2 < Surface < 5000 m^2 | C61: =+C60*1.2 -> 50.4 | H61: 4 - 3000 m^2 < Surface < 5000 m^2 | I61: 80 | N61: 4 - 3000 m^2 < Surface < 5000 m^2 | O61: 400
B62: 5 - Surface > 5000 m^2 | C62: =+C61*1.2 -> 60.48 | H62: 5 - Surface > 5000 m^2 | I62: =+I61*1.2 -> 96 | N62: 5 - Surface > 5000 m^2 | O62: 800
B65: Electrical and Lighting system | C65: Flat rate (h) | D65: Selected surface flat rate (h) | E65: Complexity Adj. rate (h) | H65: Electrical and Lighting system | I65: Flat rate (h) | J65: Selected surface flat rate (h) | K65: Complexity Adj. rate (h) | N65: Electrical and Lighting system | O65: Flat rate (h) | P65: Selected surface flat rate (h) | Q65: Complexity Adj. rate (h)
B66: 1 - Surface < 400 m^2 | C66: =+C67/1.2 -> 27.5 | D66: =+IF('Tool interface'!$C$105="Yes",IF('Tool interface'!$C$108=1,'BIM Costs Database'!$C$66,IF('Tool interface'!$C$108=2,'BIM Costs Database'!$C$67,IF('Tool interface'!$C$108=3,'BIM Costs Database'!$C$68,IF('Tool interface'!$C$108=4,'BIM Costs Database'!$C$69,IF('Tool interface'!$C$108=5,'BIM Costs Database'!$C$70,0))))),0) -> 0 | E66: =+'BIM Costs Database'!D66+IF('Tool interface'!$C$106<=1,0,IF('Tool interface'!$C$106=2,'BIM Costs Database'!D66*20%,IF('Tool interface'!$C$106>=3,'BIM Costs Database'!D66*40%,"Error"))) -> 0 | H66: 1 - Surface < 400 m^2 | I66: =+C66*1.5 -> 41.25 | J66: =+IF('Tool interface'!$C$105="Yes",IF('Tool interface'!$C$108=1,'BIM Costs Database'!$I$66,IF('Tool interface'!$C$108=2,'BIM Costs Database'!$I$67,IF('Tool interface'!$C$108=3,'BIM Costs Database'!$I$68,IF('Tool interface'!$C$108=4,'BIM Costs Database'!$I$69,IF('Tool interface'!$C$108=5,'BIM Costs Database'!$I$70,0))))),0) -> 0 | K66: =+'BIM Costs Database'!J66+IF('Tool interface'!$C$106<=1,0,IF('Tool interface'!$C$106=2,'BIM Costs Database'!J66*20%,IF('Tool interface'!$C$106>=3,'BIM Costs Database'!J66*40%,"Error"))) -> 0 | N66: 1 - Surface < 400 m^2 | O66: 85 | P66: =+IF('Tool interface'!$C$105="Yes",IF('Tool interface'!$C$108=1,'BIM Costs Database'!$O$66,IF('Tool interface'!$C$108=2,'BIM Costs Database'!$O$67,IF('Tool interface'!$C$108=3,'BIM Costs Database'!$O$68,IF('Tool interface'!$C$108=4,'BIM Costs Database'!$O$69,IF('Tool interface'!$C$108=5,'BIM Costs Database'!$O$70,0))))),0) -> 0 | Q66: =+'BIM Costs Database'!P66+IF('Tool interface'!$C$106<=1,0,IF('Tool interface'!$C$106=2,'BIM Costs Database'!P66*20%,IF('Tool interface'!$C$106>=3,'BIM Costs Database'!P66*40%,"Error"))) -> 0
B67: 2 - 400 m^2 < Surface < 1500 m^2 | C67: 33 | H67: 2 - 400 m^2 < Surface < 1500 m^2 | I67: =+C67*1.5 -> 49.5 | N67: 2 - 400 m^2 < Surface < 1500 m^2 | O67: 110
B68: 3 - 1500 m^2 < Surface < 3000 m^2 | C68: =+C67*1.2 -> 39.6 | H68: 3 - 1500 m^2 < Surface < 3000 m^2 | I68: 59.4 | N68: 3 - 1500 m^2 < Surface < 3000 m^2 | O68: 200
B69: 4 - 3000 m^2 < Surface < 5000 m^2 | C69: =+C68*1.2 -> 47.52 | H69: 4 - 3000 m^2 < Surface < 5000 m^2 | I69: 71.28 | N69: 4 - 3000 m^2 < Surface < 5000 m^2 | O69: 400
B70: 5 - Surface > 5000 m^2 | C70: 57.024 | H70: 5 - Surface > 5000 m^2 | I70: 85.536 | N70: 5 - Surface > 5000 m^2 | O70: 800
B73: Special Systems (Firefighting and Safety systems, Medical Gas system, etc.) | C73: Flat rate (h) | D73: Selected surface flat rate (h) | E73: Complexity Adj. rate (h) | H73: Special Systems (Firefighting and Safety systems, Medical Gas system, etc.) | I73: Flat rate (h) | J73: Selected surface flat rate (h) | K73: Complexity Adj. rate (h) | N73: Special Systems (Firefighting and Safety systems, Medical Gas system, etc.) | O73: Flat rate (h) | P73: Selected surface flat rate (h) | Q73: Complexity Adj. rate (h)
B74: 1 - Surface < 400 m^2 | C74: =+C58/1.13 -> 25.81120944 | D74: =+IF('Tool interface'!$C$116="Yes",IF('Tool interface'!$C$119=1,'BIM Costs Database'!$C$74,IF('Tool interface'!$C$119=2,'BIM Costs Database'!$C$75,IF('Tool interface'!$C$119=3,'BIM Costs Database'!$C$76,IF('Tool interface'!$C$119=4,'BIM Costs Database'!$C$77,IF('Tool interface'!$C$119=5,'BIM Costs Database'!$C$78,0))))),0) -> 0 | E74: =+'BIM Costs Database'!D74+IF('Tool interface'!$C$117<=1,0,IF('Tool interface'!$C$117=2,'BIM Costs Database'!D74*20%,IF('Tool interface'!$C$117>=3,'BIM Costs Database'!D74*40%,"Error"))) -> 0 | H74: 1 - Surface < 400 m^2 | I74: =+C74*1.5 -> 38.71681416 | J74: =+IF('Tool interface'!$C$116="Yes",IF('Tool interface'!$C$119=1,'BIM Costs Database'!$I$74,IF('Tool interface'!$C$119=2,'BIM Costs Database'!$I$75,IF('Tool interface'!$C$119=3,'BIM Costs Database'!$I$76,IF('Tool interface'!$C$119=4,'BIM Costs Database'!$I$77,IF('Tool interface'!$C$119=5,'BIM Costs Database'!$I$78,0))))),0) -> 0 | K74: =+'BIM Costs Database'!J74+IF('Tool interface'!$C$117<=1,0,IF('Tool interface'!$C$117=2,'BIM Costs Database'!J74*20%,IF('Tool interface'!$C$117>=3,'BIM Costs Database'!J74*40%,"Error"))) -> 0 | N74: 1 - Surface < 400 m^2 | O74: 50 | P74: =+IF('Tool interface'!$C$116="Yes",IF('Tool interface'!$C$119=1,'BIM Costs Database'!$O$74,IF('Tool interface'!$C$119=2,'BIM Costs Database'!$O$75,IF('Tool interface'!$C$119=3,'BIM Costs Database'!$O$76,IF('Tool interface'!$C$119=4,'BIM Costs Database'!$O$77,IF('Tool interface'!$C$119=5,'BIM Costs Database'!$O$78,0))))),0) -> 0 | Q74: =+'BIM Costs Database'!P74+IF('Tool interface'!$C$117<=1,0,IF('Tool interface'!$C$117=2,'BIM Costs Database'!P74*20%,IF('Tool interface'!$C$117>=3,'BIM Costs Database'!P74*40%,"Error"))) -> 0
B75: 2 - 400 m^2 < Surface < 1500 m^2 | C75: =+C59/1.13 -> 30.97345133 | H75: 2 - 400 m^2 < Surface < 1500 m^2 | I75: =+C75*1.5 -> 46.46017699 | N75: 2 - 400 m^2 < Surface < 1500 m^2 | O75: 100
B76: 3 - 1500 m^2 < Surface < 3000 m^2 | C76: 37.16814159 | H76: 3 - 1500 m^2 < Surface < 3000 m^2 | I76: 55.75221239 | N76: 3 - 1500 m^2 < Surface < 3000 m^2 | O76: 200
B77: 4 - 3000 m^2 < Surface < 5000 m^2 | C77: 44.60176991 | H77: 4 - 3000 m^2 < Surface < 5000 m^2 | I77: 66.90265487 | N77: 4 - 3000 m^2 < Surface < 5000 m^2 | O77: 400
B78: 5 - Surface > 5000 m^2 | C78: 53.52212389 | H78: 5 - Surface > 5000 m^2 | I78: 80.28318584 | N78: 5 - Surface > 5000 m^2 | O78: 800

Sheet Database (hidden)
E2: Outliers
E3: RINA-C estimate
C5: Procuremente process cost
C6: Investment budget * x% (BIM maturity level 0 percentage dependent upon investment budget size)
D7: Baseline | E7: Optimistic | F7: Pessimistic | G7: BIM level 0 | I7: Overall impact (independent from maturity level of respondents)
C8: Procurement process overall cost (€) | D8: =+'Tool interface'!$C$17*IF('Tool interface'!$C$17<=1000000,Database!$G$11,IF('Tool interface'!$C$17<=5000000,Database!$G$12,IF('Tool interface'!$C$17<=15000000,Database!$G$13,IF('Tool interface'!$C$17<=50000000,Database!$G$14,IF('Tool interface'!$C$17<=100000000,Database!$G$15,IF('Tool interface'!$C$17>100000000,Database!$G$16,"")))))) -> 0 | E8: =+$D$8*0.9 -> 0 | F8: =+$D$8*1.1 -> 0 | G8: =+IF(Results!$M$9="Baseline Estimate",Database!$D$8,IF(Results!$M$9="Optimistic Estimate",Database!$E$8,IF(Results!$M$9="Pessimistic Estimate",Database!$F$8,Database!$D$8))) -> 0 | H8: BIM impact on procurement process cost (€) | I8: =$G$8*IF('Tool interface'!$C$17<=1000000,Database!I11,IF('Tool interface'!$C$17<=5000000,Database!I12,IF('Tool interface'!$C$17<=15000000,Database!I13,IF('Tool interface'!$C$17<=50000000,Database!I14,IF('Tool interface'!$C$17<=100000000,Database!I15,IF('Tool interface'!$C$17>100000000,Database!I16,"")))))) -> 0 | J8: Amount not adjusted for experience level, category of project, etc.
C10: Investment levels | H10: BIM impact on proc. process cost (depending on investment level)
C11: Less than 1 million euros | D11: Extracted from survey, 0s excluded, condition set (<40%) | G11: 0.09294117647 | H11: Less than 1 million euros | I11: 0.1022647059 | J11: Extracted from survey, 0s included, no condition set
C12: Between 1 and 5 million euros | D12: - | G12: 0.08542105263 | H12: Between 1 and 5 million euros | I12: 0.08690441176 | J12: -
C13: Between 5 and 15 million euros | D13: - | G13: 0.06505 | H13: Between 5 and 15 million euros | I13: 0.08863235294 | J13: -
C14: Between 15 and 50 million euros | D14: - | G14: 0.060365 | H14: Between 15 and 50 million euros | I14: 0.08161323529 | J14: -
C15: Between 50 and 100 million euros | D15: - | G15: 0.04498 | H15: Between 50 and 100 million euros | I15: 0.05896617647 | J15: -
C16: Higher than 100 million euros | D16: - | G16: 0.04393 | H16: More than 100 million euros | I16: 0.05411323529 | J16: -
G18: BIM level 0 | I18: BIM level 1: | J18: BIM level 2: | K18: BIM level 3:
C19: Pre-tendering phase cost (€) | G19: =+$G$8*G23 -> 0 | H19: BIM impact on pre-tendering phase cost (€) | I19: =+IF('Tool interface'!$C$11="New asset construction",Database!$I$20,IF('Tool interface'!$C$11="Work on an existing asset",Database!$I$21,1)) -> 1 | J19: =+IF('Tool interface'!$C$11="New asset construction",Database!$J$20,IF('Tool interface'!$C$11="Work on an existing asset",Database!$J$21,1)) -> 1 | K19: =+IF('Tool interface'!$C$11="New asset construction",Database!$K$20,IF('Tool interface'!$C$11="Work on an existing asset",Database!$K$21,1)) -> 1
C20: Procurement process cost * x% (BIM maturity level 0) | H20: New asset construction | I20: =+IF('Tool interface'!$C$8="No",G19*I23,Database!G19*Database!I23*20%) -> 0 | J20: =+IF('Tool interface'!$C$8="No",G19*J23,Database!G19*Database!J23*20%) -> 0 | K20: =+IF('Tool interface'!$C$8="No",G19*K23,Database!G19*Database!K23*20%) -> 0 | M20: For those who have previous experience with BIM, it is reduced of 80% due to the fact that AIR,EIR,OIR templates might be available and the initial productivity loss associated to BIM adoption has already been experienced. | N20: Assumption based on interviews outcomes
H21: Adjustment in case the project is on an existing building (-20%) | I21: =+I20*80% -> 0 | J21: =+J20*80% -> 0 | K21: =+K20*80% -> 0 | M21: In case of works on existing buildings it is assumed that a substantial set of information necessary to carry out planning, design and tendering are already available. In this sense such BIM connected cost is reduced (-20%)
H22: Cost of pre-tend. Phase*x%(cost incr. depending on mat. Level, asset category and prior experience with BIM)
C23: Fraction of Proc. Process cost represented by Pre-tendering phase cost | D23: Extracted from survey, 0s excluded, no condition set | G23: 0.1770588235 | H23: Pre-tendering phase cost increase due to BIM (%) | I23: 0.1255 | J23: 0.08714285714 | K23: =+J23-(((I23-J23)/I23)*J23) -> 0.06050898447
H24: Extracted from survey, 0s included, condition set (<80%)
G26: BIM level 0 | I26: BIM level 1: | J26: BIM level 2: | K26: BIM level 3:
C27: Tendering phase cost (€) | G27: =+$G$8*G31 -> 0 | H27: BIM impact on tendering phase cost (€) | I27: =+IF('Tool interface'!$C$11="New asset construction",Database!$I$28,IF('Tool interface'!$C$11="Work on an existing asset",Database!$I$29,1)) -> 1 | J27: =+IF('Tool interface'!$C$11="New asset construction",Database!$J$28,IF('Tool interface'!$C$11="Work on an existing asset",Database!$J$29,1)) -> 1 | K27: =+IF('Tool interface'!$C$11="New asset construction",Database!$K$28,IF('Tool interface'!$C$11="Work on an existing asset",Database!$K$29,1)) -> 1
C28: Procurement process cost * x% (depending on maturity level) | H28: New asset construction | I28: =+IF('Tool interface'!$C$8="No",G27*I31,Database!G27*Database!I31*20%) -> 0 | J28: =+IF('Tool interface'!$C$8="No",G27*J31,Database!G27*Database!J31*20%) -> 0 | K28: =+IF('Tool interface'!$C$8="No",G27*K31,Database!G27*Database!K31*20%) -> 0 | M28: For those who have previous experience with BIM, it is reduced of 80% due to the fact that AIR,EIR,OIR templates might be available and the initial productivity loss associated to BIM adoption has already been experienced. | N28: Assumption based on interviews outcomes
H29: Adjustment in case the project is on an existing building (-20%) | I29: =+I28*80% -> 0 | J29: =+J28*80% -> 0 | K29: =+K28*80% -> 0 | M29: In case of works on existing buildings it is assumed that a substantial set of information necessary to carry out planning, design and tendering are already available. In this sense such BIM connected cost is reduced (-20%)
H30: Cost of pre-tend. Phase*x%(cost incr. depending on mat. Level, asset category and prior experience with BIM)
C31: Fraction of Proc. Process cost represented by Tendering phase cost | D31: Extracted from survey, 0s excluded, no condition set | G31: 0.15 | H31: Tendering phase cost increase due to BIM (%) | I31: 0.1145 | J31: 0.08357142857 | K31: =+J31-(((I31-J31)/I31)*J31) -> 0.06099723732
H32: Extracted from survey, 0s included, condition set (<80%)
G34: BIM level 0 | I34: BIM level 1: | J34: BIM level 2: | K34: BIM level 3:
C35: Post-award phase cost (€) | G35: =+G8*G37 -> 0 | H35: BIM impact on post-award phase cost (€) | I35: =+IF('Tool interface'!$C$8="No",G35*I37,Database!G35*Database!I37*20%) -> 0 | J35: =+IF('Tool interface'!$C$8="No",G35*J37,Database!G35*Database!J37*20%) -> 0 | K35: =+IF('Tool interface'!$C$8="No",G35*K37,Database!G35*Database!K37*20%) -> 0 | M35: For those who have previous experience with BIM, it is reduced of 80% due to the fact that the initial productivity loss associated to BIM adoption has already been experienced.
C36: Procurement process cost * x% (depending on maturity level) | H36: Cost of pre-tend. Phase*x%(cost incr. depending on mat. Level, asset category and prior experience with BIM)
C37: Fraction of Proc. Process cost represented by Post-award phase cost | D37: Extracted from survey, 0s excluded, no condition set | G37: 0.1923529412 | H37: Post-award phase cost increase due to BIM (%) | I37: 0.0965 | J37: 0.05615384615 | K37: =+J37-(((I37-J37)/I37)*J37) -> 0.03267621179
H38: Extracted from survey, 0s included, condition set (<80%)
G40: BIM level 0 | I40: BIM level 1: | J40: BIM level 2: | K40: BIM level 3:
C41: Consulting cost (€) | G41: =+G43*G8 -> 0 | H41: BIM impact on consulting cost (€) | I41: =+IF('Tool interface'!$C$8="Yes",G41*I43*80%,IF('Tool interface'!$C$8="No",G41*I43,G41*I43)) -> 0 | J41: =+IF('Tool interface'!$C$8="Yes",G41*J43*80%,IF('Tool interface'!$C$8="No",G41*J43,G41*J43)) -> 0 | K41: =+IF('Tool interface'!$C$8="Yes",G41*K43*80%,IF('Tool interface'!$C$8="No",G41*K43,G41*K43)) -> 0 | M41: Basing on interviews there are different consulting services purchased by public entities.
C42: Procurement process cost * x% (depending on maturity level) | H42: Cost of pre-tend. Phase*x%(cost incr. depending on mat. Level, asset category and prior experience with BIM)
C43: Fraction of Proc. Process cost represented by Consulting cost | D43: Extracted from survey, 0s excluded, no condition set | G43: 0.111875 | H43: Consulting cost increase due to BIM (%) | I43: 0.1085 | J43: 0.08714285714 | K43: =+J43-(((I43-J43)/I43)*J43) -> 0.06998965485
H44: Extracted from survey, 0s included, condition set (<80%)
C47: Hardware upgrade investment
C48: (Number of employees using BIM (figure depending on the number of tenders launched every year/average annual number of tenders adopting BIM)*average investment in hardware upgrade extracted from survey
D49: BIM level 1,2,3
C50: Investment in hardware allocated to the project under study considering the number of projects where BIM is used and the number of employees that are affected by BIM adoption | D50: =+D54*D51 -> 1862.4154
C51: Number of employees per project | D51: =+'Tool interface'!$C$21/IF('Tool interface'!$C$9>0,'Tool interface'!$C$9,1) -> 1 | U51: CDE | V51: Price | W51: License | X51: Note
C52: Average investment in hardware upgrade (Extracted from survey, 0s excluded, condition set (minimum investment = 100€; maximum investment = 1100000€ without considering the number of employees and the size or the organization)) | D52: 146940.7742 | U52: BIM Collab | V52: 1200-3600 | W52: Annual | X52: with 10 users
C53: Average number of employees trained on BIM (Extracted from survey, 0s excluded, no condition set (<900 individuals)) | D53: 78.89795918 | U53: BIMPLUS | V53: 1800 | W53: Annual | X53: with 10 users
C54: Average investment in hardware upgrade per employee (€) | D54: =+$D$52/$D$53 -> 1862.4154 | F54: < | G54: 2k-3k per person (interviews) | U54: Trimble Connect | V54: 1200-3000 | W54: Annual | X54: with 10 users
U55: BIMSpot | V55: 3360 | W55: Annual | X55: unlimited users
U56: BIM360
M58: See also naviswork column average
D59: BIM level 1 | E59: BIM level 2 | G59: BIM level 1 | H59: BIM level 2 | M59: Software cost (level 2) | V59: Annual
C60: Software investment | D60: =+IF(Results!$M$9="Baseline Estimate",Database!$G$60,IF(Results!$M$9="Optimistic Estimate",Database!$G$61,IF(Results!$M$9="Pessimistic Estimate",Database!$G$62,Database!$G$60))) -> 3000 | E60: =+IF(Results!$M$9="Baseline Estimate",Database!$H$60,IF(Results!$M$9="Optimistic Estimate",Database!$H$61,IF(Results!$M$9="Pessimistic Estimate",Database!$H$62,Database!$H$60))) -> 4200 | F60: Baseline | G60: =$D$61+$D$63 -> 3000 | H60: =+$D$62+$D$61+$D$63 -> 4200 | M60: BBA Heiko Koerner | R60: Country | S60: REVIT (license fee) | T60: BIM 360 | U60: Autodesk AEC Collection | V60: Naviswork
C61: CDE Software (10 users average price) | D61: =+IF('Tool interface'!$C$28="Yes",2000,IF('Tool interface'!$C$28="No",0,0)) -> 0 | F61: Optimistic | G61: =+$G$60*0.9 -> 2700 | H61: =+$H$60*0.9 -> 3780 | L61: 2019 | M61: 1200 | R61: BE | S61: 3195 | T61: 1247 | U61: 3909 | V61: 1206
C62: Quality/Model check (annual license) - 1 for projects with a budget < 50M €, 2 for projects with a budget > 50M € | D62: =+IF('Tool interface'!C17>50000000,2400,IF('Tool interface'!C17<=50000000,1200,0)) -> 1200 | F62: Pessimistic | G62: =+$G$60*1.1 -> 3300 | H62: =+$H$60*1.1 -> 4620 | L62: 2018 | M62: 1200 | R62: CZ | S62: 3286.94 | T62: 1281.23 | U62: 4028.55 | V62: 1273.33
C63: Modelling Software - 1 license during construction and FM/Operations | D63: 3000 | F63: < | G63: 8k-10k per person (interviews) | L63: 2017 | M63: 1200 | R63: DK | S63: 3317.11 | T63: 1292.23 | U63: 4055.93 | V63: 1263.98
L64: 2016 | M64: 996 | R64: GE | S64: 3142 | T64: 1226 | U64: 3844 | V64: 1196
L65: 2015 | M65: 7000 | N65: Purchase | R65: ES | S65: 3195 | T65: 1247 | U65: 3909 | V65: 1217
L66: Tot. | M66: =+SUM(M61:M65) -> 11596 | N66: https://fondazionearching.it/documents/10181/1802315/Harpaceas_red_24aprile.pdf/b0b0bb2d-4af3-4349-9479-a69e7ee11b3d | R66: FR | S66: 3168 | T66: 1236 | U66: 3876 | V66: 1206
N67: https://simbim.es/en/10-buy | R67: IT | S67: 3221 | T67: 1257 | U67: 3941 | V67: 1227
R68: HU | S68: 3195 | T68: 1247 | U68: 3909 | V68: 1217
R69: NL | S69: 3195 | T69: 1247 | U69: 3909 | V69: 1217
R70: Norway | S70: 3589.5 | T70: 1392.07 | U70: 4309.41 | V70: 1279.99
D71: BIM level 1: | E71: BIM level 2: | F71: BIM level 3: | R71: AU | S71: 3142 | T71: 1226 | U71: 3844 | V71: 1196
C72: Total investment necessary to train internal employees | D72: =+('Tool interface'!$C$21*(D74+D73))/IF('Tool interface'!$C$9>0,'Tool interface'!$C$9,1) -> 2986.666667 | E72: =+('Tool interface'!$C$21*(E73+D74))/IF('Tool interface'!$C$9>0,'Tool interface'!$C$9,1) -> 5383.333333 | F72: =+('Tool interface'!$C$21*(D74+F73))/IF('Tool interface'!$C$9>0,'Tool interface'!$C$9,1) -> 9703.218006 | R72: PL | S72: 3307.71 | T72: 1287.36 | U72: 4046.14 | V72: 1272.9
C73: Average cost to train a single employee (depending on BIM maturity level) (Extracted from survey, 0s excluded, condition set (minimum investment>100€ and maximum investment<20000€) | D73: =+IF(Results!$M$9="Baseline Estimate",Database!$F$76,IF(Results!$M$9="Optimistic Estimate",Database!$F$77,IF(Results!$M$9="Pessimistic Estimate",Database!$F$78,Database!$F$76))) -> 2986.666667 | E73: =+IF(Results!$M$9="Baseline Estimate",Database!$G$76,IF(Results!$M$9="Optimistic Estimate",Database!$G$77,IF(Results!$M$9="Pessimistic Estimate",Database!$G$78,Database!$G$76))) -> 5383.333333 | F73: =+IF(Results!$M$9="Baseline Estimate",Database!$H$76,IF(Results!$M$9="Optimistic Estimate",Database!$H$77,IF(Results!$M$9="Pessimistic Estimate",Database!$H$78,Database!$H$76))) -> 9703.218006 | G73: < | H73: 5k-8k per person (interviews) | R73: PT | S73: 3195 | T73: 1247 | U73: 3909 | V73: 1217
C74: Considering 150 hours employed to train an individual employee | D74: =+('Tool interface'!$C$27/Database!$D$126)*150 -> 0 | R74: FI | S74: 3195 | T74: 1247 | U74: 3909 | V74: 1217
F75: BIM level 1: | G75: BIM level 2: | H75: BIM level 3: | R75: SWE | S75: 3277.98 | T75: 1270.11 | U75: 4020.77 | V75: 1256.83
E76: Baseline | F76: 2986.666667 | G76: 5383.333333 | H76: =+(((G76-F76)/F76)*G76)+G76 -> 9703.218006 | R76: SWI | S76: 2816.1 | T76: 1101.47 | U76: 3458.17 | V76: 1072
E77: Optimistic | F77: =+$F$76*0.9 -> 2688 | G77: =+$G$76*0.9 -> 4845 | H77: =+$H$76*0.9 -> 8732.896205 | R77: Other Europe | S77: 3195 | T77: 1247 | U77: 3909 | V77: 1217
E78: Pessimistic | F78: =+$F$76*1.1 -> 3285.333333 | G78: =+$G$76*1.1 -> 5921.666667 | H78: =+$H$76*1.1 -> 10673.53981 | R78: Average | S78: =+AVERAGE(S61:S77) -> 3213.725882 | T78: =+AVERAGE(T61:T77) -> 1252.851176 | U78: =+AVERAGE(U61:U77) -> 3928.645294 | V78: =+AVERAGE(V61:V77) -> 1220.707647
H82: Baseline | I82: =IF('Tool interface'!$C$26="BIM coordination carried out internally",0.3%*80%*'Tool interface'!$C$16,0.3%*'Tool interface'!$C$16) -> 0
D83: BIM level 1 | E83: BIM level 2 | H83: Optimistic | I83: =+$I$82*0.9 -> 0
C84: BIM Coordination cost | D84: =IF('Tool interface'!$C$26="BIM coordination carried out internally",'BIM Costs Database'!$U$2*80%,'BIM Costs Database'!$U$2) -> 0 | E84: =+IF(Results!$M$9="Baseline Estimate",Database!$I$82,IF(Results!$M$9="Optimistic Estimate",Database!$I$83,IF(Results!$M$9="Pessimistic Estimate",Database!$I$84,Database!$I$82))) -> 0 | H84: Pessimistic | I84: =+$I$82*1.1 -> 0
F85: Baseline | G85: =+IF('Tool interface'!$C$12="Yes",0,'BIM Costs Database'!$D$2) -> 0
D86: BIM level 1,2,3 | F86: Optimistic | G86: =+$G$85*0.9 -> 0
C87: Model creation | D87: =+IF(Results!$M$9="Baseline Estimate",Database!$G$85,IF(Results!$M$9="Optimistic Estimate",Database!$G$86,IF(Results!$M$9="Pessimistic Estimate",Database!$G$87,Database!$G$85))) -> 0 | F87: Pessimistic | G87: =+$G$85*1.1 -> 0
C94: Initial investment | D94: =+'Tool interface'!$C$17 -> 0
D96: BIM level 1,2,3
C97: Cost reduction due to early clashes and errors detection and subsequent reduction of changes necessary in construction phase | D97: =+IF('Tool interface'!$C$11="New asset construction",Database!$D$98,IF('Tool interface'!$C$11="Work on an existing asset",Database!$D$99,1)) -> 1 | F97: Baseline | G97: 0.02894736842
C98: New asset construction | D98: =IF('Tool interface'!$C$34=1,'Tool interface'!$C$16*Database!D100*60%,IF('Tool interface'!$C$34=2,'Tool interface'!$C$16*Database!D100*80%,'Tool interface'!$C$16*Database!D100)) -> 0 | F98: Optimistic | G98: =+$G$97*1.1 -> 0.03184210526
C99: Adjustment in case the project is on an existing building (-20%); BIM potential benefits are limited by the limitations posed by the pre-existig structure. | D99: =+D98*80% -> 0 | F99: Pessimistic | G99: =+$G$97*0.9 -> 0.02605263158
C100: Average cost reduction due to BIM (Extracted from survey, 0s included, condition set (<= 10%)) | D100: =+IF(Results!$M$9="Baseline Estimate",Database!$G$97,IF(Results!$M$9="Optimistic Estimate",Database!$G$98,IF(Results!$M$9="Pessimistic Estimate",Database!$G$99,Database!$G$97))) -> 0.02894736842
D102: BIM level 1,2,3 | F102: Baseline | G102: 0.03421052632
C103: Cost reduction associated to more precise quantity take-offs | D103: =+'Tool interface'!$C$16*D104 -> 0 | F103: Optimistic | G103: =+$G$102*1.1 -> 0.03763157895
C104: Average cost reduction due to BIM (Extracted from survey, 0s included, condition set (<= 10%)) | D104: =+IF(Results!$M$9="Baseline Estimate",Database!$G$102,IF(Results!$M$9="Optimistic Estimate",Database!$G$103,IF(Results!$M$9="Pessimistic Estimate",Database!$G$104,Database!$G$102))) -> 0.03421052632 | F104: Pessimistic | G104: =+$G$102*0.9 -> 0.03078947368
D106: BIM level 1 | E106: BIM level 2 | F106: BIM level 3 | I106: BIM level 1 | J106: BIM level 2 | K106: BIM level 3
C107: Time savings in design and construction phases and associated project duration reduction | D107: =+IF('Tool interface'!$C$11="New asset construction",Database!$D$108,IF('Tool interface'!$C$11="Work on an existing asset",Database!$D$109,1)) -> 1 | E107: =+IF('Tool interface'!$C$11="New asset construction",Database!$E$108,IF('Tool interface'!$C$11="Work on an existing asset",Database!$E$109,1)) -> 1 | F107: =+IF('Tool interface'!$C$11="New asset construction",Database!$F$108,IF('Tool interface'!$C$11="Work on an existing asset",Database!$F$109,1)) -> 1 | H107: Baseline | I107: 0.025 | J107: 0.05 | K107: =+(((J107-I107)/I107)*J107)+J107 -> 0.1
C108: New asset construction | D108: =+IF('Tool interface'!$C$28="Yes",$D$110*'Tool interface'!$C$17,IF('Tool interface'!$C$28="No",$D$110*'Tool interface'!$C$17*95%,$D$110*'Tool interface'!$C$17)) -> 0 | E108: =+IF('Tool interface'!$C$28="Yes",$E$110*'Tool interface'!$C$17,IF('Tool interface'!$C$28="No",$E$110*'Tool interface'!$C$17*95%,$E$110*'Tool interface'!$C$17)) -> 0 | F108: =+IF('Tool interface'!$C$28="Yes",$F$110*'Tool interface'!$C$17,IF('Tool interface'!$C$28="No",$F$110*'Tool interface'!$C$17*95%,$F$110*'Tool interface'!$C$17)) -> 0 | H108: Optimistic | I108: =+$I$107*1.1 -> 0.0275 | J108: =+$J$107*1.1 -> 0.055 | K108: =+$K$107*1.1 -> 0.11
C109: Adjustment in case the project is on an existing building (-30%); BIM potential benefits are limited by the limitations posed by the pre-existig structure. | D109: =+D108*70% -> 0 | E109: =+E108*70% -> 0 | F109: 0 | H109: Pessimistic | I109: =+$I$107*0.9 -> 0.0225 | J109: =+$J$107*0.9 -> 0.045 | K109: =+$K$107*0.9 -> 0.09
C110: Average cost reduction due to BIM (Extracted from survey, 0s included, condition set (<= 10%)) | D110: =+IF(Results!$M$9="Baseline Estimate",Database!$I$107,IF(Results!$M$9="Optimistic Estimate",Database!$I$108,IF(Results!$M$9="Pessimistic Estimate",Database!$I$109,Database!$I$107))) -> 0.025 | E110: =+IF(Results!$M$9="Baseline Estimate",Database!$J$107,IF(Results!$M$9="Optimistic Estimate",Database!$J$108,IF(Results!$M$9="Pessimistic Estimate",Database!$J$109,Database!$J$107))) -> 0.05 | F110: =+IF(Results!$M$9="Baseline Estimate",Database!$K$107,IF(Results!$M$9="Optimistic Estimate",Database!$K$108,IF(Results!$M$9="Pessimistic Estimate",Database!$K$109,Database!$K$107))) -> 0.1
F111: Assumption: same % growth as between level 1 and 2
D113: BIM level 1 | E113: BIM level 2 | F113: BIM level 3
C114: Cost reduction related to lower costs for claims/litigations | D114: =+(D94*D116)*D115 -> 0 | E114: =+(D94*D116)*E115 -> 0 | F114: =+(D94*D116)*F115 -> 0
C115: Average cost reduction of litigations related costs due to BIM (Extracted from survey, 0s included, no condition set) | D115: 0.1115789474 | E115: 0.125 | F115: =+(((E115-D115)/D115)*E115)+E115 -> 0.1400353774
C116: Average cost for litigations expressed as a share of total investment (Extracted from survey, 0s excluded, condition set (<= 20%)) | D116: 0.1100909091 | F116: Assumption: same % growth as between level 1 and 2
D120: BIM level 1 | E120: BIM level 2 | F120: BIM level 3
C121: Public entity personnel labour cost reduction due to faster document analysis for facility management and maintenance | D121: =+IF('Tool interface'!$C$23=0,0,('Tool interface'!$C$27/D127)*D123*(D122)) -> 0 | E121: =+IF('Tool interface'!$C$23=0,0,('Tool interface'!$C$27/D127)*D123*(E122)) -> 0 | F121: =+IF('Tool interface'!$C$23=0,0,('Tool interface'!$C$27/D127)*D123*(F122)) -> 0
C122: Average % reduction in time necessary to plan FM and Maintenance by the public entity employees when BIM is adopted (avg. condit. <80%, including 0s, from survey, level 1 (respondents from 0 and 1) | D122: 0.1415789474 | E122: =+D122*1.2 -> 0.1698947368 | F122: =+E122*1.2 -> 0.2038736842
C123: Average number of days to plan FM/Maintenance (days) for the single asset (Extracted from survey, 0s excluded, condition set (<100 days), focus on BIM maturity level 0) | D123: 33.64285714 | E123: Assumption: Additional 20% of level 1 figure | F123: Assumption: Additional 20% of level 2 figure
C124: EU-27 average (2019) usual working week of employed persons in their main job (h) | D124: 37.1 | E124: https://ec.europa.eu/eurostat/statistics-explained/index.php?title=Hours_of_work_-_annual_statistics#Working_hours_for_employees
C125: Average number of working weeks in a year | D125: 48
C126: Average number of hours worked per year by an individual | D126: =+D125*D124 -> 1780.8
C127: Average number of days worked per year by and individual | D127: =+D126/7.42 -> 240
I131: BIM level 1 | J131: BIM level 2 | K131: BIM level 3
D132: BIM level 1 | E132: BIM level 2 | F132: BIM level 3 | H132: Baseline | I132: 0.06578947368 | J132: 0.15 | K132: =+J132+J132*25% -> 0.1875
C133: Cost reduction associated to more efficient annual maintenance | D133: =+D134*D135 -> 0 | E133: =+D134*E135 -> 0 | F133: =+D134*F135 -> 0 | H133: Optimistic | I133: =+$I$132*1.1 -> 0.07236842105 | J133: =+$J$132*1.1 -> 0.165 | K133: =+$K$132*1.1 -> 0.20625
C134: Annual Maintenance expense | D134: =+'Tool interface'!$C$23 -> 0 | H134: Pessimistic | I134: =+$I$132*0.9 -> 0.05921052632 | J134: =+$J$132*0.9 -> 0.135 | K134: =+$K$132*0.9 -> 0.16875
C135: Average BIM associated cost reduction in annual maintenance (Extracted from survey, 0s included, condition set (<70%)) | D135: =+IF(Results!$M$9="Baseline Estimate",Database!$I$132,IF(Results!$M$9="Optimistic Estimate",Database!$I$133,IF(Results!$M$9="Pessimistic Estimate",Database!$I$134,Database!$I$132))) -> 0.06578947368 | E135: =+IF(Results!$M$9="Baseline Estimate",Database!$J$132,IF(Results!$M$9="Optimistic Estimate",Database!$J$133,IF(Results!$M$9="Pessimistic Estimate",Database!$J$134,Database!$J$132))) -> 0.15 | F135: =+IF(Results!$M$9="Baseline Estimate",Database!$K$132,IF(Results!$M$9="Optimistic Estimate",Database!$K$133,IF(Results!$M$9="Pessimistic Estimate",Database!$K$134,Database!$K$132))) -> 0.1875
F136: Assumption: same % growth as between level 1 and 2
D138: BIM level 1,2,3
C139: Cost reduction attributable to the government/society due to better Health & Safety | D139: =+D141*D140 -> 121058
C140: Average societal cost of work related injuries and diseases (per case) in Europe | D140: 51882
C141: Average number of accidents avoided per tender/project (Extracted from survey, 0s included, condition set (<40)) | D141: 2.333333333
D143: BIM level 1,2,3 | H143: avg incidenti prevented by BIM (dato survey dei respondent con livello mat. 1)* Costo medio incidente sul lavoro (dato EU) | I143: https://osha.europa.eu/en/publications/presentation-value-occupational-safety-and-health-and-societal-costs-work-related/view
C144: CO2 emission reduction due to reduced material wasted (-50% on existing buildings) | D144: =+D150 -> 0 | H144: Finland | I144: 45816
C145: Average CO2 emission reduction (for a project) due to BIM (Extracted from survey, 0s included, condition set (<40%)) | D145: 0.07382978723 | H145: Germany | I145: 47360
C146: ETS price of CO2 emissions (25 €/ton of CO2) | D146: 25 | H146: The Netherlands | I146: 73410
C147: average CO2 emitted per square meter (tCO2/m^2) | D147: 0.33398 | H147: Italy | I147: 54964
C148: Tot. project CO2 tons emitted | D148: =+D147*IF('Tool interface'!$C$11="Work on an existing asset",D151*50%,D151) -> 0 | H148: Poland | I148: 37860
C149: Emission reduction (CO2 tons) due to BIM adoption | D149: =+D148*D145 -> 0 | H149: Average | I149: =+AVERAGE(I144:I148) -> 51882
C150: Monetization of the CO2 emission reduction | D150: =+D149*D146 -> 0
D151: =+IF('Tool interface'!$C$39=1,'Tool interface'!$C$127,IF('Tool interface'!C39=3,'Tool interface'!C127+'Tool interface'!C22,IF('Tool interface'!C39=2,'Tool interface'!C22,0))) -> 0
G162: Estimate selection | I162: include/exclude indicators
D163: List pre-tendering cost phase years | G163: Baseline Estimate | I163: On
D164: 1 | G164: Optimistic Estimate | I164: Off
D165: 2 | G165: Pessimistic Estimate
D166: 3
D167: 4
D168: 5 | G168: serve per spalmare i costi della fase di pretendering secondo la scelta dall'utente
D170: List post-award cost phase years
D171: 1
D172: 2 | H172: BIM coordination activities
D173: 3 | H173: BIM coordination carried out internally
D174: 4 | H174: BIM coordination carried out by an external service provider
D175: 5
D176: 6 | H176: Selection between new asset construction and work on an existing asset
D177: 7 | H177: New asset construction
D178: 8 | H178: Work on an existing asset
D179: 9
D180: 10
D182: List for level of detail | F182: List tender category assets involved
D183: 1 | F183: 1
D184: 2 | F184: 2 | H184: risposte yes or no | I184: Level of complexity
D185: 3 | F185: 3 | H185: Yes | I185: 1
H186: No | I186: 2
I187: 3
D188: Surfaces
D189: 1 | H189: Selection for visualization of phases in CBA
D190: 2 | H190: Planning and Design
D191: 3 | H191: Construction
D192: 4 | H192: Operation and Maintenance
D193: 5 | H193: All phases

Sheet Inputs
H1: Inputs
I2: Následující seznam otázek byl vytvořen za účelem zjištění informací nezbytných pro výpočet nákladů a přínosů zavedení informačního modelování staveb v zakázkách veřejných organizací. Shromážděné informace se týkají veřejné organizace účastnící se stavebního projektu a analyzovaného projektu. Otázky byly navrženy tak, aby tento nástroj mohly využít organizace s různými úrovněmi zkušeností s informačním modelováním staveb (i ty bez zkušeností) a získat potřebný přehled o nákladech a přínosech.
H4: Odpovězte prosím na následující otázky a do prázdných míst doplňte požadované informace (šedé buňky prosím NEVYPLŇUJTE)
H5: Není-li uvedeno jinak, jsou všechny otázky povinné
H8: PŘEDBĚŽNÉ VŠEOBECNÉ INFORMACE
I9: 1 | J9: Níže prosím uveďte požadované informace popisující zkušenosti vaší organizace s informačním modelováním staveb.
J11: 1.1 | K11: Má již vaše organizace s informačním modelováním staveb zkušenosti (zahájila pilotní projekt s použitím informačního modelování staveb či jej dokončila)?
J13: 1.2 | K13: V kolika projektech průměrně ročně se informační modelování staveb uplatňuje?
J15: 1.3 | K15: U kolika projektů v průměru ročně by se dala metoda BIM použít (platí pro případ, kdy vaše organizace nemá předchozí zkušenosti s informačním modelováním staveb)?
I17: 2.1 | J17: Zvolte prosím, zda se analyzovaný projekt týká nové stavby, nebo práce na již existující budově/infrastrukturní stavbě (renovace, rekonstrukce apod.).
I21: 2.2 | J21: Týká-li se projekt práce na již existující budově, je již k dispozici model pro BIM?
I25: 3 | J25: Níže prosím uveďte stávající nebo odhadovanou výši nákladových položek (v €) k výpočtu celkové investice do projektu.
J27: 3.1 | K27: Náklady fáze navrhování a přípravy stavby | R27: €
J29: 3.2 | K29: Náklady fáze provádění stavby | R29: €
I31: 4.1 | J31: Z rozbalovací nabídky prosím vyberte plánovaný počet let fáze provádění stavby. V případě, že je stávající doba trvání fáze uvedena v částech let, zvolte počet let, který odpovídá zaokrouhlení na nejbližší celé číslo.
I35: 4.2 | J35: Z rozbalovací nabídky prosím vyberte počet let od zahájení plánování projektu po dokončení návrhu staby a následné zahájení fáze provádění stavby. V případě, že je stávající doba trvání fáze uvedena v částech let, zvolte počet let, který odpovídá zaokrouhlení na nejbližší celé číslo.
I39: 5.1 | J39: Kolik pracovníků vaší organizace se do činností spojených s informačním modelováním staveb zapojuje? (Osoby, které potřebují a/nebo budou potřebovat školení BIM a/nebo pracují se softwarem pro BIM, technici, architekti, inženýři, specialisté nákupu apod.).
I43: 5.2 | J43: Kolik pracovníků vaší organizace se do informačního modelování staveb může zapojit, pokud se metoda BIM v projektech uplatňuje? (Osoby, které mohou potřebovat školení BIM, osoby, které budou pracovat se softwarem pro BIM, technici, architekti, inženýři, specialisté nákupu apod.).
I47: 6 | J47: Uveďte prosím hrubou podlahovou plochu projektu (v m2), pokud je předmětem projektu budova nebo infrastrukturní stavba zahrnující/obsahující budovy ve svém perimetru, v opačném případě nechte prostor prázdný. Hrubá podlahová plocha (GFA) je tvořena součtem podlahových ploch všech prostor v budově bez výjimky; v zásadě odpovídá celkové ploše ohraničeném obvodem vnějších stěn.
M49: m^2
I51: 7 | J51: Uveďte prosím hodnotu ukazatele roční náklady na údržbu stavby u příslušného projektu. Jestliže tuto informaci nemáte k dispozici a nedokáže ji odhadnout, ponechte prosím buňku prázdnou. V tomto případě nebude nástroj odhadovat náklady a přínosy zavedení informačního modelování staveb ve fázi „Provoz a údržba“.
M53: €
I55: 8 | J55: Uveďte prosím, zda zavedení informačního modelování staveb vyžaduje najmutí externích poradců pro koordinaci těchto činností, nebo zda budou tento úkol plnit interní zaměstnanci organizace.
I59: 9 | J59: Uveďte prosím hodnotu ukazatele průměrný roční plat pracovníka vaší organizace (€).
M61: €
I63: 10 | J63: Uplatní se v projektu společné datové prostředí (CDE)? Zvolíte-li „Ne“, nebudou přiděleny žádné náklady na CDE.
I67: 11 | J67: Uveďte prosím míru inflace v průběhu realizace projektu (%).
K69: 0.058
H73: INFORMACE K VYPRACOVÁNÍ INFORMAČNÍHO MODELU STAVBY
I74: 12 | J74: Z níže uvedených možností prosím zvolte úroveň podrobnosti/projektování (LOD podle BIMForum.org) požadovanou ve výběrovém řízení (vybírejte z dostupných možností odpovídajících číslu možnosti, tedy 1 až 3).
J75: 1 - ZÁKLADNÍ NÁVRH - LOD 200
J76: 2 - PODROBNÝ NÁVRH - LOD 350
J77: 3 - DIGITÁLNÍ DVOJČE - LOD 450/500
I81: 13 | J81: Podle výběrového řízení prosím zvolte z níže uvedených možností příslušnou kategorii stavby (vyberte odpovídající číslo kategorie, tedy 1, 2, nebo 3).
J82: 1 - INFRASTRUKTURNÍ STAVBA
J83: 2 - BUDOVA
J84: 3 - SMÍŠENÁ (infrastruktura zahrnující ve své oblasti rovněž budovy, které musí být modelovány)
I88: 14 | J88: Uveďte prosím průměrné hodinové náklady na BIM manažera (v €).
H92: Následující kapitoly „ARCHITEKTURA A KONSTRUKCE“ a „TECHNICKÉ SYSTÉMY“ vyplňte pouze v případě, kdy je uvedená kategorie stavby „BUDOVA“ nebo „SMÍŠENÁ“. V případě „SMÍŠENÉ“ kategorie vyplňte prosím kapitoly „ARCHITEKTURA A KONSTRUKCE“ a „TECHNICKÉ SYSTÉMY“ pouze s ohledem na budovy, které jsou součástí infrastruktury; níže naleznete kapitolu věnovanou konkrétně oblasti infrastruktury a jejích systémů, která nezahrnuje budovy.
H94: ARCHITEKTURA A KONSTRUKCE | J94: V níže uvedené kapitole prosím uveďte, zda se stavba skládá z ploch jednotlivých kategorií, a zvolte jejich příslušný průměrný stupeň složitosti podle škály zobrazené po kliknutí na tlačítko „i“. „Plochou" se rozumí plochy místností, fasád nebo střech (viz příklad v příručce).
I101: 15 | J101: Vyberte prosím Ano / Ne k vyjádření výskytu oblastí navrhovaných povrchů a uveďte průměrný stupeň složitosti každé kategorie.
J103: Kategorie povrchové plochy | M103: Vyberte: Ano / Ne | P103: Uveďte úroveň složitosti každé přítomné kategorie plochy.
J105: Surface < 25 m^2
J106: 25 m^2 < Surface < 150 m^2
J107: 150 m^2 < Surface < 300 m^2
J108: Surface > 300 m^2
I110: 16 | J110: Uveďte prosím počet ploch v každé kategorii plochy.
M111: Počet ploch
J112: Surface < 25 m^2
J113: 25 m^2 < Surface < 150 m^2
J114: 150 m^2 < Surface < 300 m^2
J115: Surface > 300 m^2
I117: 17 | J117: Uveďte prosím průměrnou úroveň standardizace (1, 2, 3) pro plochy stavby podle škály, kterou lze zobrazit kliknutím na tlačítko „i“.
H126: TECHNICKÉ VYBAVENÍ | J126: V kapitole níže prosím uveďte u příslušného projektu výskyt navrhovaných systémů (zvolením možnosti Ano / Ne) a úroveň složitosti každého systému podle škály, kterou lze zobrazit kliknutím na tlačítko „i“.
J128: LOW - The system has, on average, a low level of complexity, being fairly standard, without specific requirements that would lead to increase the modelling activity time. - 1
J129: MEDIUM - 2
J130: HIGH - The system is very complex, with very specific, tailored and complex requirements that would lead to a substantial increase the modelling activity time. - 3
J133: Dále prosím vyberte z navrhovaných rozsahů ploch obsluhovaných jednotlivými technickými systémy (vyplňujte prosím pouze bílé buňky).
I135: 18 | J135: Větrání a vytápění/chlazení
J137: Indicate: "Yes" / "No"
J141: Uveďte prosím úroveň složitosti systému.
J145: Uveďte prosím velikost plochy obsluhované systémem pro větrání a vytápění/chlazení volbou odpovídajícího čísla od 1 do 5.
J146: 1 - Surface < 400 m^2
J147: 2 - 400 m^2 < Surface < 1500 m^2
J148: 3 - 1500 m^2 < Surface < 3000 m^2
J149: 4 - 3000 m^2 < Surface < 5000 m^2
J150: 5 - Surface > 5000 m^2
I154: 19 | J154: Zdravotnětechnické instalace
J156: Indicate: "Yes" / "No"
J159: Uveďte prosím úroveň složitosti systému.
J163: Uveďte prosím velikost plochy obsluhované zdravotnětechnickými instalacemi volbou odpovídajícího čísla od 1 do 5.
J164: 1 - Surface < 400 m^2
J165: 2 - 400 m^2 < Surface < 1500 m^2
J166: 3 - 1500 m^2 < Surface < 3000 m^2
J167: 4 - 3000 m^2 < Surface < 5000 m^2
J168: 5 - Surface > 5000 m^2
I172: 20 | J172: Rozvody elektroinstalace a osvětlení
J174: Indicate: "Yes" / "No"
J178: Uveďte prosím úroveň složitosti systému.
J182: Uveďte prosím velikost plochy obsluhované rozvody elektroinstalace a osvětlením volbou odpovídajícího čísla od 1 do 5.
J183: 1 - Surface < 400 m^2
J184: 2 - 400 m^2 < Surface < 1500 m^2
J185: 3 - 1500 m^2 < Surface < 3000 m^2
J186: 4 - 3000 m^2 < Surface < 5000 m^2
J187: 5 - Surface > 5000 m^2
I191: 21 | J191: Ostatní systémy (protipožární a bezpečnostní systémy, systémy pro medicinální plyny apod.).
J193: Indicate: "Yes" / "No"
J197: Uveďte prosím úroveň složitosti systémů.
J201: Uveďte prosím velikost plochy obsluhované zvláštními systémy volbou odpovídajícího čísla od 1 do 5.
J202: 1 - Surface < 400 m^2
J203: 2 - 400 m^2 < Surface < 1500 m^2
J204: 3 - 1500 m^2 < Surface < 3000 m^2
J205: 4 - 3000 m^2 < Surface < 5000 m^2
J206: 5 - Surface > 5000 m^2
H211: Následující kapitolu „PLOŠNÝ ROZSAH A SYSTÉMY“ vyplňte pouze v případě, kdy je uvedená kategorie stavby „INFRASTRUKTURNÍ STAVBA“ nebo „SMÍŠENÁ“. V případě „SMÍŠENÉ“ stavby vyplňte prosím tuto kapitolu bez ploch a technických systémů přidružených k budově, která je součástí této infrastruktury, jejíž informace již byly poskytnuty ve výše uvedené kapitole.
H213: PLOCHA A SYSTÉMY INFRASTRUKTURY
I214: 22 | J214: V této kapitole věnované pouze stavbám, které byly označeny jako „INFASTRUKTURNÍ STAVBA“ nebo „SMÍŠENÉ“, prosím uveďte požadované informace. Pamatujte prosím, že do šedých buněk se nesmí uvádět žádná čísla/informace.
J216: Uveďte prosím celkovou plochu infrastruktury (v m2).
L218: m^2
J220: Uveďte prosím úroveň složitosti infrastrukturní stavby podle škály zobrazené kliknutím na tlačítko „i“
J224: Area complexity levels:
J225: LOW - The surface of the infrastructural asset is simple (it does not involve complex structural elements that would lead to a substantial increase of the modelling time) and fairly standard (there is a substantial degree of uniformity involving most of the asset structure and subsequently, once a small portion of the asset has been modelled, it can be quickly replicated to obtain a large part of the model). - 1
J226: MEDIUM - 2
J227: HIGH - The surface of the infrastructural asset is very complex (it requires modelling complicated and unique structural elements leading to a substantial increase of the modelling time) and heterogeneus (the different areas of the asset present only a few common and replicable elements). - 3
J230: Pomocí možností Ano / Ne uveďte výskyt následujících systémů, jejich úrovně složitosti podle škály zobrazené kliknutím na tlačítko „i“ a plochu obsluhovanou každým systémem (pamatujte prosím, že šedé buňky se nevyplňují).
J232: Systems complexity levels:
J233: LOW - The system has, on average, a low level of complexity, being fairly standard, without specific requirements that would lead to increase the modelling activity time. - 1
J234: MEDIUM - 2
J235: HIGH - The system is very complex, with very specific, tailored and complex requirements that would lead to a substantial increase the modelling activity time. - 3
I237: 23 | J237: Větrání a vytápění/chlazení
J239: Indicate: "Yes" / "No"
J243: Uveďte prosím úroveň složitosti systému pro větrání a vytápění/chlazení.
J247: Uveďte prosím velikost plochy obsluhované těmito systémy(v m2).
L249: m^2
I251: 24 | J251: Venkovní potrubí
J253: Indicate: "Yes" / "No"
J257: Uveďte prosím úroveň složitosti potrubní sítě.
J261: Uveďte prosím velikost plochy obsluhované potrubní sítí (v m2).
L263: m^2
I265: 25 | J265: Rozvody elektroinstalace a osvětlení
J267: Indicate: "Yes" / "No"
J271: Uveďte prosím úroveň složitosti elektrických rozvodů a osvětlení.
J275: Uveďte prosím velikost plochy obsluhované elektrickými rozvody a osvětlením (v m2).
L277: m^2
I279: 26 | J279: Ostatní systémy (protipožární a bezpečnostní systémy, systémy pro medicinální plyny apod.).
J281: Indicate: "Yes" / "No"
J285: Uveďte prosím úroveň složitosti zvláštních systémů.
J289: Uveďte prosím velikost plochy obsluhované zvláštními systémy (v m2).
L291: m^2

Sheet CBA - BIM level 1
B1: All phases | C1: 1 | D1: 2 | E1: 3 | F1: 4 | G1: 5 | H1: 6 | I1: 7 | J1: 8 | K1: 9 | L1: 10 | M1: 11 | N1: 12 | O1: 13 | P1: 14 | Q1: 15 | R1: 16 | S1: 17 | T1: 18 | U1: 19 | V1: 20 | W1: 21 | X1: 22 | Y1: 23 | Z1: 24 | AA1: 25 | AB1: 26 | AC1: 27 | AD1: 28 | AE1: 29 | AF1: 30 | AG1: 31 | AH1: 32 | AI1: 33 | AJ1: 34 | AK1: 35
C2: 1 | D2: =+C2+$A$3*C2 -> 1.058 | E2: =+D2+$A$3*D2 -> 1.119364 | F2: 1.184287112 | G2: 1.252975764 | H2: 1.325648359 | I2: 1.402535964 | J2: 1.48388305 | K2: 1.569948266 | L2: 1.661005266 | M2: 1.757343571 | N2: 1.859269498 | O2: 1.967107129 | P2: 2.081199343 | Q2: 2.201908905 | R2: 2.329619621 | S2: 2.464737559 | T2: 2.607692338 | U2: 2.758938493 | V2: 2.918956926 | W2: 3.088256428 | X2: 3.2673753 | Y2: 3.456883068 | Z2: 3.657382286 | AA2: 3.869510458 | AB2: 4.093942065 | AC2: 4.331390705 | AD2: 4.582611365 | AE2: 4.848402825 | AF2: 5.129610188 | AG2: 5.427127579 | AH2: 5.741900979 | AI2: 6.074931236 | AJ2: 6.427277247 | AK2: 6.800059328
A3: =+'Tool interface'!$C$29 -> 0.058
B4: Úroveň vyspělosti 1 | C4: Plánování a projektování | H4: Výstavba | R4: Operation and Maintenance
B6: Přínosy | C6: Year 1 | D6: Year 2 | E6: Year 3 | F6: Year 4 | G6: Year 5 | H6: Year 1 | I6: Year 2 | J6: Year 3 | K6: Year 4 | L6: Year 5 | M6: Year 6 | N6: Year 7 | O6: Year 8 | P6: Year 9 | Q6: Year 10 | R6: Year 1 | S6: Year 2 | T6: Year 3 | U6: Year 4 | V6: Year 5 | W6: Year 6 | X6: Year 7 | Y6: Year 8 | Z6: Year 9 | AA6: Year 10 | AB6: Year 11 | AC6: Year 12 | AD6: Year 13 | AE6: Year 14 | AF6: Year 15 | AG6: Year 16 | AH6: Year 17 | AI6: Year 18 | AJ6: Year 19 | AK6: Year 20
A7: On | B7: Snížení nákladů díky včasnému zjištění kolizí a chyb s následným snížením počtu potřebných změn ve fázi provádění stavby | H7: =IF($A$7="Off","",IF('Tool interface'!$C$19=0,0,IF('Tool interface'!$C$18=0,0,IF('Tool interface'!$C$18>=1,IF('Tool interface'!$C$19=1,(Database!$D$97/'Tool interface'!$C$18)*'CBA - BIM level 1'!$D$2,IF('Tool interface'!$C$19=2,(Database!$D$97/'Tool interface'!$C$18)*'CBA - BIM level 1'!$E$2,IF('Tool interface'!$C$19=3,(Database!$D$97/'Tool interface'!$C$18)*'CBA - BIM level 1'!$F$2,IF('Tool interface'!$C$19=4,(Database!$D$97/'Tool interface'!$C$18)*'CBA - BIM level 1'!$G$2,IF('Tool interface'!$C$19=5,(Database!$D$97/'Tool interface'!$C$18)*'CBA - BIM level 1'!$H$2,""))))))))) -> 0 | I7: =IF($A$7="Off","",IF('Tool interface'!$C$18>=2,(H7+$A$3*H7),"")) ->  | J7: =IF($A$7="Off","",IF('Tool interface'!$C$18>=3,(I7+$A$3*I7),"")) ->  | K7: =IF($A$7="Off","",IF('Tool interface'!$C$18>=4,(J7+$A$3*J7),"")) ->  | L7: =IF($A$7="Off","",IF('Tool interface'!$C$18>=5,(K7+$A$3*K7),"")) ->  | M7: =IF($A$7="Off","",IF('Tool interface'!$C$18>=6,(L7+$A$3*L7),"")) ->  | N7: =IF($A$7="Off","",IF('Tool interface'!$C$18>=7,(M7+$A$3*M7),"")) ->  | O7: =IF($A$7="Off","",IF('Tool interface'!$C$18>=8,(N7+$A$3*N7),"")) ->  | P7: =IF($A$7="Off","",IF('Tool interface'!$C$18>=9,(O7+$A$3*O7),"")) ->  | Q7: =IF($A$7="Off","",IF('Tool interface'!$C$18>=10,(P7+$A$3*P7),"")) -> 
A8: On | B8: Snížení nákladů spojené s výkazem výměr | H8: =IF($A$8="Off","",IF('Tool interface'!$C$19=1,(Database!$D$103)*'CBA - BIM level 1'!$D$2,IF('Tool interface'!$C$19=2,(Database!$D$103)*'CBA - BIM level 1'!$E$2,IF('Tool interface'!$C$19=3,(Database!$D$103)*'CBA - BIM level 1'!$F$2,IF('Tool interface'!$C$19=4,(Database!$D$103)*'CBA - BIM level 1'!$G$2,IF('Tool interface'!$C$19=5,(Database!$D$103)*'CBA - BIM level 1'!$H$2,"")))))) -> 
A9: On | B9: Snížení nákladů díky nižším nákladům na reklamace a soudní spory | C9: =IF($A$9="Off","",IF('Tool interface'!$C$34=3,"",IF('Tool interface'!$C$19>=1,Database!$D$114/('Tool interface'!$C$19+'Tool interface'!$C$18),""))) ->  | D9: =IF($A$9="Off","",IF('Tool interface'!$C$34=3,"",IF('Tool interface'!$C$19>=2,C9+C9*$A$3,""))) ->  | E9: =IF($A$9="Off","",IF('Tool interface'!$C$34=3,"",IF('Tool interface'!$C$19>=3,D9+D9*$A$3,""))) ->  | F9: =IF($A$9="Off","",IF('Tool interface'!$C$34=3,"",IF('Tool interface'!$C$19>=4,E9+E9*$A$3,""))) ->  | G9: =IF($A$9="Off","",IF('Tool interface'!$C$34=3,"",IF('Tool interface'!$C$19>=5,F9+F9*$A$3,""))) ->  | H9: =IF($A$9="Off","",IF('Tool interface'!$C$34=3,IF('Tool interface'!$C$19=0,0,IF('Tool interface'!$C$18=0,0,IF('Tool interface'!$C$18>=1,IF('Tool interface'!$C$19=1,(Database!$D$114/('Tool interface'!$C$18))*'CBA - BIM level 1'!$D$2,IF('Tool interface'!$C$19=2,(Database!$D$114/('Tool interface'!$C$18))*'CBA - BIM level 1'!$E$2,IF('Tool interface'!$C$19=3,(Database!$D$114/('Tool interface'!$C$18))*'CBA - BIM level 1'!$F$2,IF('Tool interface'!$C$19=4,(Database!$D$114/('Tool interface'!$C$18))*'CBA - BIM level 1'!$G$2,IF('Tool interface'!$C$19=5,(Database!$D$114/('Tool interface'!$C$18))*'CBA - BIM level 1'!$H$2,"")))))))),IF('Tool interface'!$C$19=0,0,IF('Tool interface'!$C$18=0,0,IF('Tool interface'!$C$18>=1,IF('Tool interface'!$C$19=1,(Database!$D$114/('Tool interface'!$C$18+'Tool interface'!$C$19))*'CBA - BIM level 1'!$D$2,IF('Tool interface'!$C$19=2,(Database!$D$114/('Tool interface'!$C$18+'Tool interface'!$C$19))*'CBA - BIM level 1'!$E$2,IF('Tool interface'!$C$19=3,(Database!$D$114/('Tool interface'!$C$18+'Tool interface'!$C$19))*'CBA - BIM level 1'!$F$2,IF('Tool interface'!$C$19=4,(Database!$D$114/('Tool interface'!$C$18+'Tool interface'!$C$19))*'CBA - BIM level 1'!$G$2,IF('Tool interface'!$C$19=5,(Database!$D$114/('Tool interface'!$C$18+'Tool interface'!$C$19))*'CBA - BIM level 1'!$H$2,"")))))))))) -> 0 | I9: =IF($A$9="Off","",IF('Tool interface'!$C$18>=2,(H9+$A$3*H9),"")) ->  | J9: =IF($A$9="Off","",IF('Tool interface'!$C$18>=3,(I9+$A$3*I9),"")) ->  | K9: =IF($A$9="Off","",IF('Tool interface'!$C$18>=4,(J9+$A$3*J9),"")) ->  | L9: =IF($A$9="Off","",IF('Tool interface'!$C$18>=5,(K9+$A$3*K9),"")) ->  | M9: =IF($A$9="Off","",IF('Tool interface'!$C$18>=6,(L9+$A$3*L9),"")) ->  | N9: =IF($A$9="Off","",IF('Tool interface'!$C$18>=7,(M9+$A$3*M9),"")) ->  | O9: =IF($A$9="Off","",IF('Tool interface'!$C$18>=8,(N9+$A$3*N9),"")) ->  | P9: =IF($A$9="Off","",IF('Tool interface'!$C$18>=9,(O9+$A$3*O9),"")) ->  | Q9: =IF($A$9="Off","",IF('Tool interface'!$C$18>=10,(P9+$A$3*P9),"")) -> 
A10: On | B10: Časová úspora ve fázi navrhování a provádění stavby a s tím související zkrácení délky projektu | C10: =IF($A$10="Off","",IF('Tool interface'!$C$34=3,"",IF('Tool interface'!$C$19>=1,Database!$D$107/('Tool interface'!$C$19+'Tool interface'!$C$18),""))) ->  | D10: =IF($A$10="Off","",IF('Tool interface'!$C$34=3,"",IF('Tool interface'!$C$19>=2,C10+C10*$A$3,""))) ->  | E10: =IF($A$10="Off","",IF('Tool interface'!$C$34=3,"",IF('Tool interface'!$C$19>=3,D10+D10*$A$3,""))) ->  | F10: =IF($A$10="Off","",IF('Tool interface'!$C$34=3,"",IF('Tool interface'!$C$19>=4,E10+E10*$A$3,""))) ->  | G10: =IF($A$10="Off","",IF('Tool interface'!$C$34=3,"",IF('Tool interface'!$C$19>=5,F10+F10*$A$3,""))) ->  | H10: =IF($A$10="Off","",IF('Tool interface'!$C$34=3,IF('Tool interface'!$C$19=0,0,IF('Tool interface'!$C$18=0,0,IF('Tool interface'!$C$18>=1,IF('Tool interface'!$C$19=1,(Database!$D$107/('Tool interface'!$C$18))*'CBA - BIM level 1'!$D$2,IF('Tool interface'!$C$19=2,(Database!$D$107/('Tool interface'!$C$18))*'CBA - BIM level 1'!$E$2,IF('Tool interface'!$C$19=3,(Database!$D$107/('Tool interface'!$C$18))*'CBA - BIM level 1'!$F$2,IF('Tool interface'!$C$19=4,(Database!$D$107/('Tool interface'!$C$18))*'CBA - BIM level 1'!$G$2,IF('Tool interface'!$C$19=5,(Database!$D$107/('Tool interface'!$C$18))*'CBA - BIM level 1'!$H$2,"")))))))),IF('Tool interface'!$C$19=0,0,IF('Tool interface'!$C$18=0,0,IF('Tool interface'!$C$18>=1,IF('Tool interface'!$C$19=1,(Database!$D$107/('Tool interface'!$C$18+'Tool interface'!$C$19))*'CBA - BIM level 1'!$D$2,IF('Tool interface'!$C$19=2,(Database!$D$107/('Tool interface'!$C$18+'Tool interface'!$C$19))*'CBA - BIM level 1'!$E$2,IF('Tool interface'!$C$19=3,(Database!$D$107/('Tool interface'!$C$18+'Tool interface'!$C$19))*'CBA - BIM level 1'!$F$2,IF('Tool interface'!$C$19=4,(Database!$D$107/('Tool interface'!$C$18+'Tool interface'!$C$19))*'CBA - BIM level 1'!$G$2,IF('Tool interface'!$C$19=5,(Database!$D$107/('Tool interface'!$C$18+'Tool interface'!$C$19))*'CBA - BIM level 1'!$H$2,"")))))))))) -> 0 | I10: =IF($A$10="Off","",IF('Tool interface'!$C$18>=2,H10+H10*$A$3,"")) ->  | J10: =IF($A$10="Off","",IF('Tool interface'!$C$18>=3,I10+I10*$A$3,"")) ->  | K10: =IF($A$10="Off","",IF('Tool interface'!$C$18>=4,J10+J10*$A$3,"")) ->  | L10: =IF($A$10="Off","",IF('Tool interface'!$C$18>=5,K10+K10*$A$3,"")) ->  | M10: =IF($A$10="Off","",IF('Tool interface'!$C$18>=6,L10+L10*$A$3,"")) ->  | N10: =IF($A$10="Off","",IF('Tool interface'!$C$18>=7,M10+M10*$A$3,"")) ->  | O10: =IF($A$10="Off","",IF('Tool interface'!$C$18>=8,N10+N10*$A$3,"")) ->  | P10: =IF($A$10="Off","",IF('Tool interface'!$C$18>=9,O10+O10*$A$3,"")) ->  | Q10: =IF($A$10="Off","",IF('Tool interface'!$C$18>=10,P10+P10*$A$3,"")) -> 
A11: On | B11: Snížení nákladů na práci pracovníků veřejného subjektu díky rychlejší analýze dokumentů pro správu a údržbu zařízení | R11: =IF($A$11="Off","",IF('Tool interface'!$C$19=0,0,IF('Tool interface'!$C$18=0,0,IF('Tool interface'!$C$18=1,IF('Tool interface'!$C$19=1,Database!$D$121*'CBA - BIM level 1'!$E$2,IF('Tool interface'!$C$19=2,(Database!$D$121)*'CBA - BIM level 1'!$F$2,IF('Tool interface'!$C$19=3,(Database!$D$121)*'CBA - BIM level 1'!$G$2,IF('Tool interface'!$C$19=4,(Database!$D$121)*'CBA - BIM level 1'!$H$2,IF('Tool interface'!$C$19=5,(Database!$D$121)*'CBA - BIM level 1'!$I$2,""))))),IF('Tool interface'!$C$18=2,IF('Tool interface'!$C$19=1,Database!$D$121*'CBA - BIM level 1'!$F$2,IF('Tool interface'!$C$19=2,(Database!$D$121)*'CBA - BIM level 1'!$G$2,IF('Tool interface'!$C$19=3,(Database!$D$121)*'CBA - BIM level 1'!$H$2,IF('Tool interface'!$C$19=4,(Database!$D$121)*'CBA - BIM level 1'!$I$2,IF('Tool interface'!$C$19=5,(Database!$D$121)*'CBA - BIM level 1'!$J$2,""))))),IF('Tool interface'!$C$18=3,IF('Tool interface'!$C$19=1,Database!$D$121*'CBA - BIM level 1'!$G$2,IF('Tool interface'!$C$19=2,(Database!$D$121)*'CBA - BIM level 1'!$H$2,IF('Tool interface'!$C$19=3,(Database!$D$121)*'CBA - BIM level 1'!$I$2,IF('Tool interface'!$C$19=4,(Database!$D$121)*'CBA - BIM level 1'!$J$2,IF('Tool interface'!$C$19=5,(Database!$D$121)*'CBA - BIM level 1'!$K$2,""))))),IF('Tool interface'!$C$18=4,IF('Tool interface'!$C$19=1,Database!$D$121*'CBA - BIM level 1'!$H$2,IF('Tool interface'!$C$19=2,(Database!$D$121)*'CBA - BIM level 1'!$I$2,IF('Tool interface'!$C$19=3,(Database!$D$121)*'CBA - BIM level 1'!$J$2,IF('Tool interface'!$C$19=4,(Database!$D$121)*'CBA - BIM level 1'!$K$2,IF('Tool interface'!$C$19=5,(Database!$D$121)*'CBA - BIM level 1'!$L$2,""))))),IF('Tool interface'!$C$18=5,IF('Tool interface'!$C$19=1,Database!$D$121*'CBA - BIM level 1'!$I$2,IF('Tool interface'!$C$19=2,(Database!$D$121)*'CBA - BIM level 1'!$J$2,IF('Tool interface'!$C$19=3,(Database!$D$121)*'CBA - BIM level 1'!$K$2,IF('Tool interface'!$C$19=4,(Database!$D$121)*'CBA - BIM level 1'!$L$2,IF('Tool interface'!$C$19=5,(Database!$D$121)*'CBA - BIM level 1'!$M$2,""))))),IF('Tool interface'!$C$18=6,IF('Tool interface'!$C$19=1,Database!$D$121*'CBA - BIM level 1'!$J$2,IF('Tool interface'!$C$19=2,(Database!$D$121)*'CBA - BIM level 1'!$K$2,IF('Tool interface'!$C$19=3,(Database!$D$121)*'CBA - BIM level 1'!$L$2,IF('Tool interface'!$C$19=4,(Database!$D$121)*'CBA - BIM level 1'!$M$2,IF('Tool interface'!$C$19=5,(Database!$D$121)*'CBA - BIM level 1'!$N$2,""))))),IF('Tool interface'!$C$18=7,IF('Tool interface'!$C$19=1,Database!$D$121*'CBA - BIM level 1'!$K$2,IF('Tool interface'!$C$19=2,(Database!$D$121)*'CBA - BIM level 1'!$L$2,IF('Tool interface'!$C$19=3,(Database!$D$121)*'CBA - BIM level 1'!$M$2,IF('Tool interface'!$C$19=4,(Database!$D$121)*'CBA - BIM level 1'!$N$2,IF('Tool interface'!$C$19=5,(Database!$D$121)*'CBA - BIM level 1'!$O$2,""))))),IF('Tool interface'!$C$18=8,IF('Tool interface'!$C$19=1,Database!$D$121*'CBA - BIM level 1'!$L$2,IF('Tool interface'!$C$19=2,(Database!$D$121)*'CBA - BIM level 1'!$M$2,IF('Tool interface'!$C$19=3,(Database!$D$121)*'CBA - BIM level 1'!$N$2,IF('Tool interface'!$C$19=4,(Database!$D$121)*'CBA - BIM level 1'!$O$2,IF('Tool interface'!$C$19=5,(Database!$D$121)*'CBA - BIM level 1'!$P$2,""))))),IF('Tool interface'!$C$18=9,IF('Tool interface'!$C$19=1,Database!$D$121*'CBA - BIM level 1'!$M$2,IF('Tool interface'!$C$19=2,(Database!$D$121)*'CBA - BIM level 1'!$N$2,IF('Tool interface'!$C$19=3,(Database!$D$121)*'CBA - BIM level 1'!$O$2,IF('Tool interface'!$C$19=4,(Database!$D$121)*'CBA - BIM level 1'!$P$2,IF('Tool interface'!$C$19=5,(Database!$D$121)*'CBA - BIM level 1'!$Q$2,""))))),IF('Tool interface'!$C$18=10,IF('Tool interface'!$C$19=1,Database!$D$121*'CBA - BIM level 1'!$N$2,IF('Tool interface'!$C$19=2,(Database!$D$121)*'CBA - BIM level 1'!$O$2,IF('Tool interface'!$C$19=3,(Database!$D$121)*'CBA - BIM level 1'!$P$2,IF('Tool interface'!$C$19=4,(Database!$D$121)*'CBA - BIM level 1'!$Q$2,IF('Tool interface'!$C$19=5,(Database!$D$121)*'CBA - BIM level 1'!$R$2,""))))),""))))))))))))) -> 0 | S11: =IF($A$11="Off","",R11+R11*$A$3) -> 0 | T11: 0 | U11: 0 | V11: 0 | W11: 0 | X11: 0 | Y11: 0 | Z11: 0 | AA11: 0 | AB11: 0 | AC11: 0 | AD11: 0 | AE11: 0 | AF11: 0 | AG11: 0 | AH11: 0 | AI11: 0 | AJ11: 0 | AK11: 0
A12: On | B12: Snížení nákladů díky efektivnější roční údržbě | R12: =IF($A$12="Off","",IF('Tool interface'!$C$19=0,0,IF('Tool interface'!$C$18=0,0,IF('Tool interface'!$C$18=1,IF('Tool interface'!$C$19=1,Database!$D$133*'CBA - BIM level 1'!$E$2,IF('Tool interface'!$C$19=2,(Database!$D$133)*'CBA - BIM level 1'!$F$2,IF('Tool interface'!$C$19=3,(Database!$D$133)*'CBA - BIM level 1'!$G$2,IF('Tool interface'!$C$19=4,(Database!$D$133)*'CBA - BIM level 1'!$H$2,IF('Tool interface'!$C$19=5,(Database!$D$133)*'CBA - BIM level 1'!$I$2,""))))),IF('Tool interface'!$C$18=2,IF('Tool interface'!$C$19=1,Database!$D$133*'CBA - BIM level 1'!$F$2,IF('Tool interface'!$C$19=2,(Database!$D$133)*'CBA - BIM level 1'!$G$2,IF('Tool interface'!$C$19=3,(Database!$D$133)*'CBA - BIM level 1'!$H$2,IF('Tool interface'!$C$19=4,(Database!$D$133)*'CBA - BIM level 1'!$I$2,IF('Tool interface'!$C$19=5,(Database!$D$133)*'CBA - BIM level 1'!$J$2,""))))),IF('Tool interface'!$C$18=3,IF('Tool interface'!$C$19=1,Database!$D$133*'CBA - BIM level 1'!$G$2,IF('Tool interface'!$C$19=2,(Database!$D$133)*'CBA - BIM level 1'!$H$2,IF('Tool interface'!$C$19=3,(Database!$D$133)*'CBA - BIM level 1'!$I$2,IF('Tool interface'!$C$19=4,(Database!$D$133)*'CBA - BIM level 1'!$J$2,IF('Tool interface'!$C$19=5,(Database!$D$133)*'CBA - BIM level 1'!$K$2,""))))),IF('Tool interface'!$C$18=4,IF('Tool interface'!$C$19=1,Database!$D$133*'CBA - BIM level 1'!$H$2,IF('Tool interface'!$C$19=2,(Database!$D$133)*'CBA - BIM level 1'!$I$2,IF('Tool interface'!$C$19=3,(Database!$D$133)*'CBA - BIM level 1'!$J$2,IF('Tool interface'!$C$19=4,(Database!$D$133)*'CBA - BIM level 1'!$K$2,IF('Tool interface'!$C$19=5,(Database!$D$133)*'CBA - BIM level 1'!$L$2,""))))),IF('Tool interface'!$C$18=5,IF('Tool interface'!$C$19=1,Database!$D$133*'CBA - BIM level 1'!$I$2,IF('Tool interface'!$C$19=2,(Database!$D$133)*'CBA - BIM level 1'!$J$2,IF('Tool interface'!$C$19=3,(Database!$D$133)*'CBA - BIM level 1'!$K$2,IF('Tool interface'!$C$19=4,(Database!$D$133)*'CBA - BIM level 1'!$L$2,IF('Tool interface'!$C$19=5,(Database!$D$133)*'CBA - BIM level 1'!$M$2,""))))),IF('Tool interface'!$C$18=6,IF('Tool interface'!$C$19=1,Database!$D$133*'CBA - BIM level 1'!$J$2,IF('Tool interface'!$C$19=2,(Database!$D$133)*'CBA - BIM level 1'!$K$2,IF('Tool interface'!$C$19=3,(Database!$D$133)*'CBA - BIM level 1'!$L$2,IF('Tool interface'!$C$19=4,(Database!$D$133)*'CBA - BIM level 1'!$M$2,IF('Tool interface'!$C$19=5,(Database!$D$133)*'CBA - BIM level 1'!$N$2,""))))),IF('Tool interface'!$C$18=7,IF('Tool interface'!$C$19=1,Database!$D$133*'CBA - BIM level 1'!$K$2,IF('Tool interface'!$C$19=2,(Database!$D$133)*'CBA - BIM level 1'!$L$2,IF('Tool interface'!$C$19=3,(Database!$D$133)*'CBA - BIM level 1'!$M$2,IF('Tool interface'!$C$19=4,(Database!$D$133)*'CBA - BIM level 1'!$N$2,IF('Tool interface'!$C$19=5,(Database!$D$133)*'CBA - BIM level 1'!$O$2,""))))),IF('Tool interface'!$C$18=8,IF('Tool interface'!$C$19=1,Database!$D$133*'CBA - BIM level 1'!$L$2,IF('Tool interface'!$C$19=2,(Database!$D$133)*'CBA - BIM level 1'!$M$2,IF('Tool interface'!$C$19=3,(Database!$D$133)*'CBA - BIM level 1'!$N$2,IF('Tool interface'!$C$19=4,(Database!$D$133)*'CBA - BIM level 1'!$O$2,IF('Tool interface'!$C$19=5,(Database!$D$133)*'CBA - BIM level 1'!$P$2,""))))),IF('Tool interface'!$C$18=9,IF('Tool interface'!$C$19=1,Database!$D$133*'CBA - BIM level 1'!$M$2,IF('Tool interface'!$C$19=2,(Database!$D$133)*'CBA - BIM level 1'!$N$2,IF('Tool interface'!$C$19=3,(Database!$D$133)*'CBA - BIM level 1'!$O$2,IF('Tool interface'!$C$19=4,(Database!$D$133)*'CBA - BIM level 1'!$P$2,IF('Tool interface'!$C$19=5,(Database!$D$133)*'CBA - BIM level 1'!$Q$2,""))))),IF('Tool interface'!$C$18=10,IF('Tool interface'!$C$19=1,Database!$D$133*'CBA - BIM level 1'!$N$2,IF('Tool interface'!$C$19=2,(Database!$D$133)*'CBA - BIM level 1'!$O$2,IF('Tool interface'!$C$19=3,(Database!$D$133)*'CBA - BIM level 1'!$P$2,IF('Tool interface'!$C$19=4,(Database!$D$133)*'CBA - BIM level 1'!$Q$2,IF('Tool interface'!$C$19=5,(Database!$D$133)*'CBA - BIM level 1'!$R$2,""))))),""))))))))))))) -> 0 | S12: =IF($A$12="Off","",R12+R12*$A$3) -> 0 | T12: 0 | U12: 0 | V12: 0 | W12: 0 | X12: 0 | Y12: 0 | Z12: 0 | AA12: 0 | AB12: 0 | AC12: 0 | AD12: 0 | AE12: 0 | AF12: 0 | AG12: 0 | AH12: 0 | AI12: 0 | AJ12: 0 | AK12: 0
A13: On | B13: Snížení nákladů, jež lze připsat státní správě nebo společnosti, díky lepší bezpečnosti a ochraně zdraví při práci | H13: =IF($A$13="Off","",IF('Tool interface'!$C$19=0,0,IF('Tool interface'!$C$18=0,0,IF('Tool interface'!$C$18>=1,IF('Tool interface'!$C$19=1,(Database!$D$139/'Tool interface'!$C$18)*'CBA - BIM level 1'!$D$2,IF('Tool interface'!$C$19=2,(Database!$D$139/'Tool interface'!$C$18)*'CBA - BIM level 1'!$E$2,IF('Tool interface'!$C$19=3,(Database!$D$139/'Tool interface'!$C$18)*'CBA - BIM level 1'!$F$2,IF('Tool interface'!$C$19=4,(Database!$D$139/'Tool interface'!$C$18)*'CBA - BIM level 1'!$G$2,IF('Tool interface'!$C$19=5,(Database!$D$139/'Tool interface'!$C$18)*'CBA - BIM level 1'!$H$2,""))))))))) -> 0 | I13: =IF($A$13="Off","",IF('Tool interface'!$C$18>=2,(H13+$A$3*H13),"")) ->  | J13: =IF($A$13="Off","",IF('Tool interface'!$C$18>=3,(I13+$A$3*I13),"")) ->  | K13: =IF($A$13="Off","",IF('Tool interface'!$C$18>=4,(J13+$A$3*J13),"")) ->  | L13: =IF($A$13="Off","",IF('Tool interface'!$C$18>=5,(K13+$A$3*K13),"")) ->  | M13: =IF($A$13="Off","",IF('Tool interface'!$C$18>=6,(L13+$A$3*L13),"")) ->  | N13: =IF($A$13="Off","",IF('Tool interface'!$C$18>=7,(M13+$A$3*M13),"")) ->  | O13: =IF($A$13="Off","",IF('Tool interface'!$C$18>=8,(N13+$A$3*N13),"")) ->  | P13: =IF($A$13="Off","",IF('Tool interface'!$C$18>=9,(O13+$A$3*O13),"")) ->  | Q13: =IF($A$13="Off","",IF('Tool interface'!$C$18>=10,(P13+$A$3*P13),"")) -> 
A14: On | B14: Snížení emisí CO2 plynoucí z nižších objemů odpadního materiálu | H14: =IF($A$14="Off","",IF('Tool interface'!$C$19=0,0,IF('Tool interface'!$C$18=0,0,IF('Tool interface'!$C$18>=1,IF('Tool interface'!$C$19=1,(Database!$D$144/'Tool interface'!$C$18)*'CBA - BIM level 1'!$D$2,IF('Tool interface'!$C$19=2,(Database!$D$144/'Tool interface'!$C$18)*'CBA - BIM level 1'!$E$2,IF('Tool interface'!$C$19=3,(Database!$D$144/'Tool interface'!$C$18)*'CBA - BIM level 1'!$F$2,IF('Tool interface'!$C$19=4,(Database!$D$144/'Tool interface'!$C$18)*'CBA - BIM level 1'!$G$2,IF('Tool interface'!$C$19=5,(Database!$D$144/'Tool interface'!$C$18)*'CBA - BIM level 1'!$H$2,""))))))))) -> 0 | I14: =IF($A$14="Off","",IF('Tool interface'!$C$18>=2,(H14+$A$3*H14),"")) ->  | J14: =IF($A$14="Off","",IF('Tool interface'!$C$18>=3,(I14+$A$3*I14),"")) ->  | K14: =IF($A$14="Off","",IF('Tool interface'!$C$18>=4,(J14+$A$3*J14),"")) ->  | L14: =IF($A$14="Off","",IF('Tool interface'!$C$18>=5,(K14+$A$3*K14),"")) ->  | M14: =IF($A$14="Off","",IF('Tool interface'!$C$18>=6,(L14+$A$3*L14),"")) ->  | N14: =IF($A$14="Off","",IF('Tool interface'!$C$18>=7,(M14+$A$3*M14),"")) ->  | O14: =IF($A$14="Off","",IF('Tool interface'!$C$18>=8,(N14+$A$3*N14),"")) ->  | P14: =IF($A$14="Off","",IF('Tool interface'!$C$18>=9,(O14+$A$3*O14),"")) ->  | Q14: =IF($A$14="Off","",IF('Tool interface'!$C$18>=10,(P14+$A$3*P14),"")) -> 
B15: Celkové přínosy | C15: =+SUM(C7:C14) -> 0 | D15: 0 | E15: 0 | F15: 0 | G15: 0 | H15: 0 | I15: 0 | J15: 0 | K15: 0 | L15: 0 | M15: 0 | N15: 0 | O15: 0 | P15: 0 | Q15: 0 | R15: 0 | S15: 0 | T15: 0 | U15: 0 | V15: 0 | W15: 0 | X15: 0 | Y15: 0 | Z15: 0 | AA15: 0 | AB15: 0 | AC15: 0 | AD15: 0 | AE15: 0 | AF15: 0 | AG15: 0 | AH15: 0 | AI15: 0 | AJ15: 0 | AK15: 0
B16: Celkové přínosy (upraveno pro vzorec) | C16: =+C15 -> 0 | D16: =+D15 -> 0 | E16: =+IF(E15<>0,E15,"") -> 
B17: Celkové přínosy pro realizaci | C17: =IF(C16<>"",C16,) -> 0 | D17: =+IF('Tool interface'!$C$19=1,'CBA - BIM level 1'!H16,'CBA - BIM level 1'!D16) -> 0 | E17: =IF(E16<>"",E16,IF('Tool interface'!$C$19=2,'CBA - BIM level 1'!$H$16,IF(AND('Tool interface'!$C$19=1,'Tool interface'!$C$18=1),R16,IF(AND('Tool interface'!$C$19=1,'Tool interface'!$C$18>1),I16,)))) -> 0 | F17: =IF(F16<>"",F16,IF('Tool interface'!$C$19=3,'CBA - BIM level 1'!$H$16,IF(AND('Tool interface'!$C$19=2,'Tool interface'!$C$18=1),$R$16,IF(AND('Tool interface'!$C$19=2,'Tool interface'!$C$18>1),$I$16,IF(AND('Tool interface'!$C$19=1,'Tool interface'!$C$18=1),$S$16,IF(AND('Tool interface'!$C$19=1,'Tool interface'!$C$18=2),$R$16,IF(AND('Tool interface'!$C$19=1,'Tool interface'!$C$18>2),$J$16,))))))) -> 0 | G17: =IF(G16<>"",G16,IF('Tool interface'!$C$19=4,$H$16,IF(AND('Tool interface'!$C$19=3,'Tool interface'!$C$18=1),$R$16,IF(AND('Tool interface'!$C$19=3,'Tool interface'!$C$18>1),$I$16,IF(AND('Tool interface'!$C$19=2,'Tool interface'!$C$18=1),$S$16,IF(AND('Tool interface'!$C$19=2,'Tool interface'!$C$18=2),$R$16,IF(AND('Tool interface'!$C$19=2,'Tool interface'!$C$18>=3),$J$16,IF(AND('Tool interface'!$C$19=1,'Tool interface'!$C$18=1),$T$16,IF(AND('Tool interface'!$C$19=1,'Tool interface'!$C$18=2),$S$16,IF(AND('Tool interface'!$C$19=1,'Tool interface'!$C$18=3),$R$16,IF(AND('Tool interface'!$C$19=1,'Tool interface'!$C$18>3),$K$16,))))))))))) -> 0 | H17: =+IF('Tool interface'!$C$19=5,'CBA - BIM level 1'!$H$16,IF(AND('Tool interface'!$C$19=4,'Tool interface'!$C$18=1),'CBA - BIM level 1'!$R$16,IF(AND('Tool interface'!$C$19=4,'Tool interface'!$C$18>1),'CBA - BIM level 1'!$I$16,IF(AND('Tool interface'!$C$19=3,'Tool interface'!$C$18=1),'CBA - BIM level 1'!$S$16,IF(AND('Tool interface'!$C$19=3,'Tool interface'!$C$18=2),'CBA - BIM level 1'!$R$16,IF(AND('Tool interface'!$C$19=3,'Tool interface'!$C$18>=3),'CBA - BIM level 1'!$J$16,IF(AND('Tool interface'!$C$19=2,'Tool interface'!$C$18=1),'CBA - BIM level 1'!$T$16,IF(AND('Tool interface'!$C$19=2,'Tool interface'!$C$18=2),'CBA - BIM level 1'!$S$16,IF(AND('Tool interface'!$C$19=2,'Tool interface'!$C$18=3),'CBA - BIM level 1'!$R$16,IF(AND('Tool interface'!$C$19=2,'Tool interface'!$C$18>3),'CBA - BIM level 1'!$K$16,IF(AND('Tool interface'!$C$19=1,'Tool interface'!$C$18=1),'CBA - BIM level 1'!$U$16,IF(AND('Tool interface'!$C$19=1,'Tool interface'!$C$18=2),'CBA - BIM level 1'!$T$16,IF(AND('Tool interface'!$C$19=1,'Tool interface'!$C$18=3),'CBA - BIM level 1'!$S$16,IF(AND('Tool interface'!$C$19=1,'Tool interface'!$C$18=4),'CBA - BIM level 1'!$R$16,IF(AND('Tool interface'!$C$19=1,'Tool interface'!$C$18>4),'CBA - BIM level 1'!$L$16,))))))))))))))) -> 0 | I17: =+IF(AND('Tool interface'!$C$19=5,'Tool interface'!$C$18=1),'CBA - BIM level 1'!$R$16,IF(AND('Tool interface'!$C$19=5,'Tool interface'!$C$18>=2),'CBA - BIM level 1'!$I$16,IF(AND('Tool interface'!$C$19=4,'Tool interface'!$C$18=1),'CBA - BIM level 1'!$S$16,IF(AND('Tool interface'!$C$19=4,'Tool interface'!$C$18=2),'CBA - BIM level 1'!$R$16,IF(AND('Tool interface'!$C$19=4,'Tool interface'!$C$18>=3),'CBA - BIM level 1'!$J$16,IF(AND('Tool interface'!$C$19=3,'Tool interface'!$C$18=1),'CBA - BIM level 1'!$T$16,IF(AND('Tool interface'!$C$19=3,'Tool interface'!$C$18=2),'CBA - BIM level 1'!$S$16,IF(AND('Tool interface'!$C$19=3,'Tool interface'!$C$18=3),'CBA - BIM level 1'!$R$16,IF(AND('Tool interface'!$C$19=3,'Tool interface'!$C$18>=4),'CBA - BIM level 1'!$K$16,IF(AND('Tool interface'!$C$19=2,'Tool interface'!$C$18=1),'CBA - BIM level 1'!$U$16,IF(AND('Tool interface'!$C$19=2,'Tool interface'!$C$18=2),'CBA - BIM level 1'!$T$16,IF(AND('Tool interface'!$C$19=2,'Tool interface'!$C$18=3),'CBA - BIM level 1'!$S$16,IF(AND('Tool interface'!$C$19=2,'Tool interface'!$C$18=4),'CBA - BIM level 1'!$R$16,IF(AND('Tool interface'!$C$19=2,'Tool interface'!$C$18>=5),'CBA - BIM level 1'!$L$16,IF(AND('Tool interface'!$C$19=1,'Tool interface'!$C$18=1),'CBA - BIM level 1'!$V$16,IF(AND('Tool interface'!$C$19=1,'Tool interface'!$C$18=2),'CBA - BIM level 1'!$U$16,IF(AND('Tool interface'!$C$19=1,'Tool interface'!$C$18=3),'CBA - BIM level 1'!$T$16,IF(AND('Tool interface'!$C$19=1,'Tool interface'!$C$18=4),'CBA - BIM level 1'!$S$16,IF(AND('Tool interface'!$C$19=1,'Tool interface'!$C$18=5),'CBA - BIM level 1'!$R$16,IF(AND('Tool interface'!$C$19=1,'Tool interface'!$C$18>=6),'CBA - BIM level 1'!$M$16,)))))))))))))))))))) -> 0 | J17: =+IF(AND('Tool interface'!$C$19=5,'Tool interface'!$C$18=1),'CBA - BIM level 1'!S16,IF(AND('Tool interface'!$C$19=5,'Tool interface'!$C$18=2),'CBA - BIM level 1'!R16,IF(AND('Tool interface'!$C$19=5,'Tool interface'!$C$18>=3),J16,IF(AND('Tool interface'!$C$19=4,'Tool interface'!$C$18=1),'CBA - BIM level 1'!T16,IF(AND('Tool interface'!$C$19=4,'Tool interface'!$C$18=2),'CBA - BIM level 1'!S16,IF(AND('Tool interface'!$C$19=4,'Tool interface'!$C$18=3),'CBA - BIM level 1'!R16,IF(AND('Tool interface'!$C$19=4,'Tool interface'!$C$18>=4),K16,IF(AND('Tool interface'!$C$19=3,'Tool interface'!$C$18=1),'CBA - BIM level 1'!U16,IF(AND('Tool interface'!$C$19=3,'Tool interface'!$C$18=2),'CBA - BIM level 1'!T16,IF(AND('Tool interface'!$C$19=3,'Tool interface'!$C$18=3),'CBA - BIM level 1'!S16,IF(AND('Tool interface'!$C$19=3,'Tool interface'!$C$18=4),'CBA - BIM level 1'!R16,IF(AND('Tool interface'!$C$19=3,'Tool interface'!$C$18>=5),L16,IF(AND('Tool interface'!$C$19=2,'Tool interface'!$C$18=1),'CBA - BIM level 1'!V16,IF(AND('Tool interface'!$C$19=2,'Tool interface'!$C$18=2),'CBA - BIM level 1'!U16,IF(AND('Tool interface'!$C$19=2,'Tool interface'!$C$18=3),'CBA - BIM level 1'!T16,IF(AND('Tool interface'!$C$19=2,'Tool interface'!$C$18=4),'CBA - BIM level 1'!S16,IF(AND('Tool interface'!$C$19=2,'Tool interface'!$C$18=5),'CBA - BIM level 1'!R16,IF(AND('Tool interface'!$C$19=2,'Tool interface'!$C$18>=6),M16,IF(AND('Tool interface'!$C$19=1,'Tool interface'!$C$18=1),'CBA - BIM level 1'!W16,IF(AND('Tool interface'!$C$19=1,'Tool interface'!$C$18=2),'CBA - BIM level 1'!V16,IF(AND('Tool interface'!$C$19=1,'Tool interface'!$C$18=3),'CBA - BIM level 1'!U16,IF(AND('Tool interface'!$C$19=1,'Tool interface'!$C$18=4),'CBA - BIM level 1'!T16,IF(AND('Tool interface'!$C$19=1,'Tool interface'!$C$18=5),'CBA - BIM level 1'!S16,IF(AND('Tool interface'!$C$19=1,'Tool interface'!$C$18=6),R16,IF(AND('Tool interface'!$C$19=1,'Tool interface'!$C$18>=7),N16,))))))))))))))))))))))))) -> 0 | K17: =+IF(AND('Tool interface'!$C$19=5,'Tool interface'!$C$18=1),'CBA - BIM level 1'!T16,IF(AND('Tool interface'!$C$19=5,'Tool interface'!$C$18=2),'CBA - BIM level 1'!S16,IF(AND('Tool interface'!$C$19=5,'Tool interface'!$C$18=3),R16,IF(AND('Tool interface'!$C$19=5,'Tool interface'!$C$18>=4),K16,IF(AND('Tool interface'!$C$19=4,'Tool interface'!$C$18=1),'CBA - BIM level 1'!U16,IF(AND('Tool interface'!$C$19=4,'Tool interface'!$C$18=2),'CBA - BIM level 1'!T16,IF(AND('Tool interface'!$C$19=4,'Tool interface'!$C$18=3),'CBA - BIM level 1'!S16,IF(AND('Tool interface'!$C$19=4,'Tool interface'!$C$18=4),R16,IF(AND('Tool interface'!$C$19=4,'Tool interface'!$C$18>=5),L$16,IF(AND('Tool interface'!$C$19=3,'Tool interface'!$C$18=1),'CBA - BIM level 1'!V16,IF(AND('Tool interface'!$C$19=3,'Tool interface'!$C$18=2),'CBA - BIM level 1'!U16,IF(AND('Tool interface'!$C$19=3,'Tool interface'!$C$18=3),'CBA - BIM level 1'!T16,IF(AND('Tool interface'!$C$19=3,'Tool interface'!$C$18=4),'CBA - BIM level 1'!S16,IF(AND('Tool interface'!$C$19=3,'Tool interface'!$C$18=5),R16,IF(AND('Tool interface'!$C$19=3,'Tool interface'!$C$18>=6),M16,IF(AND('Tool interface'!$C$19=2,'Tool interface'!$C$18=1),'CBA - BIM level 1'!W16,IF(AND('Tool interface'!$C$19=2,'Tool interface'!$C$18=2),'CBA - BIM level 1'!V16,IF(AND('Tool interface'!$C$19=2,'Tool interface'!$C$18=3),'CBA - BIM level 1'!U16,IF(AND('Tool interface'!$C$19=2,'Tool interface'!$C$18=4),'CBA - BIM level 1'!T16,IF(AND('Tool interface'!$C$19=2,'Tool interface'!$C$18=5),'CBA - BIM level 1'!S16,IF(AND('Tool interface'!$C$19=2,'Tool interface'!$C$18=6),R16,IF(AND('Tool interface'!$C$19=2,'Tool interface'!$C$18>=7),N16,IF(AND('Tool interface'!$C$19=1,'Tool interface'!$C$18=1),'CBA - BIM level 1'!X16,IF(AND('Tool interface'!$C$19=1,'Tool interface'!$C$18=2),'CBA - BIM level 1'!W16,IF(AND('Tool interface'!$C$19=1,'Tool interface'!$C$18=3),'CBA - BIM level 1'!V16,IF(AND('Tool interface'!$C$19=1,'Tool interface'!$C$18=4),'CBA - BIM level 1'!U16,IF(AND('Tool interface'!$C$19=1,'Tool interface'!$C$18=5),'CBA - BIM level 1'!T16,IF(AND('Tool interface'!$C$19=1,'Tool interface'!$C$18=6),S16,IF(AND('Tool interface'!$C$19=1,'Tool interface'!$C$18=7),R16,IF(AND('Tool interface'!$C$19=1,'Tool interface'!$C$18>=8),O16,)))))))))))))))))))))))))))))) -> 0 | L17: =+IF(AND('Tool interface'!$C$19=5,'Tool interface'!$C$18=1),'CBA - BIM level 1'!U16,IF(AND('Tool interface'!$C$19=5,'Tool interface'!$C$18=2),'CBA - BIM level 1'!T16,IF(AND('Tool interface'!$C$19=5,'Tool interface'!$C$18=3),S16,IF(AND('Tool interface'!$C$19=5,'Tool interface'!$C$18=4),R16,IF(AND('Tool interface'!$C$19=5,'Tool interface'!$C$18>=5),L16,IF(AND('Tool interface'!$C$19=4,'Tool interface'!$C$18=1),'CBA - BIM level 1'!V16,IF(AND('Tool interface'!$C$19=4,'Tool interface'!$C$18=2),'CBA - BIM level 1'!U16,IF(AND('Tool interface'!$C$19=4,'Tool interface'!$C$18=3),'CBA - BIM level 1'!T16,IF(AND('Tool interface'!$C$19=4,'Tool interface'!$C$18=4),S16,IF(AND('Tool interface'!$C$19=4,'Tool interface'!$C$18=5),R16,IF(AND('Tool interface'!$C$19=4,'Tool interface'!$C$18>=6),M16,IF(AND('Tool interface'!$C$19=3,'Tool interface'!$C$18=1),'CBA - BIM level 1'!W16,IF(AND('Tool interface'!$C$19=3,'Tool interface'!$C$18=2),'CBA - BIM level 1'!V16,IF(AND('Tool interface'!$C$19=3,'Tool interface'!$C$18=3),'CBA - BIM level 1'!U16,IF(AND('Tool interface'!$C$19=3,'Tool interface'!$C$18=4),'CBA - BIM level 1'!T16,IF(AND('Tool interface'!$C$19=3,'Tool interface'!$C$18=5),S16,IF(AND('Tool interface'!$C$19=3,'Tool interface'!$C$18=6),R16,IF(AND('Tool interface'!$C$19=3,'Tool interface'!$C$18>=7),N16,IF(AND('Tool interface'!$C$19=2,'Tool interface'!$C$18=1),'CBA - BIM level 1'!X16,IF(AND('Tool interface'!$C$19=2,'Tool interface'!$C$18=2),'CBA - BIM level 1'!W16,IF(AND('Tool interface'!$C$19=2,'Tool interface'!$C$18=3),'CBA - BIM level 1'!V16,IF(AND('Tool interface'!$C$19=2,'Tool interface'!$C$18=4),'CBA - BIM level 1'!U16,IF(AND('Tool interface'!$C$19=2,'Tool interface'!$C$18=5),'CBA - BIM level 1'!T16,IF(AND('Tool interface'!$C$19=2,'Tool interface'!$C$18=6),S16,IF(AND('Tool interface'!$C$19=2,'Tool interface'!$C$18=7),R16,IF(AND('Tool interface'!$C$19=2,'Tool interface'!$C$18>=8),O16,IF(AND('Tool interface'!$C$19=1,'Tool interface'!$C$18=1),'CBA - BIM level 1'!Y16,IF(AND('Tool interface'!$C$19=1,'Tool interface'!$C$18=2),'CBA - BIM level 1'!X16,IF(AND('Tool interface'!$C$19=1,'Tool interface'!$C$18=3),'CBA - BIM level 1'!W16,IF(AND('Tool interface'!$C$19=1,'Tool interface'!$C$18=4),'CBA - BIM level 1'!V16,IF(AND('Tool interface'!$C$19=1,'Tool interface'!$C$18=5),'CBA - BIM level 1'!U16,IF(AND('Tool interface'!$C$19=1,'Tool interface'!$C$18=6),T16,IF(AND('Tool interface'!$C$19=1,'Tool interface'!$C$18=7),S16,IF(AND('Tool interface'!$C$19=1,'Tool interface'!$C$18=8),R16,IF(AND('Tool interface'!$C$19=1,'Tool interface'!$C$18>=9),P16,))))))))))))))))))))))))))))))))))) -> 0 | M17: =+IF(AND('Tool interface'!$C$19=5,'Tool interface'!$C$18=1),'CBA - BIM level 1'!V16,IF(AND('Tool interface'!$C$19=5,'Tool interface'!$C$18=2),'CBA - BIM level 1'!U16,IF(AND('Tool interface'!$C$19=5,'Tool interface'!$C$18=3),T16,IF(AND('Tool interface'!$C$19=5,'Tool interface'!$C$18=4),S16,IF(AND('Tool interface'!$C$19=5,'Tool interface'!$C$18=5),R16,IF(AND('Tool interface'!$C$19=5,'Tool interface'!$C$18>=6),M16,IF(AND('Tool interface'!$C$19=4,'Tool interface'!$C$18=1),'CBA - BIM level 1'!W16,IF(AND('Tool interface'!$C$19=4,'Tool interface'!$C$18=2),'CBA - BIM level 1'!V16,IF(AND('Tool interface'!$C$19=4,'Tool interface'!$C$18=3),'CBA - BIM level 1'!U16,IF(AND('Tool interface'!$C$19=4,'Tool interface'!$C$18=4),T16,IF(AND('Tool interface'!$C$19=4,'Tool interface'!$C$18=5),S16,IF(AND('Tool interface'!$C$19=4,'Tool interface'!$C$18=6),R16,IF(AND('Tool interface'!$C$19=4,'Tool interface'!$C$18>=7),N16,IF(AND('Tool interface'!$C$19=3,'Tool interface'!$C$18=1),'CBA - BIM level 1'!X16,IF(AND('Tool interface'!$C$19=3,'Tool interface'!$C$18=2),'CBA - BIM level 1'!W16,IF(AND('Tool interface'!$C$19=3,'Tool interface'!$C$18=3),'CBA - BIM level 1'!V16,IF(AND('Tool interface'!$C$19=3,'Tool interface'!$C$18=4),'CBA - BIM level 1'!U16,IF(AND('Tool interface'!$C$19=3,'Tool interface'!$C$18=5),T16,IF(AND('Tool interface'!$C$19=3,'Tool interface'!$C$18=6),S16,IF(AND('Tool interface'!$C$19=3,'Tool interface'!$C$18=7),R16,IF(AND('Tool interface'!$C$19=3,'Tool interface'!$C$18>=8),O16,IF(AND('Tool interface'!$C$19=2,'Tool interface'!$C$18=1),'CBA - BIM level 1'!Y16,IF(AND('Tool interface'!$C$19=2,'Tool interface'!$C$18=2),'CBA - BIM level 1'!X16,IF(AND('Tool interface'!$C$19=2,'Tool interface'!$C$18=3),'CBA - BIM level 1'!W16,IF(AND('Tool interface'!$C$19=2,'Tool interface'!$C$18=4),'CBA - BIM level 1'!V16,IF(AND('Tool interface'!$C$19=2,'Tool interface'!$C$18=5),'CBA - BIM level 1'!U16,IF(AND('Tool interface'!$C$19=2,'Tool interface'!$C$18=6),T16,IF(AND('Tool interface'!$C$19=2,'Tool interface'!$C$18=7),S16,IF(AND('Tool interface'!$C$19=2,'Tool interface'!$C$18=8),R16,IF(AND('Tool interface'!$C$19=2,'Tool interface'!$C$18>=9),P16,IF(AND('Tool interface'!$C$19=1,'Tool interface'!$C$18=1),'CBA - BIM level 1'!Z16,IF(AND('Tool interface'!$C$19=1,'Tool interface'!$C$18=2),'CBA - BIM level 1'!Y16,IF(AND('Tool interface'!$C$19=1,'Tool interface'!$C$18=3),'CBA - BIM level 1'!X16,IF(AND('Tool interface'!$C$19=1,'Tool interface'!$C$18=4),'CBA - BIM level 1'!W16,IF(AND('Tool interface'!$C$19=1,'Tool interface'!$C$18=5),'CBA - BIM level 1'!V16,IF(AND('Tool interface'!$C$19=1,'Tool interface'!$C$18=6),U16,IF(AND('Tool interface'!$C$19=1,'Tool interface'!$C$18=7),T16,IF(AND('Tool interface'!$C$19=1,'Tool interface'!$C$18=8),S16,IF(AND('Tool interface'!$C$19=1,'Tool interface'!$C$18=9),R16,IF(AND('Tool interface'!$C$19=1,'Tool interface'!$C$18>=10),Q16,)))))))))))))))))))))))))))))))))))))))) -> 0 | N17: =+IF(AND('Tool interface'!$C$19=5,'Tool interface'!$C$18=1),'CBA - BIM level 1'!W16,IF(AND('Tool interface'!$C$19=5,'Tool interface'!$C$18=2),'CBA - BIM level 1'!V16,IF(AND('Tool interface'!$C$19=5,'Tool interface'!$C$18=3),U16,IF(AND('Tool interface'!$C$19=5,'Tool interface'!$C$18=4),T16,IF(AND('Tool interface'!$C$19=5,'Tool interface'!$C$18=5),S16,IF(AND('Tool interface'!$C$19=5,'Tool interface'!$C$18=6),R16,IF(AND('Tool interface'!$C$19=5,'Tool interface'!$C$18>=7),N16,IF(AND('Tool interface'!$C$19=4,'Tool interface'!$C$18=1),'CBA - BIM level 1'!X16,IF(AND('Tool interface'!$C$19=4,'Tool interface'!$C$18=2),'CBA - BIM level 1'!W16,IF(AND('Tool interface'!$C$19=4,'Tool interface'!$C$18=3),'CBA - BIM level 1'!V16,IF(AND('Tool interface'!$C$19=4,'Tool interface'!$C$18=4),U16,IF(AND('Tool interface'!$C$19=4,'Tool interface'!$C$18=5),T16,IF(AND('Tool interface'!$C$19=4,'Tool interface'!$C$18=6),S16,IF(AND('Tool interface'!$C$19=4,'Tool interface'!$C$18=7),R16,IF(AND('Tool interface'!$C$19=4,'Tool interface'!$C$18>=8),O16,IF(AND('Tool interface'!$C$19=3,'Tool interface'!$C$18=1),'CBA - BIM level 1'!Y16,IF(AND('Tool interface'!$C$19=3,'Tool interface'!$C$18=2),'CBA - BIM level 1'!X16,IF(AND('Tool interface'!$C$19=3,'Tool interface'!$C$18=3),'CBA - BIM level 1'!W16,IF(AND('Tool interface'!$C$19=3,'Tool interface'!$C$18=4),'CBA - BIM level 1'!V16,IF(AND('Tool interface'!$C$19=3,'Tool interface'!$C$18=5),U16,IF(AND('Tool interface'!$C$19=3,'Tool interface'!$C$18=6),T16,IF(AND('Tool interface'!$C$19=3,'Tool interface'!$C$18=7),S16,IF(AND('Tool interface'!$C$19=3,'Tool interface'!$C$18=8),R16,IF(AND('Tool interface'!$C$19=3,'Tool interface'!$C$18>=9),P16,IF(AND('Tool interface'!$C$19=2,'Tool interface'!$C$18=1),'CBA - BIM level 1'!Z16,IF(AND('Tool interface'!$C$19=2,'Tool interface'!$C$18=2),'CBA - BIM level 1'!Y16,IF(AND('Tool interface'!$C$19=2,'Tool interface'!$C$18=3),'CBA - BIM level 1'!X16,IF(AND('Tool interface'!$C$19=2,'Tool interface'!$C$18=4),'CBA - BIM level 1'!W16,IF(AND('Tool interface'!$C$19=2,'Tool interface'!$C$18=5),'CBA - BIM level 1'!V16,IF(AND('Tool interface'!$C$19=2,'Tool interface'!$C$18=6),U16,IF(AND('Tool interface'!$C$19=2,'Tool interface'!$C$18=7),T16,IF(AND('Tool interface'!$C$19=2,'Tool interface'!$C$18=8),S16,IF(AND('Tool interface'!$C$19=2,'Tool interface'!$C$18=9),R16,IF(AND('Tool interface'!$C$19=2,'Tool interface'!$C$18>=10),Q16,IF(AND('Tool interface'!$C$19=1,'Tool interface'!$C$18=1),'CBA - BIM level 1'!AA16,IF(AND('Tool interface'!$C$19=1,'Tool interface'!$C$18=2),'CBA - BIM level 1'!Z16,IF(AND('Tool interface'!$C$19=1,'Tool interface'!$C$18=3),'CBA - BIM level 1'!Y16,IF(AND('Tool interface'!$C$19=1,'Tool interface'!$C$18=4),'CBA - BIM level 1'!X16,IF(AND('Tool interface'!$C$19=1,'Tool interface'!$C$18=5),'CBA - BIM level 1'!W16,IF(AND('Tool interface'!$C$19=1,'Tool interface'!$C$18=6),V16,IF(AND('Tool interface'!$C$19=1,'Tool interface'!$C$18=7),U16,IF(AND('Tool interface'!$C$19=1,'Tool interface'!$C$18=8),T16,IF(AND('Tool interface'!$C$19=1,'Tool interface'!$C$18=9),S16,IF(AND('Tool interface'!$C$19=1,'Tool interface'!$C$18=10),R16,)))))))))))))))))))))))))))))))))))))))))))) -> 0 | O17: =+IF(AND('Tool interface'!$C$19=5,'Tool interface'!$C$18=1),'CBA - BIM level 1'!X16,IF(AND('Tool interface'!$C$19=5,'Tool interface'!$C$18=2),'CBA - BIM level 1'!W16,IF(AND('Tool interface'!$C$19=5,'Tool interface'!$C$18=3),V16,IF(AND('Tool interface'!$C$19=5,'Tool interface'!$C$18=4),U16,IF(AND('Tool interface'!$C$19=5,'Tool interface'!$C$18=5),T16,IF(AND('Tool interface'!$C$19=5,'Tool interface'!$C$18=6),S16,IF(AND('Tool interface'!$C$19=5,'Tool interface'!$C$18=7),R16,IF(AND('Tool interface'!$C$19=5,'Tool interface'!$C$18>=8),O16,IF(AND('Tool interface'!$C$19=4,'Tool interface'!$C$18=1),'CBA - BIM level 1'!Y16,IF(AND('Tool interface'!$C$19=4,'Tool interface'!$C$18=2),'CBA - BIM level 1'!X16,IF(AND('Tool interface'!$C$19=4,'Tool interface'!$C$18=3),'CBA - BIM level 1'!W16,IF(AND('Tool interface'!$C$19=4,'Tool interface'!$C$18=4),V16,IF(AND('Tool interface'!$C$19=4,'Tool interface'!$C$18=5),U16,IF(AND('Tool interface'!$C$19=4,'Tool interface'!$C$18=6),T16,IF(AND('Tool interface'!$C$19=4,'Tool interface'!$C$18=7),S16,IF(AND('Tool interface'!$C$19=4,'Tool interface'!$C$18=8),R16,IF(AND('Tool interface'!$C$19=4,'Tool interface'!$C$18>=9),P16,IF(AND('Tool interface'!$C$19=3,'Tool interface'!$C$18=1),'CBA - BIM level 1'!Z16,IF(AND('Tool interface'!$C$19=3,'Tool interface'!$C$18=2),'CBA - BIM level 1'!Y16,IF(AND('Tool interface'!$C$19=3,'Tool interface'!$C$18=3),'CBA - BIM level 1'!X16,IF(AND('Tool interface'!$C$19=3,'Tool interface'!$C$18=4),'CBA - BIM level 1'!W16,IF(AND('Tool interface'!$C$19=3,'Tool interface'!$C$18=5),V16,IF(AND('Tool interface'!$C$19=3,'Tool interface'!$C$18=6),U16,IF(AND('Tool interface'!$C$19=3,'Tool interface'!$C$18=7),T16,IF(AND('Tool interface'!$C$19=3,'Tool interface'!$C$18=8),S16,IF(AND('Tool interface'!$C$19=3,'Tool interface'!$C$18=9),R16,IF(AND('Tool interface'!$C$19=3,'Tool interface'!$C$18=10),Q16,IF(AND('Tool interface'!$C$19=2,'Tool interface'!$C$18=1),'CBA - BIM level 1'!AA16,IF(AND('Tool interface'!$C$19=2,'Tool interface'!$C$18=2),'CBA - BIM level 1'!Z16,IF(AND('Tool interface'!$C$19=2,'Tool interface'!$C$18=3),'CBA - BIM level 1'!Y16,IF(AND('Tool interface'!$C$19=2,'Tool interface'!$C$18=4),'CBA - BIM level 1'!X16,IF(AND('Tool interface'!$C$19=2,'Tool interface'!$C$18=5),'CBA - BIM level 1'!W16,IF(AND('Tool interface'!$C$19=2,'Tool interface'!$C$18=6),V16,IF(AND('Tool interface'!$C$19=2,'Tool interface'!$C$18=7),U16,IF(AND('Tool interface'!$C$19=2,'Tool interface'!$C$18=8),T16,IF(AND('Tool interface'!$C$19=2,'Tool interface'!$C$18=9),S16,IF(AND('Tool interface'!$C$19=2,'Tool interface'!$C$18=10),R16,IF(AND('Tool interface'!$C$19=1,'Tool interface'!$C$18=1),'CBA - BIM level 1'!AB16,IF(AND('Tool interface'!$C$19=1,'Tool interface'!$C$18=2),'CBA - BIM level 1'!AA16,IF(AND('Tool interface'!$C$19=1,'Tool interface'!$C$18=3),'CBA - BIM level 1'!Z16,IF(AND('Tool interface'!$C$19=1,'Tool interface'!$C$18=4),'CBA - BIM level 1'!Y16,IF(AND('Tool interface'!$C$19=1,'Tool interface'!$C$18=5),'CBA - BIM level 1'!X16,IF(AND('Tool interface'!$C$19=1,'Tool interface'!$C$18=6),W16,IF(AND('Tool interface'!$C$19=1,'Tool interface'!$C$18=7),V16,IF(AND('Tool interface'!$C$19=1,'Tool interface'!$C$18=8),U16,IF(AND('Tool interface'!$C$19=1,'Tool interface'!$C$18=9),T16,IF(AND('Tool interface'!$C$19=1,'Tool interface'!$C$18=10),S16,))))))))))))))))))))))))))))))))))))))))))))))) -> 0 | P17: =+IF(AND('Tool interface'!$C$19=5,'Tool interface'!$C$18=1),'CBA - BIM level 1'!Y16,IF(AND('Tool interface'!$C$19=5,'Tool interface'!$C$18=2),'CBA - BIM level 1'!X16,IF(AND('Tool interface'!$C$19=5,'Tool interface'!$C$18=3),W16,IF(AND('Tool interface'!$C$19=5,'Tool interface'!$C$18=4),V16,IF(AND('Tool interface'!$C$19=5,'Tool interface'!$C$18=5),U16,IF(AND('Tool interface'!$C$19=5,'Tool interface'!$C$18=6),T16,IF(AND('Tool interface'!$C$19=5,'Tool interface'!$C$18=7),S16,IF(AND('Tool interface'!$C$19=5,'Tool interface'!$C$18=8),R16,IF(AND('Tool interface'!$C$19=5,'Tool interface'!$C$18>=9),P16,IF(AND('Tool interface'!$C$19=4,'Tool interface'!$C$18=1),'CBA - BIM level 1'!Z16,IF(AND('Tool interface'!$C$19=4,'Tool interface'!$C$18=2),'CBA - BIM level 1'!Y16,IF(AND('Tool interface'!$C$19=4,'Tool interface'!$C$18=3),'CBA - BIM level 1'!X16,IF(AND('Tool interface'!$C$19=4,'Tool interface'!$C$18=4),W16,IF(AND('Tool interface'!$C$19=4,'Tool interface'!$C$18=5),V16,IF(AND('Tool interface'!$C$19=4,'Tool interface'!$C$18=6),U16,IF(AND('Tool interface'!$C$19=4,'Tool interface'!$C$18=7),T16,IF(AND('Tool interface'!$C$19=4,'Tool interface'!$C$18=8),S16,IF(AND('Tool interface'!$C$19=4,'Tool interface'!$C$18=9),R16,IF(AND('Tool interface'!$C$19=4,'Tool interface'!$C$18=10),Q16,IF(AND('Tool interface'!$C$19=3,'Tool interface'!$C$18=1),'CBA - BIM level 1'!AA16,IF(AND('Tool interface'!$C$19=3,'Tool interface'!$C$18=2),'CBA - BIM level 1'!Z16,IF(AND('Tool interface'!$C$19=3,'Tool interface'!$C$18=3),'CBA - BIM level 1'!Y16,IF(AND('Tool interface'!$C$19=3,'Tool interface'!$C$18=4),'CBA - BIM level 1'!X16,IF(AND('Tool interface'!$C$19=3,'Tool interface'!$C$18=5),W16,IF(AND('Tool interface'!$C$19=3,'Tool interface'!$C$18=6),V16,IF(AND('Tool interface'!$C$19=3,'Tool interface'!$C$18=7),U16,IF(AND('Tool interface'!$C$19=3,'Tool interface'!$C$18=8),T16,IF(AND('Tool interface'!$C$19=3,'Tool interface'!$C$18=9),S16,IF(AND('Tool interface'!$C$19=3,'Tool interface'!$C$18=10),R16,IF(AND('Tool interface'!$C$19=2,'Tool interface'!$C$18=1),'CBA - BIM level 1'!AB16,IF(AND('Tool interface'!$C$19=2,'Tool interface'!$C$18=2),'CBA - BIM level 1'!AA16,IF(AND('Tool interface'!$C$19=2,'Tool interface'!$C$18=3),'CBA - BIM level 1'!Z16,IF(AND('Tool interface'!$C$19=2,'Tool interface'!$C$18=4),'CBA - BIM level 1'!Y16,IF(AND('Tool interface'!$C$19=2,'Tool interface'!$C$18=5),'CBA - BIM level 1'!X16,IF(AND('Tool interface'!$C$19=2,'Tool interface'!$C$18=6),W16,IF(AND('Tool interface'!$C$19=2,'Tool interface'!$C$18=7),V16,IF(AND('Tool interface'!$C$19=2,'Tool interface'!$C$18=8),U16,IF(AND('Tool interface'!$C$19=2,'Tool interface'!$C$18=9),T16,IF(AND('Tool interface'!$C$19=2,'Tool interface'!$C$18=10),S16,IF(AND('Tool interface'!$C$19=1,'Tool interface'!$C$18=1),'CBA - BIM level 1'!AC16,IF(AND('Tool interface'!$C$19=1,'Tool interface'!$C$18=2),'CBA - BIM level 1'!AB16,IF(AND('Tool interface'!$C$19=1,'Tool interface'!$C$18=3),'CBA - BIM level 1'!AA16,IF(AND('Tool interface'!$C$19=1,'Tool interface'!$C$18=4),'CBA - BIM level 1'!Z16,IF(AND('Tool interface'!$C$19=1,'Tool interface'!$C$18=5),'CBA - BIM level 1'!Y16,IF(AND('Tool interface'!$C$19=1,'Tool interface'!$C$18=6),X16,IF(AND('Tool interface'!$C$19=1,'Tool interface'!$C$18=7),W16,IF(AND('Tool interface'!$C$19=1,'Tool interface'!$C$18=8),V16,IF(AND('Tool interface'!$C$19=1,'Tool interface'!$C$18=9),U16,IF(AND('Tool interface'!$C$19=1,'Tool interface'!$C$18=10),T16,))))))))))))))))))))))))))))))))))))))))))))))))) -> 0 | Q17: =+IF(AND('Tool interface'!$C$19=5,'Tool interface'!$C$18=1),'CBA - BIM level 1'!Z16,IF(AND('Tool interface'!$C$19=5,'Tool interface'!$C$18=2),'CBA - BIM level 1'!Y16,IF(AND('Tool interface'!$C$19=5,'Tool interface'!$C$18=3),X16,IF(AND('Tool interface'!$C$19=5,'Tool interface'!$C$18=4),W16,IF(AND('Tool interface'!$C$19=5,'Tool interface'!$C$18=5),V16,IF(AND('Tool interface'!$C$19=5,'Tool interface'!$C$18=6),U16,IF(AND('Tool interface'!$C$19=5,'Tool interface'!$C$18=7),T16,IF(AND('Tool interface'!$C$19=5,'Tool interface'!$C$18=8),S16,IF(AND('Tool interface'!$C$19=5,'Tool interface'!$C$18=9),R16,IF(AND('Tool interface'!$C$19=5,'Tool interface'!$C$18=10),Q16,IF(AND('Tool interface'!$C$19=4,'Tool interface'!$C$18=1),'CBA - BIM level 1'!AA16,IF(AND('Tool interface'!$C$19=4,'Tool interface'!$C$18=2),'CBA - BIM level 1'!Z16,IF(AND('Tool interface'!$C$19=4,'Tool interface'!$C$18=3),'CBA - BIM level 1'!Y16,IF(AND('Tool interface'!$C$19=4,'Tool interface'!$C$18=4),X16,IF(AND('Tool interface'!$C$19=4,'Tool interface'!$C$18=5),W16,IF(AND('Tool interface'!$C$19=4,'Tool interface'!$C$18=6),V16,IF(AND('Tool interface'!$C$19=4,'Tool interface'!$C$18=7),U16,IF(AND('Tool interface'!$C$19=4,'Tool interface'!$C$18=8),T16,IF(AND('Tool interface'!$C$19=4,'Tool interface'!$C$18=9),S16,IF(AND('Tool interface'!$C$19=4,'Tool interface'!$C$18=10),R16,IF(AND('Tool interface'!$C$19=3,'Tool interface'!$C$18=1),'CBA - BIM level 1'!AB16,IF(AND('Tool interface'!$C$19=3,'Tool interface'!$C$18=2),'CBA - BIM level 1'!AA16,IF(AND('Tool interface'!$C$19=3,'Tool interface'!$C$18=3),'CBA - BIM level 1'!Z16,IF(AND('Tool interface'!$C$19=3,'Tool interface'!$C$18=4),'CBA - BIM level 1'!Y16,IF(AND('Tool interface'!$C$19=3,'Tool interface'!$C$18=5),X16,IF(AND('Tool interface'!$C$19=3,'Tool interface'!$C$18=6),W16,IF(AND('Tool interface'!$C$19=3,'Tool interface'!$C$18=7),V16,IF(AND('Tool interface'!$C$19=3,'Tool interface'!$C$18=8),U16,IF(AND('Tool interface'!$C$19=3,'Tool interface'!$C$18=9),T16,IF(AND('Tool interface'!$C$19=3,'Tool interface'!$C$18=10),S16,IF(AND('Tool interface'!$C$19=2,'Tool interface'!$C$18=1),'CBA - BIM level 1'!AC16,IF(AND('Tool interface'!$C$19=2,'Tool interface'!$C$18=2),'CBA - BIM level 1'!AB16,IF(AND('Tool interface'!$C$19=2,'Tool interface'!$C$18=3),'CBA - BIM level 1'!AA16,IF(AND('Tool interface'!$C$19=2,'Tool interface'!$C$18=4),'CBA - BIM level 1'!Z16,IF(AND('Tool interface'!$C$19=2,'Tool interface'!$C$18=5),'CBA - BIM level 1'!Y16,IF(AND('Tool interface'!$C$19=2,'Tool interface'!$C$18=6),X16,IF(AND('Tool interface'!$C$19=2,'Tool interface'!$C$18=7),W16,IF(AND('Tool interface'!$C$19=2,'Tool interface'!$C$18=8),V16,IF(AND('Tool interface'!$C$19=2,'Tool interface'!$C$18=9),U16,IF(AND('Tool interface'!$C$19=2,'Tool interface'!$C$18=10),T16,IF(AND('Tool interface'!$C$19=1,'Tool interface'!$C$18=1),'CBA - BIM level 1'!AD16,IF(AND('Tool interface'!$C$19=1,'Tool interface'!$C$18=2),'CBA - BIM level 1'!AC16,IF(AND('Tool interface'!$C$19=1,'Tool interface'!$C$18=3),'CBA - BIM level 1'!AB16,IF(AND('Tool interface'!$C$19=1,'Tool interface'!$C$18=4),'CBA - BIM level 1'!AA16,IF(AND('Tool interface'!$C$19=1,'Tool interface'!$C$18=5),'CBA - BIM level 1'!Z16,IF(AND('Tool interface'!$C$19=1,'Tool interface'!$C$18=6),Y16,IF(AND('Tool interface'!$C$19=1,'Tool interface'!$C$18=7),X16,IF(AND('Tool interface'!$C$19=1,'Tool interface'!$C$18=8),W16,IF(AND('Tool interface'!$C$19=1,'Tool interface'!$C$18=9),V16,IF(AND('Tool interface'!$C$19=1,'Tool interface'!$C$18=10),U16,)))))))))))))))))))))))))))))))))))))))))))))))))) -> 0 | R17: =+IF(AND('Tool interface'!$C$19=5,'Tool interface'!$C$18=1),'CBA - BIM level 1'!AA16,IF(AND('Tool interface'!$C$19=5,'Tool interface'!$C$18=2),'CBA - BIM level 1'!Z16,IF(AND('Tool interface'!$C$19=5,'Tool interface'!$C$18=3),Y16,IF(AND('Tool interface'!$C$19=5,'Tool interface'!$C$18=4),X16,IF(AND('Tool interface'!$C$19=5,'Tool interface'!$C$18=5),W16,IF(AND('Tool interface'!$C$19=5,'Tool interface'!$C$18=6),V16,IF(AND('Tool interface'!$C$19=5,'Tool interface'!$C$18=7),U16,IF(AND('Tool interface'!$C$19=5,'Tool interface'!$C$18=8),T16,IF(AND('Tool interface'!$C$19=5,'Tool interface'!$C$18=9),S16,IF(AND('Tool interface'!$C$19=5,'Tool interface'!$C$18=10),R16,IF(AND('Tool interface'!$C$19=4,'Tool interface'!$C$18=1),'CBA - BIM level 1'!AB16,IF(AND('Tool interface'!$C$19=4,'Tool interface'!$C$18=2),'CBA - BIM level 1'!AA16,IF(AND('Tool interface'!$C$19=4,'Tool interface'!$C$18=3),'CBA - BIM level 1'!Z16,IF(AND('Tool interface'!$C$19=4,'Tool interface'!$C$18=4),Y16,IF(AND('Tool interface'!$C$19=4,'Tool interface'!$C$18=5),X16,IF(AND('Tool interface'!$C$19=4,'Tool interface'!$C$18=6),W16,IF(AND('Tool interface'!$C$19=4,'Tool interface'!$C$18=7),V16,IF(AND('Tool interface'!$C$19=4,'Tool interface'!$C$18=8),U16,IF(AND('Tool interface'!$C$19=4,'Tool interface'!$C$18=9),T16,IF(AND('Tool interface'!$C$19=4,'Tool interface'!$C$18=10),S16,IF(AND('Tool interface'!$C$19=3,'Tool interface'!$C$18=1),'CBA - BIM level 1'!AC16,IF(AND('Tool interface'!$C$19=3,'Tool interface'!$C$18=2),'CBA - BIM level 1'!AB16,IF(AND('Tool interface'!$C$19=3,'Tool interface'!$C$18=3),'CBA - BIM level 1'!AA16,IF(AND('Tool interface'!$C$19=3,'Tool interface'!$C$18=4),'CBA - BIM level 1'!Z16,IF(AND('Tool interface'!$C$19=3,'Tool interface'!$C$18=5),Y16,IF(AND('Tool interface'!$C$19=3,'Tool interface'!$C$18=6),X16,IF(AND('Tool interface'!$C$19=3,'Tool interface'!$C$18=7),W16,IF(AND('Tool interface'!$C$19=3,'Tool interface'!$C$18=8),V16,IF(AND('Tool interface'!$C$19=3,'Tool interface'!$C$18=9),U16,IF(AND('Tool interface'!$C$19=3,'Tool interface'!$C$18=10),T16,IF(AND('Tool interface'!$C$19=2,'Tool interface'!$C$18=1),'CBA - BIM level 1'!AD16,IF(AND('Tool interface'!$C$19=2,'Tool interface'!$C$18=2),'CBA - BIM level 1'!AC16,IF(AND('Tool interface'!$C$19=2,'Tool interface'!$C$18=3),'CBA - BIM level 1'!AB16,IF(AND('Tool interface'!$C$19=2,'Tool interface'!$C$18=4),'CBA - BIM level 1'!AA16,IF(AND('Tool interface'!$C$19=2,'Tool interface'!$C$18=5),'CBA - BIM level 1'!Z16,IF(AND('Tool interface'!$C$19=2,'Tool interface'!$C$18=6),Y16,IF(AND('Tool interface'!$C$19=2,'Tool interface'!$C$18=7),X16,IF(AND('Tool interface'!$C$19=2,'Tool interface'!$C$18=8),W16,IF(AND('Tool interface'!$C$19=2,'Tool interface'!$C$18=9),V16,IF(AND('Tool interface'!$C$19=2,'Tool interface'!$C$18=10),U16,IF(AND('Tool interface'!$C$19=1,'Tool interface'!$C$18=1),'CBA - BIM level 1'!AE16,IF(AND('Tool interface'!$C$19=1,'Tool interface'!$C$18=2),'CBA - BIM level 1'!AD16,IF(AND('Tool interface'!$C$19=1,'Tool interface'!$C$18=3),'CBA - BIM level 1'!AC16,IF(AND('Tool interface'!$C$19=1,'Tool interface'!$C$18=4),'CBA - BIM level 1'!AB16,IF(AND('Tool interface'!$C$19=1,'Tool interface'!$C$18=5),'CBA - BIM level 1'!AA16,IF(AND('Tool interface'!$C$19=1,'Tool interface'!$C$18=6),Z16,IF(AND('Tool interface'!$C$19=1,'Tool interface'!$C$18=7),Y16,IF(AND('Tool interface'!$C$19=1,'Tool interface'!$C$18=8),X16,IF(AND('Tool interface'!$C$19=1,'Tool interface'!$C$18=9),W16,IF(AND('Tool interface'!$C$19=1,'Tool interface'!$C$18=10),V16,)))))))))))))))))))))))))))))))))))))))))))))))))) -> 0 | S17: =+IF(AND('Tool interface'!$C$19=5,'Tool interface'!$C$18=1),'CBA - BIM level 1'!AB16,IF(AND('Tool interface'!$C$19=5,'Tool interface'!$C$18=2),'CBA - BIM level 1'!AA16,IF(AND('Tool interface'!$C$19=5,'Tool interface'!$C$18=3),Z16,IF(AND('Tool interface'!$C$19=5,'Tool interface'!$C$18=4),Y16,IF(AND('Tool interface'!$C$19=5,'Tool interface'!$C$18=5),X16,IF(AND('Tool interface'!$C$19=5,'Tool interface'!$C$18=6),W16,IF(AND('Tool interface'!$C$19=5,'Tool interface'!$C$18=7),V16,IF(AND('Tool interface'!$C$19=5,'Tool interface'!$C$18=8),U16,IF(AND('Tool interface'!$C$19=5,'Tool interface'!$C$18=9),T16,IF(AND('Tool interface'!$C$19=5,'Tool interface'!$C$18=10),S16,IF(AND('Tool interface'!$C$19=4,'Tool interface'!$C$18=1),'CBA - BIM level 1'!AC16,IF(AND('Tool interface'!$C$19=4,'Tool interface'!$C$18=2),'CBA - BIM level 1'!AB16,IF(AND('Tool interface'!$C$19=4,'Tool interface'!$C$18=3),'CBA - BIM level 1'!AA16,IF(AND('Tool interface'!$C$19=4,'Tool interface'!$C$18=4),Z16,IF(AND('Tool interface'!$C$19=4,'Tool interface'!$C$18=5),Y16,IF(AND('Tool interface'!$C$19=4,'Tool interface'!$C$18=6),X16,IF(AND('Tool interface'!$C$19=4,'Tool interface'!$C$18=7),W16,IF(AND('Tool interface'!$C$19=4,'Tool interface'!$C$18=8),V16,IF(AND('Tool interface'!$C$19=4,'Tool interface'!$C$18=9),U16,IF(AND('Tool interface'!$C$19=4,'Tool interface'!$C$18=10),T16,IF(AND('Tool interface'!$C$19=3,'Tool interface'!$C$18=1),'CBA - BIM level 1'!AD16,IF(AND('Tool interface'!$C$19=3,'Tool interface'!$C$18=2),'CBA - BIM level 1'!AC16,IF(AND('Tool interface'!$C$19=3,'Tool interface'!$C$18=3),'CBA - BIM level 1'!AB16,IF(AND('Tool interface'!$C$19=3,'Tool interface'!$C$18=4),'CBA - BIM level 1'!AA16,IF(AND('Tool interface'!$C$19=3,'Tool interface'!$C$18=5),Z16,IF(AND('Tool interface'!$C$19=3,'Tool interface'!$C$18=6),Y16,IF(AND('Tool interface'!$C$19=3,'Tool interface'!$C$18=7),X16,IF(AND('Tool interface'!$C$19=3,'Tool interface'!$C$18=8),W16,IF(AND('Tool interface'!$C$19=3,'Tool interface'!$C$18=9),V16,IF(AND('Tool interface'!$C$19=3,'Tool interface'!$C$18=10),U16,IF(AND('Tool interface'!$C$19=2,'Tool interface'!$C$18=1),'CBA - BIM level 1'!AE16,IF(AND('Tool interface'!$C$19=2,'Tool interface'!$C$18=2),'CBA - BIM level 1'!AD16,IF(AND('Tool interface'!$C$19=2,'Tool interface'!$C$18=3),'CBA - BIM level 1'!AC16,IF(AND('Tool interface'!$C$19=2,'Tool interface'!$C$18=4),'CBA - BIM level 1'!AB16,IF(AND('Tool interface'!$C$19=2,'Tool interface'!$C$18=5),'CBA - BIM level 1'!AA16,IF(AND('Tool interface'!$C$19=2,'Tool interface'!$C$18=6),Z16,IF(AND('Tool interface'!$C$19=2,'Tool interface'!$C$18=7),Y16,IF(AND('Tool interface'!$C$19=2,'Tool interface'!$C$18=8),X16,IF(AND('Tool interface'!$C$19=2,'Tool interface'!$C$18=9),W16,IF(AND('Tool interface'!$C$19=2,'Tool interface'!$C$18=10),V16,IF(AND('Tool interface'!$C$19=1,'Tool interface'!$C$18=1),'CBA - BIM level 1'!AF16,IF(AND('Tool interface'!$C$19=1,'Tool interface'!$C$18=2),'CBA - BIM level 1'!AE16,IF(AND('Tool interface'!$C$19=1,'Tool interface'!$C$18=3),'CBA - BIM level 1'!AD16,IF(AND('Tool interface'!$C$19=1,'Tool interface'!$C$18=4),'CBA - BIM level 1'!AC16,IF(AND('Tool interface'!$C$19=1,'Tool interface'!$C$18=5),'CBA - BIM level 1'!AB16,IF(AND('Tool interface'!$C$19=1,'Tool interface'!$C$18=6),AA16,IF(AND('Tool interface'!$C$19=1,'Tool interface'!$C$18=7),Z16,IF(AND('Tool interface'!$C$19=1,'Tool interface'!$C$18=8),Y16,IF(AND('Tool interface'!$C$19=1,'Tool interface'!$C$18=9),X16,IF(AND('Tool interface'!$C$19=1,'Tool interface'!$C$18=10),W16,)))))))))))))))))))))))))))))))))))))))))))))))))) -> 0 | T17: =+IF(AND('Tool interface'!$C$19=5,'Tool interface'!$C$18=1),'CBA - BIM level 1'!AC16,IF(AND('Tool interface'!$C$19=5,'Tool interface'!$C$18=2),'CBA - BIM level 1'!AB16,IF(AND('Tool interface'!$C$19=5,'Tool interface'!$C$18=3),AA16,IF(AND('Tool interface'!$C$19=5,'Tool interface'!$C$18=4),Z16,IF(AND('Tool interface'!$C$19=5,'Tool interface'!$C$18=5),Y16,IF(AND('Tool interface'!$C$19=5,'Tool interface'!$C$18=6),X16,IF(AND('Tool interface'!$C$19=5,'Tool interface'!$C$18=7),W16,IF(AND('Tool interface'!$C$19=5,'Tool interface'!$C$18=8),V16,IF(AND('Tool interface'!$C$19=5,'Tool interface'!$C$18=9),U16,IF(AND('Tool interface'!$C$19=5,'Tool interface'!$C$18=10),T16,IF(AND('Tool interface'!$C$19=4,'Tool interface'!$C$18=1),'CBA - BIM level 1'!AD16,IF(AND('Tool interface'!$C$19=4,'Tool interface'!$C$18=2),'CBA - BIM level 1'!AC16,IF(AND('Tool interface'!$C$19=4,'Tool interface'!$C$18=3),'CBA - BIM level 1'!AB16,IF(AND('Tool interface'!$C$19=4,'Tool interface'!$C$18=4),AA16,IF(AND('Tool interface'!$C$19=4,'Tool interface'!$C$18=5),Z16,IF(AND('Tool interface'!$C$19=4,'Tool interface'!$C$18=6),Y16,IF(AND('Tool interface'!$C$19=4,'Tool interface'!$C$18=7),X16,IF(AND('Tool interface'!$C$19=4,'Tool interface'!$C$18=8),W16,IF(AND('Tool interface'!$C$19=4,'Tool interface'!$C$18=9),V16,IF(AND('Tool interface'!$C$19=4,'Tool interface'!$C$18=10),U16,IF(AND('Tool interface'!$C$19=3,'Tool interface'!$C$18=1),'CBA - BIM level 1'!AE16,IF(AND('Tool interface'!$C$19=3,'Tool interface'!$C$18=2),'CBA - BIM level 1'!AD16,IF(AND('Tool interface'!$C$19=3,'Tool interface'!$C$18=3),'CBA - BIM level 1'!AC16,IF(AND('Tool interface'!$C$19=3,'Tool interface'!$C$18=4),'CBA - BIM level 1'!AB16,IF(AND('Tool interface'!$C$19=3,'Tool interface'!$C$18=5),AA16,IF(AND('Tool interface'!$C$19=3,'Tool interface'!$C$18=6),Z16,IF(AND('Tool interface'!$C$19=3,'Tool interface'!$C$18=7),Y16,IF(AND('Tool interface'!$C$19=3,'Tool interface'!$C$18=8),X16,IF(AND('Tool interface'!$C$19=3,'Tool interface'!$C$18=9),W16,IF(AND('Tool interface'!$C$19=3,'Tool interface'!$C$18=10),V16,IF(AND('Tool interface'!$C$19=2,'Tool interface'!$C$18=1),'CBA - BIM level 1'!AF16,IF(AND('Tool interface'!$C$19=2,'Tool interface'!$C$18=2),'CBA - BIM level 1'!AE16,IF(AND('Tool interface'!$C$19=2,'Tool interface'!$C$18=3),'CBA - BIM level 1'!AD16,IF(AND('Tool interface'!$C$19=2,'Tool interface'!$C$18=4),'CBA - BIM level 1'!AC16,IF(AND('Tool interface'!$C$19=2,'Tool interface'!$C$18=5),'CBA - BIM level 1'!AB16,IF(AND('Tool interface'!$C$19=2,'Tool interface'!$C$18=6),AA16,IF(AND('Tool interface'!$C$19=2,'Tool interface'!$C$18=7),Z16,IF(AND('Tool interface'!$C$19=2,'Tool interface'!$C$18=8),Y16,IF(AND('Tool interface'!$C$19=2,'Tool interface'!$C$18=9),X16,IF(AND('Tool interface'!$C$19=2,'Tool interface'!$C$18=10),W16,IF(AND('Tool interface'!$C$19=1,'Tool interface'!$C$18=1),'CBA - BIM level 1'!AG16,IF(AND('Tool interface'!$C$19=1,'Tool interface'!$C$18=2),'CBA - BIM level 1'!AF16,IF(AND('Tool interface'!$C$19=1,'Tool interface'!$C$18=3),'CBA - BIM level 1'!AE16,IF(AND('Tool interface'!$C$19=1,'Tool interface'!$C$18=4),'CBA - BIM level 1'!AD16,IF(AND('Tool interface'!$C$19=1,'Tool interface'!$C$18=5),'CBA - BIM level 1'!AC16,IF(AND('Tool interface'!$C$19=1,'Tool interface'!$C$18=6),AB16,IF(AND('Tool interface'!$C$19=1,'Tool interface'!$C$18=7),AA16,IF(AND('Tool interface'!$C$19=1,'Tool interface'!$C$18=8),Z16,IF(AND('Tool interface'!$C$19=1,'Tool interface'!$C$18=9),Y16,IF(AND('Tool interface'!$C$19=1,'Tool interface'!$C$18=10),X16,)))))))))))))))))))))))))))))))))))))))))))))))))) -> 0 | U17: =+IF(AND('Tool interface'!$C$19=5,'Tool interface'!$C$18=1),'CBA - BIM level 1'!AD16,IF(AND('Tool interface'!$C$19=5,'Tool interface'!$C$18=2),'CBA - BIM level 1'!AC16,IF(AND('Tool interface'!$C$19=5,'Tool interface'!$C$18=3),AB16,IF(AND('Tool interface'!$C$19=5,'Tool interface'!$C$18=4),AA16,IF(AND('Tool interface'!$C$19=5,'Tool interface'!$C$18=5),Z16,IF(AND('Tool interface'!$C$19=5,'Tool interface'!$C$18=6),Y16,IF(AND('Tool interface'!$C$19=5,'Tool interface'!$C$18=7),X16,IF(AND('Tool interface'!$C$19=5,'Tool interface'!$C$18=8),W16,IF(AND('Tool interface'!$C$19=5,'Tool interface'!$C$18=9),V16,IF(AND('Tool interface'!$C$19=5,'Tool interface'!$C$18=10),U16,IF(AND('Tool interface'!$C$19=4,'Tool interface'!$C$18=1),'CBA - BIM level 1'!AE16,IF(AND('Tool interface'!$C$19=4,'Tool interface'!$C$18=2),'CBA - BIM level 1'!AD16,IF(AND('Tool interface'!$C$19=4,'Tool interface'!$C$18=3),'CBA - BIM level 1'!AC16,IF(AND('Tool interface'!$C$19=4,'Tool interface'!$C$18=4),AB16,IF(AND('Tool interface'!$C$19=4,'Tool interface'!$C$18=5),AA16,IF(AND('Tool interface'!$C$19=4,'Tool interface'!$C$18=6),Z16,IF(AND('Tool interface'!$C$19=4,'Tool interface'!$C$18=7),Y16,IF(AND('Tool interface'!$C$19=4,'Tool interface'!$C$18=8),X16,IF(AND('Tool interface'!$C$19=4,'Tool interface'!$C$18=9),W16,IF(AND('Tool interface'!$C$19=4,'Tool interface'!$C$18=10),V16,IF(AND('Tool interface'!$C$19=3,'Tool interface'!$C$18=1),'CBA - BIM level 1'!AF16,IF(AND('Tool interface'!$C$19=3,'Tool interface'!$C$18=2),'CBA - BIM level 1'!AE16,IF(AND('Tool interface'!$C$19=3,'Tool interface'!$C$18=3),'CBA - BIM level 1'!AD16,IF(AND('Tool interface'!$C$19=3,'Tool interface'!$C$18=4),'CBA - BIM level 1'!AC16,IF(AND('Tool interface'!$C$19=3,'Tool interface'!$C$18=5),AB16,IF(AND('Tool interface'!$C$19=3,'Tool interface'!$C$18=6),AA16,IF(AND('Tool interface'!$C$19=3,'Tool interface'!$C$18=7),Z16,IF(AND('Tool interface'!$C$19=3,'Tool interface'!$C$18=8),Y16,IF(AND('Tool interface'!$C$19=3,'Tool interface'!$C$18=9),X16,IF(AND('Tool interface'!$C$19=3,'Tool interface'!$C$18=10),W16,IF(AND('Tool interface'!$C$19=2,'Tool interface'!$C$18=1),'CBA - BIM level 1'!AG16,IF(AND('Tool interface'!$C$19=2,'Tool interface'!$C$18=2),'CBA - BIM level 1'!AF16,IF(AND('Tool interface'!$C$19=2,'Tool interface'!$C$18=3),'CBA - BIM level 1'!AE16,IF(AND('Tool interface'!$C$19=2,'Tool interface'!$C$18=4),'CBA - BIM level 1'!AD16,IF(AND('Tool interface'!$C$19=2,'Tool interface'!$C$18=5),'CBA - BIM level 1'!AC16,IF(AND('Tool interface'!$C$19=2,'Tool interface'!$C$18=6),AB16,IF(AND('Tool interface'!$C$19=2,'Tool interface'!$C$18=7),AA16,IF(AND('Tool interface'!$C$19=2,'Tool interface'!$C$18=8),Z16,IF(AND('Tool interface'!$C$19=2,'Tool interface'!$C$18=9),Y16,IF(AND('Tool interface'!$C$19=2,'Tool interface'!$C$18=10),X16,IF(AND('Tool interface'!$C$19=1,'Tool interface'!$C$18=1),'CBA - BIM level 1'!AH16,IF(AND('Tool interface'!$C$19=1,'Tool interface'!$C$18=2),'CBA - BIM level 1'!AG16,IF(AND('Tool interface'!$C$19=1,'Tool interface'!$C$18=3),'CBA - BIM level 1'!AF16,IF(AND('Tool interface'!$C$19=1,'Tool interface'!$C$18=4),'CBA - BIM level 1'!AE16,IF(AND('Tool interface'!$C$19=1,'Tool interface'!$C$18=5),'CBA - BIM level 1'!AD16,IF(AND('Tool interface'!$C$19=1,'Tool interface'!$C$18=6),AC16,IF(AND('Tool interface'!$C$19=1,'Tool interface'!$C$18=7),AB16,IF(AND('Tool interface'!$C$19=1,'Tool interface'!$C$18=8),AA16,IF(AND('Tool interface'!$C$19=1,'Tool interface'!$C$18=9),Z16,IF(AND('Tool interface'!$C$19=1,'Tool interface'!$C$18=10),Y16,)))))))))))))))))))))))))))))))))))))))))))))))))) -> 0 | V17: =+IF(AND('Tool interface'!$C$19=5,'Tool interface'!$C$18=1),'CBA - BIM level 1'!AE16,IF(AND('Tool interface'!$C$19=5,'Tool interface'!$C$18=2),'CBA - BIM level 1'!AD16,IF(AND('Tool interface'!$C$19=5,'Tool interface'!$C$18=3),AC16,IF(AND('Tool interface'!$C$19=5,'Tool interface'!$C$18=4),AB16,IF(AND('Tool interface'!$C$19=5,'Tool interface'!$C$18=5),AA16,IF(AND('Tool interface'!$C$19=5,'Tool interface'!$C$18=6),Z16,IF(AND('Tool interface'!$C$19=5,'Tool interface'!$C$18=7),Y16,IF(AND('Tool interface'!$C$19=5,'Tool interface'!$C$18=8),X16,IF(AND('Tool interface'!$C$19=5,'Tool interface'!$C$18=9),W16,IF(AND('Tool interface'!$C$19=5,'Tool interface'!$C$18=10),V16,IF(AND('Tool interface'!$C$19=4,'Tool interface'!$C$18=1),'CBA - BIM level 1'!AF16,IF(AND('Tool interface'!$C$19=4,'Tool interface'!$C$18=2),'CBA - BIM level 1'!AE16,IF(AND('Tool interface'!$C$19=4,'Tool interface'!$C$18=3),'CBA - BIM level 1'!AD16,IF(AND('Tool interface'!$C$19=4,'Tool interface'!$C$18=4),AC16,IF(AND('Tool interface'!$C$19=4,'Tool interface'!$C$18=5),AB16,IF(AND('Tool interface'!$C$19=4,'Tool interface'!$C$18=6),AA16,IF(AND('Tool interface'!$C$19=4,'Tool interface'!$C$18=7),Z16,IF(AND('Tool interface'!$C$19=4,'Tool interface'!$C$18=8),Y16,IF(AND('Tool interface'!$C$19=4,'Tool interface'!$C$18=9),X16,IF(AND('Tool interface'!$C$19=4,'Tool interface'!$C$18=10),W16,IF(AND('Tool interface'!$C$19=3,'Tool interface'!$C$18=1),'CBA - BIM level 1'!AG16,IF(AND('Tool interface'!$C$19=3,'Tool interface'!$C$18=2),'CBA - BIM level 1'!AF16,IF(AND('Tool interface'!$C$19=3,'Tool interface'!$C$18=3),'CBA - BIM level 1'!AE16,IF(AND('Tool interface'!$C$19=3,'Tool interface'!$C$18=4),'CBA - BIM level 1'!AD16,IF(AND('Tool interface'!$C$19=3,'Tool interface'!$C$18=5),AC16,IF(AND('Tool interface'!$C$19=3,'Tool interface'!$C$18=6),AB16,IF(AND('Tool interface'!$C$19=3,'Tool interface'!$C$18=7),AA16,IF(AND('Tool interface'!$C$19=3,'Tool interface'!$C$18=8),Z16,IF(AND('Tool interface'!$C$19=3,'Tool interface'!$C$18=9),Y16,IF(AND('Tool interface'!$C$19=3,'Tool interface'!$C$18=10),X16,IF(AND('Tool interface'!$C$19=2,'Tool interface'!$C$18=1),'CBA - BIM level 1'!AH16,IF(AND('Tool interface'!$C$19=2,'Tool interface'!$C$18=2),'CBA - BIM level 1'!AG16,IF(AND('Tool interface'!$C$19=2,'Tool interface'!$C$18=3),'CBA - BIM level 1'!AF16,IF(AND('Tool interface'!$C$19=2,'Tool interface'!$C$18=4),'CBA - BIM level 1'!AE16,IF(AND('Tool interface'!$C$19=2,'Tool interface'!$C$18=5),'CBA - BIM level 1'!AD16,IF(AND('Tool interface'!$C$19=2,'Tool interface'!$C$18=6),AC16,IF(AND('Tool interface'!$C$19=2,'Tool interface'!$C$18=7),AB16,IF(AND('Tool interface'!$C$19=2,'Tool interface'!$C$18=8),AA16,IF(AND('Tool interface'!$C$19=2,'Tool interface'!$C$18=9),Z16,IF(AND('Tool interface'!$C$19=2,'Tool interface'!$C$18=10),Y16,IF(AND('Tool interface'!$C$19=1,'Tool interface'!$C$18=1),'CBA - BIM level 1'!AI16,IF(AND('Tool interface'!$C$19=1,'Tool interface'!$C$18=2),'CBA - BIM level 1'!AH16,IF(AND('Tool interface'!$C$19=1,'Tool interface'!$C$18=3),'CBA - BIM level 1'!AG16,IF(AND('Tool interface'!$C$19=1,'Tool interface'!$C$18=4),'CBA - BIM level 1'!AF16,IF(AND('Tool interface'!$C$19=1,'Tool interface'!$C$18=5),'CBA - BIM level 1'!AE16,IF(AND('Tool interface'!$C$19=1,'Tool interface'!$C$18=6),AD16,IF(AND('Tool interface'!$C$19=1,'Tool interface'!$C$18=7),AC16,IF(AND('Tool interface'!$C$19=1,'Tool interface'!$C$18=8),AB16,IF(AND('Tool interface'!$C$19=1,'Tool interface'!$C$18=9),AA16,IF(AND('Tool interface'!$C$19=1,'Tool interface'!$C$18=10),Z16,)))))))))))))))))))))))))))))))))))))))))))))))))) -> 0 | W17: =+IF(AND('Tool interface'!$C$19=5,'Tool interface'!$C$18=1),'CBA - BIM level 1'!AF16,IF(AND('Tool interface'!$C$19=5,'Tool interface'!$C$18=2),'CBA - BIM level 1'!AE16,IF(AND('Tool interface'!$C$19=5,'Tool interface'!$C$18=3),AD16,IF(AND('Tool interface'!$C$19=5,'Tool interface'!$C$18=4),AC16,IF(AND('Tool interface'!$C$19=5,'Tool interface'!$C$18=5),AB16,IF(AND('Tool interface'!$C$19=5,'Tool interface'!$C$18=6),AA16,IF(AND('Tool interface'!$C$19=5,'Tool interface'!$C$18=7),Z16,IF(AND('Tool interface'!$C$19=5,'Tool interface'!$C$18=8),Y16,IF(AND('Tool interface'!$C$19=5,'Tool interface'!$C$18=9),X16,IF(AND('Tool interface'!$C$19=5,'Tool interface'!$C$18=10),W16,IF(AND('Tool interface'!$C$19=4,'Tool interface'!$C$18=1),'CBA - BIM level 1'!AG16,IF(AND('Tool interface'!$C$19=4,'Tool interface'!$C$18=2),'CBA - BIM level 1'!AF16,IF(AND('Tool interface'!$C$19=4,'Tool interface'!$C$18=3),'CBA - BIM level 1'!AE16,IF(AND('Tool interface'!$C$19=4,'Tool interface'!$C$18=4),AD16,IF(AND('Tool interface'!$C$19=4,'Tool interface'!$C$18=5),AC16,IF(AND('Tool interface'!$C$19=4,'Tool interface'!$C$18=6),AB16,IF(AND('Tool interface'!$C$19=4,'Tool interface'!$C$18=7),AA16,IF(AND('Tool interface'!$C$19=4,'Tool interface'!$C$18=8),Z16,IF(AND('Tool interface'!$C$19=4,'Tool interface'!$C$18=9),Y16,IF(AND('Tool interface'!$C$19=4,'Tool interface'!$C$18=10),X16,IF(AND('Tool interface'!$C$19=3,'Tool interface'!$C$18=1),'CBA - BIM level 1'!AH16,IF(AND('Tool interface'!$C$19=3,'Tool interface'!$C$18=2),'CBA - BIM level 1'!AG16,IF(AND('Tool interface'!$C$19=3,'Tool interface'!$C$18=3),'CBA - BIM level 1'!AF16,IF(AND('Tool interface'!$C$19=3,'Tool interface'!$C$18=4),'CBA - BIM level 1'!AE16,IF(AND('Tool interface'!$C$19=3,'Tool interface'!$C$18=5),AD16,IF(AND('Tool interface'!$C$19=3,'Tool interface'!$C$18=6),AC16,IF(AND('Tool interface'!$C$19=3,'Tool interface'!$C$18=7),AB16,IF(AND('Tool interface'!$C$19=3,'Tool interface'!$C$18=8),AA16,IF(AND('Tool interface'!$C$19=3,'Tool interface'!$C$18=9),Z16,IF(AND('Tool interface'!$C$19=3,'Tool interface'!$C$18=10),Y16,IF(AND('Tool interface'!$C$19=2,'Tool interface'!$C$18=1),'CBA - BIM level 1'!AI16,IF(AND('Tool interface'!$C$19=2,'Tool interface'!$C$18=2),'CBA - BIM level 1'!AH16,IF(AND('Tool interface'!$C$19=2,'Tool interface'!$C$18=3),'CBA - BIM level 1'!AG16,IF(AND('Tool interface'!$C$19=2,'Tool interface'!$C$18=4),'CBA - BIM level 1'!AF16,IF(AND('Tool interface'!$C$19=2,'Tool interface'!$C$18=5),'CBA - BIM level 1'!AE16,IF(AND('Tool interface'!$C$19=2,'Tool interface'!$C$18=6),AD16,IF(AND('Tool interface'!$C$19=2,'Tool interface'!$C$18=7),AC16,IF(AND('Tool interface'!$C$19=2,'Tool interface'!$C$18=8),AB16,IF(AND('Tool interface'!$C$19=2,'Tool interface'!$C$18=9),AA16,IF(AND('Tool interface'!$C$19=2,'Tool interface'!$C$18=10),Z16,IF(AND('Tool interface'!$C$19=1,'Tool interface'!$C$18=1),'CBA - BIM level 1'!AJ16,IF(AND('Tool interface'!$C$19=1,'Tool interface'!$C$18=2),'CBA - BIM level 1'!AI16,IF(AND('Tool interface'!$C$19=1,'Tool interface'!$C$18=3),'CBA - BIM level 1'!AH16,IF(AND('Tool interface'!$C$19=1,'Tool interface'!$C$18=4),'CBA - BIM level 1'!AG16,IF(AND('Tool interface'!$C$19=1,'Tool interface'!$C$18=5),'CBA - BIM level 1'!AF16,IF(AND('Tool interface'!$C$19=1,'Tool interface'!$C$18=6),AE16,IF(AND('Tool interface'!$C$19=1,'Tool interface'!$C$18=7),AD16,IF(AND('Tool interface'!$C$19=1,'Tool interface'!$C$18=8),AC16,IF(AND('Tool interface'!$C$19=1,'Tool interface'!$C$18=9),AB16,IF(AND('Tool interface'!$C$19=1,'Tool interface'!$C$18=10),AA16,)))))))))))))))))))))))))))))))))))))))))))))))))) -> 0 | X17: =+IF(AND('Tool interface'!$C$19=5,'Tool interface'!$C$18=1),'CBA - BIM level 1'!AG16,IF(AND('Tool interface'!$C$19=5,'Tool interface'!$C$18=2),'CBA - BIM level 1'!AF16,IF(AND('Tool interface'!$C$19=5,'Tool interface'!$C$18=3),AE16,IF(AND('Tool interface'!$C$19=5,'Tool interface'!$C$18=4),AD16,IF(AND('Tool interface'!$C$19=5,'Tool interface'!$C$18=5),AC16,IF(AND('Tool interface'!$C$19=5,'Tool interface'!$C$18=6),AB16,IF(AND('Tool interface'!$C$19=5,'Tool interface'!$C$18=7),AA16,IF(AND('Tool interface'!$C$19=5,'Tool interface'!$C$18=8),Z16,IF(AND('Tool interface'!$C$19=5,'Tool interface'!$C$18=9),Y16,IF(AND('Tool interface'!$C$19=5,'Tool interface'!$C$18=10),X16,IF(AND('Tool interface'!$C$19=4,'Tool interface'!$C$18=1),'CBA - BIM level 1'!AH16,IF(AND('Tool interface'!$C$19=4,'Tool interface'!$C$18=2),'CBA - BIM level 1'!AG16,IF(AND('Tool interface'!$C$19=4,'Tool interface'!$C$18=3),'CBA - BIM level 1'!AF16,IF(AND('Tool interface'!$C$19=4,'Tool interface'!$C$18=4),AE16,IF(AND('Tool interface'!$C$19=4,'Tool interface'!$C$18=5),AD16,IF(AND('Tool interface'!$C$19=4,'Tool interface'!$C$18=6),AC16,IF(AND('Tool interface'!$C$19=4,'Tool interface'!$C$18=7),AB16,IF(AND('Tool interface'!$C$19=4,'Tool interface'!$C$18=8),AA16,IF(AND('Tool interface'!$C$19=4,'Tool interface'!$C$18=9),Z16,IF(AND('Tool interface'!$C$19=4,'Tool interface'!$C$18=10),Y16,IF(AND('Tool interface'!$C$19=3,'Tool interface'!$C$18=1),'CBA - BIM level 1'!AI16,IF(AND('Tool interface'!$C$19=3,'Tool interface'!$C$18=2),'CBA - BIM level 1'!AH16,IF(AND('Tool interface'!$C$19=3,'Tool interface'!$C$18=3),'CBA - BIM level 1'!AG16,IF(AND('Tool interface'!$C$19=3,'Tool interface'!$C$18=4),'CBA - BIM level 1'!AF16,IF(AND('Tool interface'!$C$19=3,'Tool interface'!$C$18=5),AE16,IF(AND('Tool interface'!$C$19=3,'Tool interface'!$C$18=6),AD16,IF(AND('Tool interface'!$C$19=3,'Tool interface'!$C$18=7),AC16,IF(AND('Tool interface'!$C$19=3,'Tool interface'!$C$18=8),AB16,IF(AND('Tool interface'!$C$19=3,'Tool interface'!$C$18=9),AA16,IF(AND('Tool interface'!$C$19=3,'Tool interface'!$C$18=10),Z16,IF(AND('Tool interface'!$C$19=2,'Tool interface'!$C$18=1),'CBA - BIM level 1'!AJ16,IF(AND('Tool interface'!$C$19=2,'Tool interface'!$C$18=2),'CBA - BIM level 1'!AI16,IF(AND('Tool interface'!$C$19=2,'Tool interface'!$C$18=3),'CBA - BIM level 1'!AH16,IF(AND('Tool interface'!$C$19=2,'Tool interface'!$C$18=4),'CBA - BIM level 1'!AG16,IF(AND('Tool interface'!$C$19=2,'Tool interface'!$C$18=5),'CBA - BIM level 1'!AF16,IF(AND('Tool interface'!$C$19=2,'Tool interface'!$C$18=6),AE16,IF(AND('Tool interface'!$C$19=2,'Tool interface'!$C$18=7),AD16,IF(AND('Tool interface'!$C$19=2,'Tool interface'!$C$18=8),AC16,IF(AND('Tool interface'!$C$19=2,'Tool interface'!$C$18=9),AB16,IF(AND('Tool interface'!$C$19=2,'Tool interface'!$C$18=10),AA16,IF(AND('Tool interface'!$C$19=1,'Tool interface'!$C$18=1),'CBA - BIM level 1'!AK16,IF(AND('Tool interface'!$C$19=1,'Tool interface'!$C$18=2),'CBA - BIM level 1'!AJ16,IF(AND('Tool interface'!$C$19=1,'Tool interface'!$C$18=3),'CBA - BIM level 1'!AI16,IF(AND('Tool interface'!$C$19=1,'Tool interface'!$C$18=4),'CBA - BIM level 1'!AH16,IF(AND('Tool interface'!$C$19=1,'Tool interface'!$C$18=5),'CBA - BIM level 1'!AG16,IF(AND('Tool interface'!$C$19=1,'Tool interface'!$C$18=6),AF16,IF(AND('Tool interface'!$C$19=1,'Tool interface'!$C$18=7),AE16,IF(AND('Tool interface'!$C$19=1,'Tool interface'!$C$18=8),AD16,IF(AND('Tool interface'!$C$19=1,'Tool interface'!$C$18=9),AC16,IF(AND('Tool interface'!$C$19=1,'Tool interface'!$C$18=10),AB16,)))))))))))))))))))))))))))))))))))))))))))))))))) -> 0 | Y17: =+IF(AND('Tool interface'!$C$19=5,'Tool interface'!$C$18=1),'CBA - BIM level 1'!AH16,IF(AND('Tool interface'!$C$19=5,'Tool interface'!$C$18=2),'CBA - BIM level 1'!AG16,IF(AND('Tool interface'!$C$19=5,'Tool interface'!$C$18=3),AF16,IF(AND('Tool interface'!$C$19=5,'Tool interface'!$C$18=4),AE16,IF(AND('Tool interface'!$C$19=5,'Tool interface'!$C$18=5),AD16,IF(AND('Tool interface'!$C$19=5,'Tool interface'!$C$18=6),AC16,IF(AND('Tool interface'!$C$19=5,'Tool interface'!$C$18=7),AB16,IF(AND('Tool interface'!$C$19=5,'Tool interface'!$C$18=8),AA16,IF(AND('Tool interface'!$C$19=5,'Tool interface'!$C$18=9),Z16,IF(AND('Tool interface'!$C$19=5,'Tool interface'!$C$18=10),Y16,IF(AND('Tool interface'!$C$19=4,'Tool interface'!$C$18=1),'CBA - BIM level 1'!AI16,IF(AND('Tool interface'!$C$19=4,'Tool interface'!$C$18=2),'CBA - BIM level 1'!AH16,IF(AND('Tool interface'!$C$19=4,'Tool interface'!$C$18=3),'CBA - BIM level 1'!AG16,IF(AND('Tool interface'!$C$19=4,'Tool interface'!$C$18=4),AF16,IF(AND('Tool interface'!$C$19=4,'Tool interface'!$C$18=5),AE16,IF(AND('Tool interface'!$C$19=4,'Tool interface'!$C$18=6),AD16,IF(AND('Tool interface'!$C$19=4,'Tool interface'!$C$18=7),AC16,IF(AND('Tool interface'!$C$19=4,'Tool interface'!$C$18=8),AB16,IF(AND('Tool interface'!$C$19=4,'Tool interface'!$C$18=9),AA16,IF(AND('Tool interface'!$C$19=4,'Tool interface'!$C$18=10),Z16,IF(AND('Tool interface'!$C$19=3,'Tool interface'!$C$18=1),'CBA - BIM level 1'!AJ16,IF(AND('Tool interface'!$C$19=3,'Tool interface'!$C$18=2),'CBA - BIM level 1'!AI16,IF(AND('Tool interface'!$C$19=3,'Tool interface'!$C$18=3),'CBA - BIM level 1'!AH16,IF(AND('Tool interface'!$C$19=3,'Tool interface'!$C$18=4),'CBA - BIM level 1'!AG16,IF(AND('Tool interface'!$C$19=3,'Tool interface'!$C$18=5),AF16,IF(AND('Tool interface'!$C$19=3,'Tool interface'!$C$18=6),AE16,IF(AND('Tool interface'!$C$19=3,'Tool interface'!$C$18=7),AD16,IF(AND('Tool interface'!$C$19=3,'Tool interface'!$C$18=8),AC16,IF(AND('Tool interface'!$C$19=3,'Tool interface'!$C$18=9),AB16,IF(AND('Tool interface'!$C$19=3,'Tool interface'!$C$18=10),AA16,IF(AND('Tool interface'!$C$19=2,'Tool interface'!$C$18=1),'CBA - BIM level 1'!AK16,IF(AND('Tool interface'!$C$19=2,'Tool interface'!$C$18=2),'CBA - BIM level 1'!AJ16,IF(AND('Tool interface'!$C$19=2,'Tool interface'!$C$18=3),'CBA - BIM level 1'!AI16,IF(AND('Tool interface'!$C$19=2,'Tool interface'!$C$18=4),'CBA - BIM level 1'!AH16,IF(AND('Tool interface'!$C$19=2,'Tool interface'!$C$18=5),'CBA - BIM level 1'!AG16,IF(AND('Tool interface'!$C$19=2,'Tool interface'!$C$18=6),AF16,IF(AND('Tool interface'!$C$19=2,'Tool interface'!$C$18=7),AE16,IF(AND('Tool interface'!$C$19=2,'Tool interface'!$C$18=8),AD16,IF(AND('Tool interface'!$C$19=2,'Tool interface'!$C$18=9),AC16,IF(AND('Tool interface'!$C$19=2,'Tool interface'!$C$18=10),AB16,IF(AND('Tool interface'!$C$19=1,'Tool interface'!$C$18=1),'CBA - BIM level 1'!AL16,IF(AND('Tool interface'!$C$19=1,'Tool interface'!$C$18=2),'CBA - BIM level 1'!AK16,IF(AND('Tool interface'!$C$19=1,'Tool interface'!$C$18=3),'CBA - BIM level 1'!AJ16,IF(AND('Tool interface'!$C$19=1,'Tool interface'!$C$18=4),'CBA - BIM level 1'!AI16,IF(AND('Tool interface'!$C$19=1,'Tool interface'!$C$18=5),'CBA - BIM level 1'!AH16,IF(AND('Tool interface'!$C$19=1,'Tool interface'!$C$18=6),AG16,IF(AND('Tool interface'!$C$19=1,'Tool interface'!$C$18=7),AF16,IF(AND('Tool interface'!$C$19=1,'Tool interface'!$C$18=8),AE16,IF(AND('Tool interface'!$C$19=1,'Tool interface'!$C$18=9),AD16,IF(AND('Tool interface'!$C$19=1,'Tool interface'!$C$18=10),AC16,)))))))))))))))))))))))))))))))))))))))))))))))))) -> 0 | Z17: =+IF(AND('Tool interface'!$C$19=5,'Tool interface'!$C$18=1),'CBA - BIM level 1'!AI16,IF(AND('Tool interface'!$C$19=5,'Tool interface'!$C$18=2),'CBA - BIM level 1'!AH16,IF(AND('Tool interface'!$C$19=5,'Tool interface'!$C$18=3),AG16,IF(AND('Tool interface'!$C$19=5,'Tool interface'!$C$18=4),AF16,IF(AND('Tool interface'!$C$19=5,'Tool interface'!$C$18=5),AE16,IF(AND('Tool interface'!$C$19=5,'Tool interface'!$C$18=6),AD16,IF(AND('Tool interface'!$C$19=5,'Tool interface'!$C$18=7),AC16,IF(AND('Tool interface'!$C$19=5,'Tool interface'!$C$18=8),AB16,IF(AND('Tool interface'!$C$19=5,'Tool interface'!$C$18=9),AA16,IF(AND('Tool interface'!$C$19=5,'Tool interface'!$C$18=10),Z16,IF(AND('Tool interface'!$C$19=4,'Tool interface'!$C$18=1),'CBA - BIM level 1'!AJ16,IF(AND('Tool interface'!$C$19=4,'Tool interface'!$C$18=2),'CBA - BIM level 1'!AI16,IF(AND('Tool interface'!$C$19=4,'Tool interface'!$C$18=3),'CBA - BIM level 1'!AH16,IF(AND('Tool interface'!$C$19=4,'Tool interface'!$C$18=4),AG16,IF(AND('Tool interface'!$C$19=4,'Tool interface'!$C$18=5),AF16,IF(AND('Tool interface'!$C$19=4,'Tool interface'!$C$18=6),AE16,IF(AND('Tool interface'!$C$19=4,'Tool interface'!$C$18=7),AD16,IF(AND('Tool interface'!$C$19=4,'Tool interface'!$C$18=8),AC16,IF(AND('Tool interface'!$C$19=4,'Tool interface'!$C$18=9),AB16,IF(AND('Tool interface'!$C$19=4,'Tool interface'!$C$18=10),AA16,IF(AND('Tool interface'!$C$19=3,'Tool interface'!$C$18=1),'CBA - BIM level 1'!AK16,IF(AND('Tool interface'!$C$19=3,'Tool interface'!$C$18=2),'CBA - BIM level 1'!AJ16,IF(AND('Tool interface'!$C$19=3,'Tool interface'!$C$18=3),'CBA - BIM level 1'!AI16,IF(AND('Tool interface'!$C$19=3,'Tool interface'!$C$18=4),'CBA - BIM level 1'!AH16,IF(AND('Tool interface'!$C$19=3,'Tool interface'!$C$18=5),AG16,IF(AND('Tool interface'!$C$19=3,'Tool interface'!$C$18=6),AF16,IF(AND('Tool interface'!$C$19=3,'Tool interface'!$C$18=7),AE16,IF(AND('Tool interface'!$C$19=3,'Tool interface'!$C$18=8),AD16,IF(AND('Tool interface'!$C$19=3,'Tool interface'!$C$18=9),AC16,IF(AND('Tool interface'!$C$19=3,'Tool interface'!$C$18=10),AB16,IF(AND('Tool interface'!$C$19=2,'Tool interface'!$C$18=1),'CBA - BIM level 1'!AL16,IF(AND('Tool interface'!$C$19=2,'Tool interface'!$C$18=2),'CBA - BIM level 1'!AK16,IF(AND('Tool interface'!$C$19=2,'Tool interface'!$C$18=3),'CBA - BIM level 1'!AJ16,IF(AND('Tool interface'!$C$19=2,'Tool interface'!$C$18=4),'CBA - BIM level 1'!AI16,IF(AND('Tool interface'!$C$19=2,'Tool interface'!$C$18=5),'CBA - BIM level 1'!AH16,IF(AND('Tool interface'!$C$19=2,'Tool interface'!$C$18=6),AG16,IF(AND('Tool interface'!$C$19=2,'Tool interface'!$C$18=7),AF16,IF(AND('Tool interface'!$C$19=2,'Tool interface'!$C$18=8),AE16,IF(AND('Tool interface'!$C$19=2,'Tool interface'!$C$18=9),AD16,IF(AND('Tool interface'!$C$19=2,'Tool interface'!$C$18=10),AC16,IF(AND('Tool interface'!$C$19=1,'Tool interface'!$C$18=1),'CBA - BIM level 1'!AM16,IF(AND('Tool interface'!$C$19=1,'Tool interface'!$C$18=2),'CBA - BIM level 1'!AL16,IF(AND('Tool interface'!$C$19=1,'Tool interface'!$C$18=3),'CBA - BIM level 1'!AK16,IF(AND('Tool interface'!$C$19=1,'Tool interface'!$C$18=4),'CBA - BIM level 1'!AJ16,IF(AND('Tool interface'!$C$19=1,'Tool interface'!$C$18=5),'CBA - BIM level 1'!AI16,IF(AND('Tool interface'!$C$19=1,'Tool interface'!$C$18=6),AH16,IF(AND('Tool interface'!$C$19=1,'Tool interface'!$C$18=7),AG16,IF(AND('Tool interface'!$C$19=1,'Tool interface'!$C$18=8),AF16,IF(AND('Tool interface'!$C$19=1,'Tool interface'!$C$18=9),AE16,IF(AND('Tool interface'!$C$19=1,'Tool interface'!$C$18=10),AD16,)))))))))))))))))))))))))))))))))))))))))))))))))) -> 0 | AA17: =+IF(AND('Tool interface'!$C$19=5,'Tool interface'!$C$18=1),'CBA - BIM level 1'!AJ16,IF(AND('Tool interface'!$C$19=5,'Tool interface'!$C$18=2),'CBA - BIM level 1'!AI16,IF(AND('Tool interface'!$C$19=5,'Tool interface'!$C$18=3),AH16,IF(AND('Tool interface'!$C$19=5,'Tool interface'!$C$18=4),AG16,IF(AND('Tool interface'!$C$19=5,'Tool interface'!$C$18=5),AF16,IF(AND('Tool interface'!$C$19=5,'Tool interface'!$C$18=6),AE16,IF(AND('Tool interface'!$C$19=5,'Tool interface'!$C$18=7),AD16,IF(AND('Tool interface'!$C$19=5,'Tool interface'!$C$18=8),AC16,IF(AND('Tool interface'!$C$19=5,'Tool interface'!$C$18=9),AB16,IF(AND('Tool interface'!$C$19=5,'Tool interface'!$C$18=10),AA16,IF(AND('Tool interface'!$C$19=4,'Tool interface'!$C$18=1),'CBA - BIM level 1'!AK16,IF(AND('Tool interface'!$C$19=4,'Tool interface'!$C$18=2),'CBA - BIM level 1'!AJ16,IF(AND('Tool interface'!$C$19=4,'Tool interface'!$C$18=3),'CBA - BIM level 1'!AI16,IF(AND('Tool interface'!$C$19=4,'Tool interface'!$C$18=4),AH16,IF(AND('Tool interface'!$C$19=4,'Tool interface'!$C$18=5),AG16,IF(AND('Tool interface'!$C$19=4,'Tool interface'!$C$18=6),AF16,IF(AND('Tool interface'!$C$19=4,'Tool interface'!$C$18=7),AE16,IF(AND('Tool interface'!$C$19=4,'Tool interface'!$C$18=8),AD16,IF(AND('Tool interface'!$C$19=4,'Tool interface'!$C$18=9),AC16,IF(AND('Tool interface'!$C$19=4,'Tool interface'!$C$18=10),AB16,IF(AND('Tool interface'!$C$19=3,'Tool interface'!$C$18=1),'CBA - BIM level 1'!AL16,IF(AND('Tool interface'!$C$19=3,'Tool interface'!$C$18=2),'CBA - BIM level 1'!AK16,IF(AND('Tool interface'!$C$19=3,'Tool interface'!$C$18=3),'CBA - BIM level 1'!AJ16,IF(AND('Tool interface'!$C$19=3,'Tool interface'!$C$18=4),'CBA - BIM level 1'!AI16,IF(AND('Tool interface'!$C$19=3,'Tool interface'!$C$18=5),AH16,IF(AND('Tool interface'!$C$19=3,'Tool interface'!$C$18=6),AG16,IF(AND('Tool interface'!$C$19=3,'Tool interface'!$C$18=7),AF16,IF(AND('Tool interface'!$C$19=3,'Tool interface'!$C$18=8),AE16,IF(AND('Tool interface'!$C$19=3,'Tool interface'!$C$18=9),AD16,IF(AND('Tool interface'!$C$19=3,'Tool interface'!$C$18=10),AC16,IF(AND('Tool interface'!$C$19=2,'Tool interface'!$C$18=1),'CBA - BIM level 1'!AM16,IF(AND('Tool interface'!$C$19=2,'Tool interface'!$C$18=2),'CBA - BIM level 1'!AL16,IF(AND('Tool interface'!$C$19=2,'Tool interface'!$C$18=3),'CBA - BIM level 1'!AK16,IF(AND('Tool interface'!$C$19=2,'Tool interface'!$C$18=4),'CBA - BIM level 1'!AJ16,IF(AND('Tool interface'!$C$19=2,'Tool interface'!$C$18=5),'CBA - BIM level 1'!AI16,IF(AND('Tool interface'!$C$19=2,'Tool interface'!$C$18=6),AH16,IF(AND('Tool interface'!$C$19=2,'Tool interface'!$C$18=7),AG16,IF(AND('Tool interface'!$C$19=2,'Tool interface'!$C$18=8),AF16,IF(AND('Tool interface'!$C$19=2,'Tool interface'!$C$18=9),AE16,IF(AND('Tool interface'!$C$19=2,'Tool interface'!$C$18=10),AD16,IF(AND('Tool interface'!$C$19=1,'Tool interface'!$C$18=1),'CBA - BIM level 1'!AN16,IF(AND('Tool interface'!$C$19=1,'Tool interface'!$C$18=2),'CBA - BIM level 1'!AM16,IF(AND('Tool interface'!$C$19=1,'Tool interface'!$C$18=3),'CBA - BIM level 1'!AL16,IF(AND('Tool interface'!$C$19=1,'Tool interface'!$C$18=4),'CBA - BIM level 1'!AK16,IF(AND('Tool interface'!$C$19=1,'Tool interface'!$C$18=5),'CBA - BIM level 1'!AJ16,IF(AND('Tool interface'!$C$19=1,'Tool interface'!$C$18=6),AI16,IF(AND('Tool interface'!$C$19=1,'Tool interface'!$C$18=7),AH16,IF(AND('Tool interface'!$C$19=1,'Tool interface'!$C$18=8),AG16,IF(AND('Tool interface'!$C$19=1,'Tool interface'!$C$18=9),AF16,IF(AND('Tool interface'!$C$19=1,'Tool interface'!$C$18=10),AE16,)))))))))))))))))))))))))))))))))))))))))))))))))) -> 0 | AB17: =+IF(AND('Tool interface'!$C$19=5,'Tool interface'!$C$18=1),'CBA - BIM level 1'!AK16,IF(AND('Tool interface'!$C$19=5,'Tool interface'!$C$18=2),'CBA - BIM level 1'!AJ16,IF(AND('Tool interface'!$C$19=5,'Tool interface'!$C$18=3),AI16,IF(AND('Tool interface'!$C$19=5,'Tool interface'!$C$18=4),AH16,IF(AND('Tool interface'!$C$19=5,'Tool interface'!$C$18=5),AG16,IF(AND('Tool interface'!$C$19=5,'Tool interface'!$C$18=6),AF16,IF(AND('Tool interface'!$C$19=5,'Tool interface'!$C$18=7),AE16,IF(AND('Tool interface'!$C$19=5,'Tool interface'!$C$18=8),AD16,IF(AND('Tool interface'!$C$19=5,'Tool interface'!$C$18=9),AC16,IF(AND('Tool interface'!$C$19=5,'Tool interface'!$C$18=10),AB16,IF(AND('Tool interface'!$C$19=4,'Tool interface'!$C$18=1),'CBA - BIM level 1'!AL16,IF(AND('Tool interface'!$C$19=4,'Tool interface'!$C$18=2),'CBA - BIM level 1'!AK16,IF(AND('Tool interface'!$C$19=4,'Tool interface'!$C$18=3),'CBA - BIM level 1'!AJ16,IF(AND('Tool interface'!$C$19=4,'Tool interface'!$C$18=4),AI16,IF(AND('Tool interface'!$C$19=4,'Tool interface'!$C$18=5),AH16,IF(AND('Tool interface'!$C$19=4,'Tool interface'!$C$18=6),AG16,IF(AND('Tool interface'!$C$19=4,'Tool interface'!$C$18=7),AF16,IF(AND('Tool interface'!$C$19=4,'Tool interface'!$C$18=8),AE16,IF(AND('Tool interface'!$C$19=4,'Tool interface'!$C$18=9),AD16,IF(AND('Tool interface'!$C$19=4,'Tool interface'!$C$18=10),AC16,IF(AND('Tool interface'!$C$19=3,'Tool interface'!$C$18=1),'CBA - BIM level 1'!AM16,IF(AND('Tool interface'!$C$19=3,'Tool interface'!$C$18=2),'CBA - BIM level 1'!AL16,IF(AND('Tool interface'!$C$19=3,'Tool interface'!$C$18=3),'CBA - BIM level 1'!AK16,IF(AND('Tool interface'!$C$19=3,'Tool interface'!$C$18=4),'CBA - BIM level 1'!AJ16,IF(AND('Tool interface'!$C$19=3,'Tool interface'!$C$18=5),AI16,IF(AND('Tool interface'!$C$19=3,'Tool interface'!$C$18=6),AH16,IF(AND('Tool interface'!$C$19=3,'Tool interface'!$C$18=7),AG16,IF(AND('Tool interface'!$C$19=3,'Tool interface'!$C$18=8),AF16,IF(AND('Tool interface'!$C$19=3,'Tool interface'!$C$18=9),AE16,IF(AND('Tool interface'!$C$19=3,'Tool interface'!$C$18=10),AD16,IF(AND('Tool interface'!$C$19=2,'Tool interface'!$C$18=1),'CBA - BIM level 1'!AN16,IF(AND('Tool interface'!$C$19=2,'Tool interface'!$C$18=2),'CBA - BIM level 1'!AM16,IF(AND('Tool interface'!$C$19=2,'Tool interface'!$C$18=3),'CBA - BIM level 1'!AL16,IF(AND('Tool interface'!$C$19=2,'Tool interface'!$C$18=4),'CBA - BIM level 1'!AK16,IF(AND('Tool interface'!$C$19=2,'Tool interface'!$C$18=5),'CBA - BIM level 1'!AJ16,IF(AND('Tool interface'!$C$19=2,'Tool interface'!$C$18=6),AI16,IF(AND('Tool interface'!$C$19=2,'Tool interface'!$C$18=7),AH16,IF(AND('Tool interface'!$C$19=2,'Tool interface'!$C$18=8),AG16,IF(AND('Tool interface'!$C$19=2,'Tool interface'!$C$18=9),AF16,IF(AND('Tool interface'!$C$19=2,'Tool interface'!$C$18=10),AE16,IF(AND('Tool interface'!$C$19=1,'Tool interface'!$C$18=1),'CBA - BIM level 1'!AO16,IF(AND('Tool interface'!$C$19=1,'Tool interface'!$C$18=2),'CBA - BIM level 1'!AN16,IF(AND('Tool interface'!$C$19=1,'Tool interface'!$C$18=3),'CBA - BIM level 1'!AM16,IF(AND('Tool interface'!$C$19=1,'Tool interface'!$C$18=4),'CBA - BIM level 1'!AL16,IF(AND('Tool interface'!$C$19=1,'Tool interface'!$C$18=5),'CBA - BIM level 1'!AK16,IF(AND('Tool interface'!$C$19=1,'Tool interface'!$C$18=6),AJ16,IF(AND('Tool interface'!$C$19=1,'Tool interface'!$C$18=7),AI16,IF(AND('Tool interface'!$C$19=1,'Tool interface'!$C$18=8),AH16,IF(AND('Tool interface'!$C$19=1,'Tool interface'!$C$18=9),AG16,IF(AND('Tool interface'!$C$19=1,'Tool interface'!$C$18=10),AF16,)))))))))))))))))))))))))))))))))))))))))))))))))) -> 0 | AC17: =+IF(AND('Tool interface'!$C$19=5,'Tool interface'!$C$18=1),'CBA - BIM level 1'!AL16,IF(AND('Tool interface'!$C$19=5,'Tool interface'!$C$18=2),'CBA - BIM level 1'!AK16,IF(AND('Tool interface'!$C$19=5,'Tool interface'!$C$18=3),AJ16,IF(AND('Tool interface'!$C$19=5,'Tool interface'!$C$18=4),AI16,IF(AND('Tool interface'!$C$19=5,'Tool interface'!$C$18=5),AH16,IF(AND('Tool interface'!$C$19=5,'Tool interface'!$C$18=6),AG16,IF(AND('Tool interface'!$C$19=5,'Tool interface'!$C$18=7),AF16,IF(AND('Tool interface'!$C$19=5,'Tool interface'!$C$18=8),AE16,IF(AND('Tool interface'!$C$19=5,'Tool interface'!$C$18=9),AD16,IF(AND('Tool interface'!$C$19=5,'Tool interface'!$C$18=10),AC16,IF(AND('Tool interface'!$C$19=4,'Tool interface'!$C$18=1),'CBA - BIM level 1'!AM16,IF(AND('Tool interface'!$C$19=4,'Tool interface'!$C$18=2),'CBA - BIM level 1'!AL16,IF(AND('Tool interface'!$C$19=4,'Tool interface'!$C$18=3),'CBA - BIM level 1'!AK16,IF(AND('Tool interface'!$C$19=4,'Tool interface'!$C$18=4),AJ16,IF(AND('Tool interface'!$C$19=4,'Tool interface'!$C$18=5),AI16,IF(AND('Tool interface'!$C$19=4,'Tool interface'!$C$18=6),AH16,IF(AND('Tool interface'!$C$19=4,'Tool interface'!$C$18=7),AG16,IF(AND('Tool interface'!$C$19=4,'Tool interface'!$C$18=8),AF16,IF(AND('Tool interface'!$C$19=4,'Tool interface'!$C$18=9),AE16,IF(AND('Tool interface'!$C$19=4,'Tool interface'!$C$18=10),AD16,IF(AND('Tool interface'!$C$19=3,'Tool interface'!$C$18=1),'CBA - BIM level 1'!AN16,IF(AND('Tool interface'!$C$19=3,'Tool interface'!$C$18=2),'CBA - BIM level 1'!AM16,IF(AND('Tool interface'!$C$19=3,'Tool interface'!$C$18=3),'CBA - BIM level 1'!AL16,IF(AND('Tool interface'!$C$19=3,'Tool interface'!$C$18=4),'CBA - BIM level 1'!AK16,IF(AND('Tool interface'!$C$19=3,'Tool interface'!$C$18=5),AJ16,IF(AND('Tool interface'!$C$19=3,'Tool interface'!$C$18=6),AI16,IF(AND('Tool interface'!$C$19=3,'Tool interface'!$C$18=7),AH16,IF(AND('Tool interface'!$C$19=3,'Tool interface'!$C$18=8),AG16,IF(AND('Tool interface'!$C$19=3,'Tool interface'!$C$18=9),AF16,IF(AND('Tool interface'!$C$19=3,'Tool interface'!$C$18=10),AE16,IF(AND('Tool interface'!$C$19=2,'Tool interface'!$C$18=1),'CBA - BIM level 1'!AO16,IF(AND('Tool interface'!$C$19=2,'Tool interface'!$C$18=2),'CBA - BIM level 1'!AN16,IF(AND('Tool interface'!$C$19=2,'Tool interface'!$C$18=3),'CBA - BIM level 1'!AM16,IF(AND('Tool interface'!$C$19=2,'Tool interface'!$C$18=4),'CBA - BIM level 1'!AL16,IF(AND('Tool interface'!$C$19=2,'Tool interface'!$C$18=5),'CBA - BIM level 1'!AK16,IF(AND('Tool interface'!$C$19=2,'Tool interface'!$C$18=6),AJ16,IF(AND('Tool interface'!$C$19=2,'Tool interface'!$C$18=7),AI16,IF(AND('Tool interface'!$C$19=2,'Tool interface'!$C$18=8),AH16,IF(AND('Tool interface'!$C$19=2,'Tool interface'!$C$18=9),AG16,IF(AND('Tool interface'!$C$19=2,'Tool interface'!$C$18=10),AF16,IF(AND('Tool interface'!$C$19=1,'Tool interface'!$C$18=1),'CBA - BIM level 1'!AP16,IF(AND('Tool interface'!$C$19=1,'Tool interface'!$C$18=2),'CBA - BIM level 1'!AO16,IF(AND('Tool interface'!$C$19=1,'Tool interface'!$C$18=3),'CBA - BIM level 1'!AN16,IF(AND('Tool interface'!$C$19=1,'Tool interface'!$C$18=4),'CBA - BIM level 1'!AM16,IF(AND('Tool interface'!$C$19=1,'Tool interface'!$C$18=5),'CBA - BIM level 1'!AL16,IF(AND('Tool interface'!$C$19=1,'Tool interface'!$C$18=6),AK16,IF(AND('Tool interface'!$C$19=1,'Tool interface'!$C$18=7),AJ16,IF(AND('Tool interface'!$C$19=1,'Tool interface'!$C$18=8),AI16,IF(AND('Tool interface'!$C$19=1,'Tool interface'!$C$18=9),AH16,IF(AND('Tool interface'!$C$19=1,'Tool interface'!$C$18=10),AG16,)))))))))))))))))))))))))))))))))))))))))))))))))) -> 0 | AD17: =+IF(AND('Tool interface'!$C$19=5,'Tool interface'!$C$18=1),'CBA - BIM level 1'!AM16,IF(AND('Tool interface'!$C$19=5,'Tool interface'!$C$18=2),'CBA - BIM level 1'!AL16,IF(AND('Tool interface'!$C$19=5,'Tool interface'!$C$18=3),AK16,IF(AND('Tool interface'!$C$19=5,'Tool interface'!$C$18=4),AJ16,IF(AND('Tool interface'!$C$19=5,'Tool interface'!$C$18=5),AI16,IF(AND('Tool interface'!$C$19=5,'Tool interface'!$C$18=6),AH16,IF(AND('Tool interface'!$C$19=5,'Tool interface'!$C$18=7),AG16,IF(AND('Tool interface'!$C$19=5,'Tool interface'!$C$18=8),AF16,IF(AND('Tool interface'!$C$19=5,'Tool interface'!$C$18=9),AE16,IF(AND('Tool interface'!$C$19=5,'Tool interface'!$C$18=10),AD16,IF(AND('Tool interface'!$C$19=4,'Tool interface'!$C$18=1),'CBA - BIM level 1'!AN16,IF(AND('Tool interface'!$C$19=4,'Tool interface'!$C$18=2),'CBA - BIM level 1'!AM16,IF(AND('Tool interface'!$C$19=4,'Tool interface'!$C$18=3),'CBA - BIM level 1'!AL16,IF(AND('Tool interface'!$C$19=4,'Tool interface'!$C$18=4),AK16,IF(AND('Tool interface'!$C$19=4,'Tool interface'!$C$18=5),AJ16,IF(AND('Tool interface'!$C$19=4,'Tool interface'!$C$18=6),AI16,IF(AND('Tool interface'!$C$19=4,'Tool interface'!$C$18=7),AH16,IF(AND('Tool interface'!$C$19=4,'Tool interface'!$C$18=8),AG16,IF(AND('Tool interface'!$C$19=4,'Tool interface'!$C$18=9),AF16,IF(AND('Tool interface'!$C$19=4,'Tool interface'!$C$18=10),AE16,IF(AND('Tool interface'!$C$19=3,'Tool interface'!$C$18=1),'CBA - BIM level 1'!AO16,IF(AND('Tool interface'!$C$19=3,'Tool interface'!$C$18=2),'CBA - BIM level 1'!AN16,IF(AND('Tool interface'!$C$19=3,'Tool interface'!$C$18=3),'CBA - BIM level 1'!AM16,IF(AND('Tool interface'!$C$19=3,'Tool interface'!$C$18=4),'CBA - BIM level 1'!AL16,IF(AND('Tool interface'!$C$19=3,'Tool interface'!$C$18=5),AK16,IF(AND('Tool interface'!$C$19=3,'Tool interface'!$C$18=6),AJ16,IF(AND('Tool interface'!$C$19=3,'Tool interface'!$C$18=7),AI16,IF(AND('Tool interface'!$C$19=3,'Tool interface'!$C$18=8),AH16,IF(AND('Tool interface'!$C$19=3,'Tool interface'!$C$18=9),AG16,IF(AND('Tool interface'!$C$19=3,'Tool interface'!$C$18=10),AF16,IF(AND('Tool interface'!$C$19=2,'Tool interface'!$C$18=1),'CBA - BIM level 1'!AP16,IF(AND('Tool interface'!$C$19=2,'Tool interface'!$C$18=2),'CBA - BIM level 1'!AO16,IF(AND('Tool interface'!$C$19=2,'Tool interface'!$C$18=3),'CBA - BIM level 1'!AN16,IF(AND('Tool interface'!$C$19=2,'Tool interface'!$C$18=4),'CBA - BIM level 1'!AM16,IF(AND('Tool interface'!$C$19=2,'Tool interface'!$C$18=5),'CBA - BIM level 1'!AL16,IF(AND('Tool interface'!$C$19=2,'Tool interface'!$C$18=6),AK16,IF(AND('Tool interface'!$C$19=2,'Tool interface'!$C$18=7),AJ16,IF(AND('Tool interface'!$C$19=2,'Tool interface'!$C$18=8),AI16,IF(AND('Tool interface'!$C$19=2,'Tool interface'!$C$18=9),AH16,IF(AND('Tool interface'!$C$19=2,'Tool interface'!$C$18=10),AG16,IF(AND('Tool interface'!$C$19=1,'Tool interface'!$C$18=1),'CBA - BIM level 1'!AQ16,IF(AND('Tool interface'!$C$19=1,'Tool interface'!$C$18=2),'CBA - BIM level 1'!AP16,IF(AND('Tool interface'!$C$19=1,'Tool interface'!$C$18=3),'CBA - BIM level 1'!AO16,IF(AND('Tool interface'!$C$19=1,'Tool interface'!$C$18=4),'CBA - BIM level 1'!AN16,IF(AND('Tool interface'!$C$19=1,'Tool interface'!$C$18=5),'CBA - BIM level 1'!AM16,IF(AND('Tool interface'!$C$19=1,'Tool interface'!$C$18=6),AL16,IF(AND('Tool interface'!$C$19=1,'Tool interface'!$C$18=7),AK16,IF(AND('Tool interface'!$C$19=1,'Tool interface'!$C$18=8),AJ16,IF(AND('Tool interface'!$C$19=1,'Tool interface'!$C$18=9),AI16,IF(AND('Tool interface'!$C$19=1,'Tool interface'!$C$18=10),AH16,)))))))))))))))))))))))))))))))))))))))))))))))))) -> 0 | AE17: =+IF(AND('Tool interface'!$C$19=5,'Tool interface'!$C$18=1),'CBA - BIM level 1'!AN16,IF(AND('Tool interface'!$C$19=5,'Tool interface'!$C$18=2),'CBA - BIM level 1'!AM16,IF(AND('Tool interface'!$C$19=5,'Tool interface'!$C$18=3),AL16,IF(AND('Tool interface'!$C$19=5,'Tool interface'!$C$18=4),AK16,IF(AND('Tool interface'!$C$19=5,'Tool interface'!$C$18=5),AJ16,IF(AND('Tool interface'!$C$19=5,'Tool interface'!$C$18=6),AI16,IF(AND('Tool interface'!$C$19=5,'Tool interface'!$C$18=7),AH16,IF(AND('Tool interface'!$C$19=5,'Tool interface'!$C$18=8),AG16,IF(AND('Tool interface'!$C$19=5,'Tool interface'!$C$18=9),AF16,IF(AND('Tool interface'!$C$19=5,'Tool interface'!$C$18=10),AE16,IF(AND('Tool interface'!$C$19=4,'Tool interface'!$C$18=1),'CBA - BIM level 1'!AO16,IF(AND('Tool interface'!$C$19=4,'Tool interface'!$C$18=2),'CBA - BIM level 1'!AN16,IF(AND('Tool interface'!$C$19=4,'Tool interface'!$C$18=3),'CBA - BIM level 1'!AM16,IF(AND('Tool interface'!$C$19=4,'Tool interface'!$C$18=4),AL16,IF(AND('Tool interface'!$C$19=4,'Tool interface'!$C$18=5),AK16,IF(AND('Tool interface'!$C$19=4,'Tool interface'!$C$18=6),AJ16,IF(AND('Tool interface'!$C$19=4,'Tool interface'!$C$18=7),AI16,IF(AND('Tool interface'!$C$19=4,'Tool interface'!$C$18=8),AH16,IF(AND('Tool interface'!$C$19=4,'Tool interface'!$C$18=9),AG16,IF(AND('Tool interface'!$C$19=4,'Tool interface'!$C$18=10),AF16,IF(AND('Tool interface'!$C$19=3,'Tool interface'!$C$18=1),'CBA - BIM level 1'!AP16,IF(AND('Tool interface'!$C$19=3,'Tool interface'!$C$18=2),'CBA - BIM level 1'!AO16,IF(AND('Tool interface'!$C$19=3,'Tool interface'!$C$18=3),'CBA - BIM level 1'!AN16,IF(AND('Tool interface'!$C$19=3,'Tool interface'!$C$18=4),'CBA - BIM level 1'!AM16,IF(AND('Tool interface'!$C$19=3,'Tool interface'!$C$18=5),AL16,IF(AND('Tool interface'!$C$19=3,'Tool interface'!$C$18=6),AK16,IF(AND('Tool interface'!$C$19=3,'Tool interface'!$C$18=7),AJ16,IF(AND('Tool interface'!$C$19=3,'Tool interface'!$C$18=8),AI16,IF(AND('Tool interface'!$C$19=3,'Tool interface'!$C$18=9),AH16,IF(AND('Tool interface'!$C$19=3,'Tool interface'!$C$18=10),AG16,IF(AND('Tool interface'!$C$19=2,'Tool interface'!$C$18=1),'CBA - BIM level 1'!AQ16,IF(AND('Tool interface'!$C$19=2,'Tool interface'!$C$18=2),'CBA - BIM level 1'!AP16,IF(AND('Tool interface'!$C$19=2,'Tool interface'!$C$18=3),'CBA - BIM level 1'!AO16,IF(AND('Tool interface'!$C$19=2,'Tool interface'!$C$18=4),'CBA - BIM level 1'!AN16,IF(AND('Tool interface'!$C$19=2,'Tool interface'!$C$18=5),'CBA - BIM level 1'!AM16,IF(AND('Tool interface'!$C$19=2,'Tool interface'!$C$18=6),AL16,IF(AND('Tool interface'!$C$19=2,'Tool interface'!$C$18=7),AK16,IF(AND('Tool interface'!$C$19=2,'Tool interface'!$C$18=8),AJ16,IF(AND('Tool interface'!$C$19=2,'Tool interface'!$C$18=9),AI16,IF(AND('Tool interface'!$C$19=2,'Tool interface'!$C$18=10),AH16,IF(AND('Tool interface'!$C$19=1,'Tool interface'!$C$18=1),'CBA - BIM level 1'!AR16,IF(AND('Tool interface'!$C$19=1,'Tool interface'!$C$18=2),'CBA - BIM level 1'!AQ16,IF(AND('Tool interface'!$C$19=1,'Tool interface'!$C$18=3),'CBA - BIM level 1'!AP16,IF(AND('Tool interface'!$C$19=1,'Tool interface'!$C$18=4),'CBA - BIM level 1'!AO16,IF(AND('Tool interface'!$C$19=1,'Tool interface'!$C$18=5),'CBA - BIM level 1'!AN16,IF(AND('Tool interface'!$C$19=1,'Tool interface'!$C$18=6),AM16,IF(AND('Tool interface'!$C$19=1,'Tool interface'!$C$18=7),AL16,IF(AND('Tool interface'!$C$19=1,'Tool interface'!$C$18=8),AK16,IF(AND('Tool interface'!$C$19=1,'Tool interface'!$C$18=9),AJ16,IF(AND('Tool interface'!$C$19=1,'Tool interface'!$C$18=10),AI16,)))))))))))))))))))))))))))))))))))))))))))))))))) -> 0 | AF17: =+IF(AND('Tool interface'!$C$19=5,'Tool interface'!$C$18=1),'CBA - BIM level 1'!AO16,IF(AND('Tool interface'!$C$19=5,'Tool interface'!$C$18=2),'CBA - BIM level 1'!AN16,IF(AND('Tool interface'!$C$19=5,'Tool interface'!$C$18=3),AM16,IF(AND('Tool interface'!$C$19=5,'Tool interface'!$C$18=4),AL16,IF(AND('Tool interface'!$C$19=5,'Tool interface'!$C$18=5),AK16,IF(AND('Tool interface'!$C$19=5,'Tool interface'!$C$18=6),AJ16,IF(AND('Tool interface'!$C$19=5,'Tool interface'!$C$18=7),AI16,IF(AND('Tool interface'!$C$19=5,'Tool interface'!$C$18=8),AH16,IF(AND('Tool interface'!$C$19=5,'Tool interface'!$C$18=9),AG16,IF(AND('Tool interface'!$C$19=5,'Tool interface'!$C$18=10),AF16,IF(AND('Tool interface'!$C$19=4,'Tool interface'!$C$18=1),'CBA - BIM level 1'!AP16,IF(AND('Tool interface'!$C$19=4,'Tool interface'!$C$18=2),'CBA - BIM level 1'!AO16,IF(AND('Tool interface'!$C$19=4,'Tool interface'!$C$18=3),'CBA - BIM level 1'!AN16,IF(AND('Tool interface'!$C$19=4,'Tool interface'!$C$18=4),AM16,IF(AND('Tool interface'!$C$19=4,'Tool interface'!$C$18=5),AL16,IF(AND('Tool interface'!$C$19=4,'Tool interface'!$C$18=6),AK16,IF(AND('Tool interface'!$C$19=4,'Tool interface'!$C$18=7),AJ16,IF(AND('Tool interface'!$C$19=4,'Tool interface'!$C$18=8),AI16,IF(AND('Tool interface'!$C$19=4,'Tool interface'!$C$18=9),AH16,IF(AND('Tool interface'!$C$19=4,'Tool interface'!$C$18=10),AG16,IF(AND('Tool interface'!$C$19=3,'Tool interface'!$C$18=1),'CBA - BIM level 1'!AQ16,IF(AND('Tool interface'!$C$19=3,'Tool interface'!$C$18=2),'CBA - BIM level 1'!AP16,IF(AND('Tool interface'!$C$19=3,'Tool interface'!$C$18=3),'CBA - BIM level 1'!AO16,IF(AND('Tool interface'!$C$19=3,'Tool interface'!$C$18=4),'CBA - BIM level 1'!AN16,IF(AND('Tool interface'!$C$19=3,'Tool interface'!$C$18=5),AM16,IF(AND('Tool interface'!$C$19=3,'Tool interface'!$C$18=6),AL16,IF(AND('Tool interface'!$C$19=3,'Tool interface'!$C$18=7),AK16,IF(AND('Tool interface'!$C$19=3,'Tool interface'!$C$18=8),AJ16,IF(AND('Tool interface'!$C$19=3,'Tool interface'!$C$18=9),AI16,IF(AND('Tool interface'!$C$19=3,'Tool interface'!$C$18=10),AH16,IF(AND('Tool interface'!$C$19=2,'Tool interface'!$C$18=1),'CBA - BIM level 1'!AR16,IF(AND('Tool interface'!$C$19=2,'Tool interface'!$C$18=2),'CBA - BIM level 1'!AQ16,IF(AND('Tool interface'!$C$19=2,'Tool interface'!$C$18=3),'CBA - BIM level 1'!AP16,IF(AND('Tool interface'!$C$19=2,'Tool interface'!$C$18=4),'CBA - BIM level 1'!AO16,IF(AND('Tool interface'!$C$19=2,'Tool interface'!$C$18=5),'CBA - BIM level 1'!AN16,IF(AND('Tool interface'!$C$19=2,'Tool interface'!$C$18=6),AM16,IF(AND('Tool interface'!$C$19=2,'Tool interface'!$C$18=7),AL16,IF(AND('Tool interface'!$C$19=2,'Tool interface'!$C$18=8),AK16,IF(AND('Tool interface'!$C$19=2,'Tool interface'!$C$18=9),AJ16,IF(AND('Tool interface'!$C$19=2,'Tool interface'!$C$18=10),AI16,IF(AND('Tool interface'!$C$19=1,'Tool interface'!$C$18=1),'CBA - BIM level 1'!AS16,IF(AND('Tool interface'!$C$19=1,'Tool interface'!$C$18=2),'CBA - BIM level 1'!AR16,IF(AND('Tool interface'!$C$19=1,'Tool interface'!$C$18=3),'CBA - BIM level 1'!AQ16,IF(AND('Tool interface'!$C$19=1,'Tool interface'!$C$18=4),'CBA - BIM level 1'!AP16,IF(AND('Tool interface'!$C$19=1,'Tool interface'!$C$18=5),'CBA - BIM level 1'!AO16,IF(AND('Tool interface'!$C$19=1,'Tool interface'!$C$18=6),AN16,IF(AND('Tool interface'!$C$19=1,'Tool interface'!$C$18=7),AM16,IF(AND('Tool interface'!$C$19=1,'Tool interface'!$C$18=8),AL16,IF(AND('Tool interface'!$C$19=1,'Tool interface'!$C$18=9),AK16,IF(AND('Tool interface'!$C$19=1,'Tool interface'!$C$18=10),AJ16,)))))))))))))))))))))))))))))))))))))))))))))))))) -> 0 | AG17: =+IF(AND('Tool interface'!$C$19=5,'Tool interface'!$C$18=1),'CBA - BIM level 1'!AP16,IF(AND('Tool interface'!$C$19=5,'Tool interface'!$C$18=2),'CBA - BIM level 1'!AO16,IF(AND('Tool interface'!$C$19=5,'Tool interface'!$C$18=3),AN16,IF(AND('Tool interface'!$C$19=5,'Tool interface'!$C$18=4),AM16,IF(AND('Tool interface'!$C$19=5,'Tool interface'!$C$18=5),AL16,IF(AND('Tool interface'!$C$19=5,'Tool interface'!$C$18=6),AK16,IF(AND('Tool interface'!$C$19=5,'Tool interface'!$C$18=7),AJ16,IF(AND('Tool interface'!$C$19=5,'Tool interface'!$C$18=8),AI16,IF(AND('Tool interface'!$C$19=5,'Tool interface'!$C$18=9),AH16,IF(AND('Tool interface'!$C$19=5,'Tool interface'!$C$18=10),AG16,IF(AND('Tool interface'!$C$19=4,'Tool interface'!$C$18=1),'CBA - BIM level 1'!AQ16,IF(AND('Tool interface'!$C$19=4,'Tool interface'!$C$18=2),'CBA - BIM level 1'!AP16,IF(AND('Tool interface'!$C$19=4,'Tool interface'!$C$18=3),'CBA - BIM level 1'!AO16,IF(AND('Tool interface'!$C$19=4,'Tool interface'!$C$18=4),AN16,IF(AND('Tool interface'!$C$19=4,'Tool interface'!$C$18=5),AM16,IF(AND('Tool interface'!$C$19=4,'Tool interface'!$C$18=6),AL16,IF(AND('Tool interface'!$C$19=4,'Tool interface'!$C$18=7),AK16,IF(AND('Tool interface'!$C$19=4,'Tool interface'!$C$18=8),AJ16,IF(AND('Tool interface'!$C$19=4,'Tool interface'!$C$18=9),AI16,IF(AND('Tool interface'!$C$19=4,'Tool interface'!$C$18=10),AH16,IF(AND('Tool interface'!$C$19=3,'Tool interface'!$C$18=1),'CBA - BIM level 1'!AR16,IF(AND('Tool interface'!$C$19=3,'Tool interface'!$C$18=2),'CBA - BIM level 1'!AQ16,IF(AND('Tool interface'!$C$19=3,'Tool interface'!$C$18=3),'CBA - BIM level 1'!AP16,IF(AND('Tool interface'!$C$19=3,'Tool interface'!$C$18=4),'CBA - BIM level 1'!AO16,IF(AND('Tool interface'!$C$19=3,'Tool interface'!$C$18=5),AN16,IF(AND('Tool interface'!$C$19=3,'Tool interface'!$C$18=6),AM16,IF(AND('Tool interface'!$C$19=3,'Tool interface'!$C$18=7),AL16,IF(AND('Tool interface'!$C$19=3,'Tool interface'!$C$18=8),AK16,IF(AND('Tool interface'!$C$19=3,'Tool interface'!$C$18=9),AJ16,IF(AND('Tool interface'!$C$19=3,'Tool interface'!$C$18=10),AI16,IF(AND('Tool interface'!$C$19=2,'Tool interface'!$C$18=1),'CBA - BIM level 1'!AS16,IF(AND('Tool interface'!$C$19=2,'Tool interface'!$C$18=2),'CBA - BIM level 1'!AR16,IF(AND('Tool interface'!$C$19=2,'Tool interface'!$C$18=3),'CBA - BIM level 1'!AQ16,IF(AND('Tool interface'!$C$19=2,'Tool interface'!$C$18=4),'CBA - BIM level 1'!AP16,IF(AND('Tool interface'!$C$19=2,'Tool interface'!$C$18=5),'CBA - BIM level 1'!AO16,IF(AND('Tool interface'!$C$19=2,'Tool interface'!$C$18=6),AN16,IF(AND('Tool interface'!$C$19=2,'Tool interface'!$C$18=7),AM16,IF(AND('Tool interface'!$C$19=2,'Tool interface'!$C$18=8),AL16,IF(AND('Tool interface'!$C$19=2,'Tool interface'!$C$18=9),AK16,IF(AND('Tool interface'!$C$19=2,'Tool interface'!$C$18=10),AJ16,IF(AND('Tool interface'!$C$19=1,'Tool interface'!$C$18=1),'CBA - BIM level 1'!AT16,IF(AND('Tool interface'!$C$19=1,'Tool interface'!$C$18=2),'CBA - BIM level 1'!AS16,IF(AND('Tool interface'!$C$19=1,'Tool interface'!$C$18=3),'CBA - BIM level 1'!AR16,IF(AND('Tool interface'!$C$19=1,'Tool interface'!$C$18=4),'CBA - BIM level 1'!AQ16,IF(AND('Tool interface'!$C$19=1,'Tool interface'!$C$18=5),'CBA - BIM level 1'!AP16,IF(AND('Tool interface'!$C$19=1,'Tool interface'!$C$18=6),AO16,IF(AND('Tool interface'!$C$19=1,'Tool interface'!$C$18=7),AN16,IF(AND('Tool interface'!$C$19=1,'Tool interface'!$C$18=8),AM16,IF(AND('Tool interface'!$C$19=1,'Tool interface'!$C$18=9),AL16,IF(AND('Tool interface'!$C$19=1,'Tool interface'!$C$18=10),AK16,)))))))))))))))))))))))))))))))))))))))))))))))))) -> 0 | AH17: =+IF(AND('Tool interface'!$C$19=5,'Tool interface'!$C$18=1),'CBA - BIM level 1'!AQ16,IF(AND('Tool interface'!$C$19=5,'Tool interface'!$C$18=2),'CBA - BIM level 1'!AP16,IF(AND('Tool interface'!$C$19=5,'Tool interface'!$C$18=3),AO16,IF(AND('Tool interface'!$C$19=5,'Tool interface'!$C$18=4),AN16,IF(AND('Tool interface'!$C$19=5,'Tool interface'!$C$18=5),AM16,IF(AND('Tool interface'!$C$19=5,'Tool interface'!$C$18=6),AL16,IF(AND('Tool interface'!$C$19=5,'Tool interface'!$C$18=7),AK16,IF(AND('Tool interface'!$C$19=5,'Tool interface'!$C$18=8),AJ16,IF(AND('Tool interface'!$C$19=5,'Tool interface'!$C$18=9),AI16,IF(AND('Tool interface'!$C$19=5,'Tool interface'!$C$18=10),AH16,IF(AND('Tool interface'!$C$19=4,'Tool interface'!$C$18=1),'CBA - BIM level 1'!AR16,IF(AND('Tool interface'!$C$19=4,'Tool interface'!$C$18=2),'CBA - BIM level 1'!AQ16,IF(AND('Tool interface'!$C$19=4,'Tool interface'!$C$18=3),'CBA - BIM level 1'!AP16,IF(AND('Tool interface'!$C$19=4,'Tool interface'!$C$18=4),AO16,IF(AND('Tool interface'!$C$19=4,'Tool interface'!$C$18=5),AN16,IF(AND('Tool interface'!$C$19=4,'Tool interface'!$C$18=6),AM16,IF(AND('Tool interface'!$C$19=4,'Tool interface'!$C$18=7),AL16,IF(AND('Tool interface'!$C$19=4,'Tool interface'!$C$18=8),AK16,IF(AND('Tool interface'!$C$19=4,'Tool interface'!$C$18=9),AJ16,IF(AND('Tool interface'!$C$19=4,'Tool interface'!$C$18=10),AI16,IF(AND('Tool interface'!$C$19=3,'Tool interface'!$C$18=1),'CBA - BIM level 1'!AS16,IF(AND('Tool interface'!$C$19=3,'Tool interface'!$C$18=2),'CBA - BIM level 1'!AR16,IF(AND('Tool interface'!$C$19=3,'Tool interface'!$C$18=3),'CBA - BIM level 1'!AQ16,IF(AND('Tool interface'!$C$19=3,'Tool interface'!$C$18=4),'CBA - BIM level 1'!AP16,IF(AND('Tool interface'!$C$19=3,'Tool interface'!$C$18=5),AO16,IF(AND('Tool interface'!$C$19=3,'Tool interface'!$C$18=6),AN16,IF(AND('Tool interface'!$C$19=3,'Tool interface'!$C$18=7),AM16,IF(AND('Tool interface'!$C$19=3,'Tool interface'!$C$18=8),AL16,IF(AND('Tool interface'!$C$19=3,'Tool interface'!$C$18=9),AK16,IF(AND('Tool interface'!$C$19=3,'Tool interface'!$C$18=10),AJ16,IF(AND('Tool interface'!$C$19=2,'Tool interface'!$C$18=1),'CBA - BIM level 1'!AT16,IF(AND('Tool interface'!$C$19=2,'Tool interface'!$C$18=2),'CBA - BIM level 1'!AS16,IF(AND('Tool interface'!$C$19=2,'Tool interface'!$C$18=3),'CBA - BIM level 1'!AR16,IF(AND('Tool interface'!$C$19=2,'Tool interface'!$C$18=4),'CBA - BIM level 1'!AQ16,IF(AND('Tool interface'!$C$19=2,'Tool interface'!$C$18=5),'CBA - BIM level 1'!AP16,IF(AND('Tool interface'!$C$19=2,'Tool interface'!$C$18=6),AO16,IF(AND('Tool interface'!$C$19=2,'Tool interface'!$C$18=7),AN16,IF(AND('Tool interface'!$C$19=2,'Tool interface'!$C$18=8),AM16,IF(AND('Tool interface'!$C$19=2,'Tool interface'!$C$18=9),AL16,IF(AND('Tool interface'!$C$19=2,'Tool interface'!$C$18=10),AK16,IF(AND('Tool interface'!$C$19=1,'Tool interface'!$C$18=1),'CBA - BIM level 1'!AU16,IF(AND('Tool interface'!$C$19=1,'Tool interface'!$C$18=2),'CBA - BIM level 1'!AT16,IF(AND('Tool interface'!$C$19=1,'Tool interface'!$C$18=3),'CBA - BIM level 1'!AS16,IF(AND('Tool interface'!$C$19=1,'Tool interface'!$C$18=4),'CBA - BIM level 1'!AR16,IF(AND('Tool interface'!$C$19=1,'Tool interface'!$C$18=5),'CBA - BIM level 1'!AQ16,IF(AND('Tool interface'!$C$19=1,'Tool interface'!$C$18=6),AP16,IF(AND('Tool interface'!$C$19=1,'Tool interface'!$C$18=7),AO16,IF(AND('Tool interface'!$C$19=1,'Tool interface'!$C$18=8),AN16,IF(AND('Tool interface'!$C$19=1,'Tool interface'!$C$18=9),AM16,IF(AND('Tool interface'!$C$19=1,'Tool interface'!$C$18=10),AL16,)))))))))))))))))))))))))))))))))))))))))))))))))) -> 0 | AI17: =+IF(AND('Tool interface'!$C$19=5,'Tool interface'!$C$18=1),'CBA - BIM level 1'!AR16,IF(AND('Tool interface'!$C$19=5,'Tool interface'!$C$18=2),'CBA - BIM level 1'!AQ16,IF(AND('Tool interface'!$C$19=5,'Tool interface'!$C$18=3),AP16,IF(AND('Tool interface'!$C$19=5,'Tool interface'!$C$18=4),AO16,IF(AND('Tool interface'!$C$19=5,'Tool interface'!$C$18=5),AN16,IF(AND('Tool interface'!$C$19=5,'Tool interface'!$C$18=6),AM16,IF(AND('Tool interface'!$C$19=5,'Tool interface'!$C$18=7),AL16,IF(AND('Tool interface'!$C$19=5,'Tool interface'!$C$18=8),AK16,IF(AND('Tool interface'!$C$19=5,'Tool interface'!$C$18=9),AJ16,IF(AND('Tool interface'!$C$19=5,'Tool interface'!$C$18=10),AI16,IF(AND('Tool interface'!$C$19=4,'Tool interface'!$C$18=1),'CBA - BIM level 1'!AS16,IF(AND('Tool interface'!$C$19=4,'Tool interface'!$C$18=2),'CBA - BIM level 1'!AR16,IF(AND('Tool interface'!$C$19=4,'Tool interface'!$C$18=3),'CBA - BIM level 1'!AQ16,IF(AND('Tool interface'!$C$19=4,'Tool interface'!$C$18=4),AP16,IF(AND('Tool interface'!$C$19=4,'Tool interface'!$C$18=5),AO16,IF(AND('Tool interface'!$C$19=4,'Tool interface'!$C$18=6),AN16,IF(AND('Tool interface'!$C$19=4,'Tool interface'!$C$18=7),AM16,IF(AND('Tool interface'!$C$19=4,'Tool interface'!$C$18=8),AL16,IF(AND('Tool interface'!$C$19=4,'Tool interface'!$C$18=9),AK16,IF(AND('Tool interface'!$C$19=4,'Tool interface'!$C$18=10),AJ16,IF(AND('Tool interface'!$C$19=3,'Tool interface'!$C$18=1),'CBA - BIM level 1'!AT16,IF(AND('Tool interface'!$C$19=3,'Tool interface'!$C$18=2),'CBA - BIM level 1'!AS16,IF(AND('Tool interface'!$C$19=3,'Tool interface'!$C$18=3),'CBA - BIM level 1'!AR16,IF(AND('Tool interface'!$C$19=3,'Tool interface'!$C$18=4),'CBA - BIM level 1'!AQ16,IF(AND('Tool interface'!$C$19=3,'Tool interface'!$C$18=5),AP16,IF(AND('Tool interface'!$C$19=3,'Tool interface'!$C$18=6),AO16,IF(AND('Tool interface'!$C$19=3,'Tool interface'!$C$18=7),AN16,IF(AND('Tool interface'!$C$19=3,'Tool interface'!$C$18=8),AM16,IF(AND('Tool interface'!$C$19=3,'Tool interface'!$C$18=9),AL16,IF(AND('Tool interface'!$C$19=3,'Tool interface'!$C$18=10),AK16,IF(AND('Tool interface'!$C$19=2,'Tool interface'!$C$18=1),'CBA - BIM level 1'!AU16,IF(AND('Tool interface'!$C$19=2,'Tool interface'!$C$18=2),'CBA - BIM level 1'!AT16,IF(AND('Tool interface'!$C$19=2,'Tool interface'!$C$18=3),'CBA - BIM level 1'!AS16,IF(AND('Tool interface'!$C$19=2,'Tool interface'!$C$18=4),'CBA - BIM level 1'!AR16,IF(AND('Tool interface'!$C$19=2,'Tool interface'!$C$18=5),'CBA - BIM level 1'!AQ16,IF(AND('Tool interface'!$C$19=2,'Tool interface'!$C$18=6),AP16,IF(AND('Tool interface'!$C$19=2,'Tool interface'!$C$18=7),AO16,IF(AND('Tool interface'!$C$19=2,'Tool interface'!$C$18=8),AN16,IF(AND('Tool interface'!$C$19=2,'Tool interface'!$C$18=9),AM16,IF(AND('Tool interface'!$C$19=2,'Tool interface'!$C$18=10),AL16,IF(AND('Tool interface'!$C$19=1,'Tool interface'!$C$18=1),'CBA - BIM level 1'!AV16,IF(AND('Tool interface'!$C$19=1,'Tool interface'!$C$18=2),'CBA - BIM level 1'!AU16,IF(AND('Tool interface'!$C$19=1,'Tool interface'!$C$18=3),'CBA - BIM level 1'!AT16,IF(AND('Tool interface'!$C$19=1,'Tool interface'!$C$18=4),'CBA - BIM level 1'!AS16,IF(AND('Tool interface'!$C$19=1,'Tool interface'!$C$18=5),'CBA - BIM level 1'!AR16,IF(AND('Tool interface'!$C$19=1,'Tool interface'!$C$18=6),AQ16,IF(AND('Tool interface'!$C$19=1,'Tool interface'!$C$18=7),AP16,IF(AND('Tool interface'!$C$19=1,'Tool interface'!$C$18=8),AO16,IF(AND('Tool interface'!$C$19=1,'Tool interface'!$C$18=9),AN16,IF(AND('Tool interface'!$C$19=1,'Tool interface'!$C$18=10),AM16,)))))))))))))))))))))))))))))))))))))))))))))))))) -> 0 | AJ17: =+IF(AND('Tool interface'!$C$19=5,'Tool interface'!$C$18=1),'CBA - BIM level 1'!AS16,IF(AND('Tool interface'!$C$19=5,'Tool interface'!$C$18=2),'CBA - BIM level 1'!AR16,IF(AND('Tool interface'!$C$19=5,'Tool interface'!$C$18=3),AQ16,IF(AND('Tool interface'!$C$19=5,'Tool interface'!$C$18=4),AP16,IF(AND('Tool interface'!$C$19=5,'Tool interface'!$C$18=5),AO16,IF(AND('Tool interface'!$C$19=5,'Tool interface'!$C$18=6),AN16,IF(AND('Tool interface'!$C$19=5,'Tool interface'!$C$18=7),AM16,IF(AND('Tool interface'!$C$19=5,'Tool interface'!$C$18=8),AL16,IF(AND('Tool interface'!$C$19=5,'Tool interface'!$C$18=9),AK16,IF(AND('Tool interface'!$C$19=5,'Tool interface'!$C$18=10),AJ16,IF(AND('Tool interface'!$C$19=4,'Tool interface'!$C$18=1),'CBA - BIM level 1'!AT16,IF(AND('Tool interface'!$C$19=4,'Tool interface'!$C$18=2),'CBA - BIM level 1'!AS16,IF(AND('Tool interface'!$C$19=4,'Tool interface'!$C$18=3),'CBA - BIM level 1'!AR16,IF(AND('Tool interface'!$C$19=4,'Tool interface'!$C$18=4),AQ16,IF(AND('Tool interface'!$C$19=4,'Tool interface'!$C$18=5),AP16,IF(AND('Tool interface'!$C$19=4,'Tool interface'!$C$18=6),AO16,IF(AND('Tool interface'!$C$19=4,'Tool interface'!$C$18=7),AN16,IF(AND('Tool interface'!$C$19=4,'Tool interface'!$C$18=8),AM16,IF(AND('Tool interface'!$C$19=4,'Tool interface'!$C$18=9),AL16,IF(AND('Tool interface'!$C$19=4,'Tool interface'!$C$18=10),AK16,IF(AND('Tool interface'!$C$19=3,'Tool interface'!$C$18=1),'CBA - BIM level 1'!AU16,IF(AND('Tool interface'!$C$19=3,'Tool interface'!$C$18=2),'CBA - BIM level 1'!AT16,IF(AND('Tool interface'!$C$19=3,'Tool interface'!$C$18=3),'CBA - BIM level 1'!AS16,IF(AND('Tool interface'!$C$19=3,'Tool interface'!$C$18=4),'CBA - BIM level 1'!AR16,IF(AND('Tool interface'!$C$19=3,'Tool interface'!$C$18=5),AQ16,IF(AND('Tool interface'!$C$19=3,'Tool interface'!$C$18=6),AP16,IF(AND('Tool interface'!$C$19=3,'Tool interface'!$C$18=7),AO16,IF(AND('Tool interface'!$C$19=3,'Tool interface'!$C$18=8),AN16,IF(AND('Tool interface'!$C$19=3,'Tool interface'!$C$18=9),AM16,IF(AND('Tool interface'!$C$19=3,'Tool interface'!$C$18=10),AL16,IF(AND('Tool interface'!$C$19=2,'Tool interface'!$C$18=1),'CBA - BIM level 1'!AV16,IF(AND('Tool interface'!$C$19=2,'Tool interface'!$C$18=2),'CBA - BIM level 1'!AU16,IF(AND('Tool interface'!$C$19=2,'Tool interface'!$C$18=3),'CBA - BIM level 1'!AT16,IF(AND('Tool interface'!$C$19=2,'Tool interface'!$C$18=4),'CBA - BIM level 1'!AS16,IF(AND('Tool interface'!$C$19=2,'Tool interface'!$C$18=5),'CBA - BIM level 1'!AR16,IF(AND('Tool interface'!$C$19=2,'Tool interface'!$C$18=6),AQ16,IF(AND('Tool interface'!$C$19=2,'Tool interface'!$C$18=7),AP16,IF(AND('Tool interface'!$C$19=2,'Tool interface'!$C$18=8),AO16,IF(AND('Tool interface'!$C$19=2,'Tool interface'!$C$18=9),AN16,IF(AND('Tool interface'!$C$19=2,'Tool interface'!$C$18=10),AM16,IF(AND('Tool interface'!$C$19=1,'Tool interface'!$C$18=1),'CBA - BIM level 1'!AW16,IF(AND('Tool interface'!$C$19=1,'Tool interface'!$C$18=2),'CBA - BIM level 1'!AV16,IF(AND('Tool interface'!$C$19=1,'Tool interface'!$C$18=3),'CBA - BIM level 1'!AU16,IF(AND('Tool interface'!$C$19=1,'Tool interface'!$C$18=4),'CBA - BIM level 1'!AT16,IF(AND('Tool interface'!$C$19=1,'Tool interface'!$C$18=5),'CBA - BIM level 1'!AS16,IF(AND('Tool interface'!$C$19=1,'Tool interface'!$C$18=6),AR16,IF(AND('Tool interface'!$C$19=1,'Tool interface'!$C$18=7),AQ16,IF(AND('Tool interface'!$C$19=1,'Tool interface'!$C$18=8),AP16,IF(AND('Tool interface'!$C$19=1,'Tool interface'!$C$18=9),AO16,IF(AND('Tool interface'!$C$19=1,'Tool interface'!$C$18=10),AN16,)))))))))))))))))))))))))))))))))))))))))))))))))) -> 0 | AK17: =+IF(AND('Tool interface'!$C$19=5,'Tool interface'!$C$18=1),'CBA - BIM level 1'!AT16,IF(AND('Tool interface'!$C$19=5,'Tool interface'!$C$18=2),'CBA - BIM level 1'!AS16,IF(AND('Tool interface'!$C$19=5,'Tool interface'!$C$18=3),AR16,IF(AND('Tool interface'!$C$19=5,'Tool interface'!$C$18=4),AQ16,IF(AND('Tool interface'!$C$19=5,'Tool interface'!$C$18=5),AP16,IF(AND('Tool interface'!$C$19=5,'Tool interface'!$C$18=6),AO16,IF(AND('Tool interface'!$C$19=5,'Tool interface'!$C$18=7),AN16,IF(AND('Tool interface'!$C$19=5,'Tool interface'!$C$18=8),AM16,IF(AND('Tool interface'!$C$19=5,'Tool interface'!$C$18=9),AL16,IF(AND('Tool interface'!$C$19=5,'Tool interface'!$C$18=10),AK15,IF(AND('Tool interface'!$C$19=4,'Tool interface'!$C$18=1),'CBA - BIM level 1'!AU16,IF(AND('Tool interface'!$C$19=4,'Tool interface'!$C$18=2),'CBA - BIM level 1'!AT16,IF(AND('Tool interface'!$C$19=4,'Tool interface'!$C$18=3),'CBA - BIM level 1'!AS16,IF(AND('Tool interface'!$C$19=4,'Tool interface'!$C$18=4),AR16,IF(AND('Tool interface'!$C$19=4,'Tool interface'!$C$18=5),AQ16,IF(AND('Tool interface'!$C$19=4,'Tool interface'!$C$18=6),AP16,IF(AND('Tool interface'!$C$19=4,'Tool interface'!$C$18=7),AO16,IF(AND('Tool interface'!$C$19=4,'Tool interface'!$C$18=8),AN16,IF(AND('Tool interface'!$C$19=4,'Tool interface'!$C$18=9),AM16,IF(AND('Tool interface'!$C$19=4,'Tool interface'!$C$18=10),AL16,IF(AND('Tool interface'!$C$19=3,'Tool interface'!$C$18=1),'CBA - BIM level 1'!AV16,IF(AND('Tool interface'!$C$19=3,'Tool interface'!$C$18=2),'CBA - BIM level 1'!AU16,IF(AND('Tool interface'!$C$19=3,'Tool interface'!$C$18=3),'CBA - BIM level 1'!AT16,IF(AND('Tool interface'!$C$19=3,'Tool interface'!$C$18=4),'CBA - BIM level 1'!AS16,IF(AND('Tool interface'!$C$19=3,'Tool interface'!$C$18=5),AR16,IF(AND('Tool interface'!$C$19=3,'Tool interface'!$C$18=6),AQ16,IF(AND('Tool interface'!$C$19=3,'Tool interface'!$C$18=7),AP16,IF(AND('Tool interface'!$C$19=3,'Tool interface'!$C$18=8),AO16,IF(AND('Tool interface'!$C$19=3,'Tool interface'!$C$18=9),AN16,IF(AND('Tool interface'!$C$19=3,'Tool interface'!$C$18=10),AM16,IF(AND('Tool interface'!$C$19=2,'Tool interface'!$C$18=1),'CBA - BIM level 1'!AW16,IF(AND('Tool interface'!$C$19=2,'Tool interface'!$C$18=2),'CBA - BIM level 1'!AV16,IF(AND('Tool interface'!$C$19=2,'Tool interface'!$C$18=3),'CBA - BIM level 1'!AU16,IF(AND('Tool interface'!$C$19=2,'Tool interface'!$C$18=4),'CBA - BIM level 1'!AT16,IF(AND('Tool interface'!$C$19=2,'Tool interface'!$C$18=5),'CBA - BIM level 1'!AS16,IF(AND('Tool interface'!$C$19=2,'Tool interface'!$C$18=6),AR16,IF(AND('Tool interface'!$C$19=2,'Tool interface'!$C$18=7),AQ16,IF(AND('Tool interface'!$C$19=2,'Tool interface'!$C$18=8),AP16,IF(AND('Tool interface'!$C$19=2,'Tool interface'!$C$18=9),AO16,IF(AND('Tool interface'!$C$19=2,'Tool interface'!$C$18=10),AN16,IF(AND('Tool interface'!$C$19=1,'Tool interface'!$C$18=1),'CBA - BIM level 1'!AX16,IF(AND('Tool interface'!$C$19=1,'Tool interface'!$C$18=2),'CBA - BIM level 1'!AW16,IF(AND('Tool interface'!$C$19=1,'Tool interface'!$C$18=3),'CBA - BIM level 1'!AV16,IF(AND('Tool interface'!$C$19=1,'Tool interface'!$C$18=4),'CBA - BIM level 1'!AU16,IF(AND('Tool interface'!$C$19=1,'Tool interface'!$C$18=5),'CBA - BIM level 1'!AT16,IF(AND('Tool interface'!$C$19=1,'Tool interface'!$C$18=6),AS16,IF(AND('Tool interface'!$C$19=1,'Tool interface'!$C$18=7),AR16,IF(AND('Tool interface'!$C$19=1,'Tool interface'!$C$18=8),AQ16,IF(AND('Tool interface'!$C$19=1,'Tool interface'!$C$18=9),AP16,IF(AND('Tool interface'!$C$19=1,'Tool interface'!$C$18=10),AO16,)))))))))))))))))))))))))))))))))))))))))))))))))) -> 0
B18: Náklady
A19: On | B19: Zvýšení mzdových nákladů pracovníků veřejného subjektu ve fázi před podáním nabídek | D19: =IF($A$19="Off","",IF('Tool interface'!$C$19>=2,C19+C19*$A$3,"")) ->  | E19: =IF($A$19="Off","",IF('Tool interface'!$C$19>=3,D19+D19*$A$3,"")) ->  | F19: =IF($A$19="Off","",IF('Tool interface'!$C$19>=4,E19+E19*$A$3,"")) ->  | G19: =IF($A$19="Off","",IF('Tool interface'!$C$19>=5,F19+F19*$A$3,"")) -> 
A20: On | B20: Zvýšení nákladů na pracovní sílu pracovníků veřejného subjektu ve fázi výběrového řízení | C20: =IF($A$20="Off","",IF('Tool interface'!$C$19=1,Database!$I$27*C2,"")) ->  | D20: =IF($A$20="Off","",IF('Tool interface'!$C$19=2,Database!$I$27*D2,"")) ->  | E20: =IF($A$20="Off","",IF('Tool interface'!$C$19=3,Database!$I$27*E2,"")) ->  | F20: =IF($A$20="Off","",IF('Tool interface'!$C$19=4,Database!$I$27*F2,"")) ->  | G20: =IF($A$20="Off","",IF('Tool interface'!$C$19=5,Database!$I$27*G2,"")) -> 
A21: On | B21: Zvýšení nákladů na pracovní sílu pracovníků veřejného subjektu ve fázi po zadání zakázky | H21: =IF($A$21="Off","",IF('Tool interface'!$C$19=0,0,IF('Tool interface'!$C$18=0,0,IF('Tool interface'!$C$18>=1,IF('Tool interface'!$C$19=1,(Database!$I$35/'Tool interface'!$C$18)*'CBA - BIM level 1'!$D$2,IF('Tool interface'!$C$19=2,(Database!$I$35/'Tool interface'!$C$18)*'CBA - BIM level 1'!$E$2,IF('Tool interface'!$C$19=3,(Database!$I$35/'Tool interface'!$C$18)*'CBA - BIM level 1'!$F$2,IF('Tool interface'!$C$19=4,(Database!$I$35/'Tool interface'!$C$18)*'CBA - BIM level 1'!$G$2,IF('Tool interface'!$C$19=5,(Database!$I$35/'Tool interface'!$C$18)*'CBA - BIM level 1'!$H$2,""))))))))) -> 0 | I21: =IF($A$21="Off","",IF('Tool interface'!$C$18>=2,(H21+$A$3*H21),"")) ->  | J21: =IF($A$21="Off","",IF('Tool interface'!$C$18>=3,(I21+$A$3*I21),"")) ->  | K21: =IF($A$21="Off","",IF('Tool interface'!$C$18>=4,(J21+$A$3*J21),"")) ->  | L21: =IF($A$21="Off","",IF('Tool interface'!$C$18>=5,(K21+$A$3*K21),"")) ->  | M21: =IF($A$21="Off","",IF('Tool interface'!$C$18>=6,(L21+$A$3*L21),"")) ->  | N21: =IF($A$21="Off","",IF('Tool interface'!$C$18>=7,(M21+$A$3*M21),"")) ->  | O21: =IF($A$21="Off","",IF('Tool interface'!$C$18>=8,(N21+$A$3*N21),"")) ->  | P21: =IF($A$21="Off","",IF('Tool interface'!$C$18>=9,(O21+$A$3*O21),"")) ->  | Q21: =IF($A$21="Off","",IF('Tool interface'!$C$18>=10,(P21+$A$3*P21),"")) -> 
A22: On | B22: Zvýšené náklady na poradenské služby v rámci procesu zadávání veřejných zakázek | C22: =IF($A$22="Off","",IF('Tool interface'!$C$19>=1,Database!$I$41/('Tool interface'!$C$19+'Tool interface'!$C$18),"")) ->  | D22: =IF($A$22="Off","",IF('Tool interface'!$C$19>=2,C22+C22*$A$3,"")) ->  | E22: =IF($A$22="Off","",IF('Tool interface'!$C$19>=3,D22+D22*$A$3,"")) ->  | F22: =IF($A$22="Off","",IF('Tool interface'!$C$19>=4,E22+E22*$A$3,"")) ->  | G22: =IF($A$22="Off","",IF('Tool interface'!$C$19>=5,F22+F22*$A$3,"")) ->  | H22: =IF($A$22="Off","",IF('Tool interface'!$C$19=0,0,IF('Tool interface'!$C$18=0,0,IF('Tool interface'!$C$18>=1,IF('Tool interface'!$C$19=1,(Database!$I$41/('Tool interface'!$C$18+'Tool interface'!$C$19))*'CBA - BIM level 1'!$D$2,IF('Tool interface'!$C$19=2,(Database!$I$41/('Tool interface'!$C$18+'Tool interface'!$C$19))*'CBA - BIM level 1'!$E$2,IF('Tool interface'!$C$19=3,(Database!$I$41/('Tool interface'!$C$18+'Tool interface'!$C$19))*'CBA - BIM level 1'!$F$2,IF('Tool interface'!$C$19=4,(Database!$I$41/('Tool interface'!$C$18+'Tool interface'!$C$19))*'CBA - BIM level 1'!$G$2,IF('Tool interface'!$C$19=5,(Database!$I$41/('Tool interface'!$C$18+'Tool interface'!$C$19))*'CBA - BIM level 1'!$H$2,""))))))))) -> 0 | I22: =IF($A$22="Off","",IF('Tool interface'!$C$18>=2,H22+H22*$A$3,"")) ->  | J22: =IF($A$22="Off","",IF('Tool interface'!$C$18>=3,I22+I22*$A$3,"")) ->  | K22: =IF($A$22="Off","",IF('Tool interface'!$C$18>=4,J22+J22*$A$3,"")) ->  | L22: =IF($A$22="Off","",IF('Tool interface'!$C$18>=5,K22+K22*$A$3,"")) ->  | M22: =IF($A$22="Off","",IF('Tool interface'!$C$18>=6,L22+L22*$A$3,"")) ->  | N22: =IF($A$22="Off","",IF('Tool interface'!$C$18>=7,M22+M22*$A$3,"")) ->  | O22: =IF($A$22="Off","",IF('Tool interface'!$C$18>=8,N22+N22*$A$3,"")) ->  | P22: =IF($A$22="Off","",IF('Tool interface'!$C$18>=9,O22+O22*$A$3,"")) ->  | Q22: =IF($A$22="Off","",IF('Tool interface'!$C$18>=10,P22+P22*$A$3,"")) -> 
A23: On | B23: Náklady na vlastní informační modelování stavby (předpoklad z externích zdrojů) | C23: =IF($A$23="Off","",IF('Tool interface'!$C$34<=2,IF('Tool interface'!$C$19>=1,Database!$D$87/'Tool interface'!$C$19,""),"")) ->  | D23: =IF($A$23="Off","",IF('Tool interface'!$C$34<=2,IF('Tool interface'!$C$19>=2,C23+C23*$A$3,""),"")) ->  | E23: =IF($A$23="Off","",IF('Tool interface'!$C$34<=2,IF('Tool interface'!$C$19>=3,D23+D23*$A$3,""),"")) ->  | F23: =IF($A$23="Off","",IF('Tool interface'!$C$34<=2,IF('Tool interface'!$C$19>=4,E23+E23*$A$3,""),"")) ->  | G23: =IF($A$23="Off","",IF('Tool interface'!$C$34<=2,IF('Tool interface'!$C$19>=5,F23+F23*$A$3,""),"")) ->  | H23: =IF($A$23="Off","",IF('Tool interface'!$C$34=3,IF('Tool interface'!$C$19=1,(Database!$D$87/'Tool interface'!$C$18)*'CBA - BIM level 1'!$D$2,IF('Tool interface'!$C$19=2,(Database!$D$87/'Tool interface'!$C$18)*'CBA - BIM level 1'!$E$2,IF('Tool interface'!$C$19=3,(Database!$D$87/'Tool interface'!$C$18)*'CBA - BIM level 1'!$F$2,IF('Tool interface'!$C$19=4,(Database!$D$87/'Tool interface'!$C$18)*'CBA - BIM level 1'!$G$2,IF('Tool interface'!$C$19=5,(Database!$D$87/'Tool interface'!$C$18)*'CBA - BIM level 1'!$H$2,""))))),"")) ->  | I23: =IF($A$23="Off","",IF('Tool interface'!$C$34=3,IF('Tool interface'!$C$18>=2,H23+H23*$A$3,""),"")) ->  | J23: =IF($A$23="Off","",IF('Tool interface'!$C$34=3,IF('Tool interface'!$C$18>=3,I23+I23*$A$3,""),"")) ->  | K23: =IF($A$23="Off","",IF('Tool interface'!$C$34=3,IF('Tool interface'!$C$18>=4,J23+J23*$A$3,""),"")) ->  | L23: =IF($A$23="Off","",IF('Tool interface'!$C$34=3,IF('Tool interface'!$C$18>=5,K23+K23*$A$3,""),"")) ->  | M23: =IF($A$23="Off","",IF('Tool interface'!$C$34=3,IF('Tool interface'!$C$18>=6,L23+L23*$A$3,""),"")) ->  | N23: =IF($A$23="Off","",IF('Tool interface'!$C$34=3,IF('Tool interface'!$C$18>=7,M23+M23*$A$3,""),"")) ->  | O23: =IF($A$23="Off","",IF('Tool interface'!$C$34=3,IF('Tool interface'!$C$18>=8,N23+N23*$A$3,""),"")) ->  | P23: =IF($A$23="Off","",IF('Tool interface'!$C$34=3,IF('Tool interface'!$C$18>=9,O23+O23*$A$3,""),"")) ->  | Q23: =IF($A$23="Off","",IF('Tool interface'!$C$34=3,IF('Tool interface'!$C$18>=10,P23+P23*$A$3,""),"")) -> 
A24: On | B24: Investice veřejného zadavatele do modernizace počítačového vybavení (podíl přidělený na konkrétní projekt) | C24: =IF($A$24="Off","",IF('Tool interface'!$C$19=0,0,IF('Tool interface'!$C$18=0,0,Database!$D$50))) -> 0
A25: On | B25: Investice veřejného zadavatele do ročních licenčních poplatků k softwaru (podíl přidělený na konkrétní projekt) | C25: =IF($A$25="Off","",IF('Tool interface'!$C$19>=1,Database!$D$60,"")) ->  | D25: =IF($A$25="Off","",IF('Tool interface'!$C$19>=2,C25+C25*$A$3,"")) ->  | E25: =IF($A$25="Off","",IF('Tool interface'!$C$19>=3,D25+D25*$A$3,"")) ->  | F25: =IF($A$25="Off","",IF('Tool interface'!$C$19>=4,E25+E25*$A$3,"")) ->  | G25: =IF($A$25="Off","",IF('Tool interface'!$C$19>=5,F25+F25*$A$3,"")) ->  | H25: =IF($A$25="Off","",IF('Tool interface'!$C$18>=1,IF(G25<>"",G25+G25*$A$3,IF(F25<>"",F25+F25*$A$3,IF(E25<>"",E25+E25*$A$3,IF(D25<>"",D25+D25*$A$3,IF(C25<>"",C25+C25*$A$3,""))))),"")) ->  | I25: =IF($A$25="Off","",IF('Tool interface'!$C$18>=2,H25+H25*$A$3,"")) ->  | J25: =IF($A$25="Off","",IF('Tool interface'!$C$18>=3,I25+I25*$A$3,"")) ->  | K25: =IF($A$25="Off","",IF('Tool interface'!$C$18>=4,J25+J25*$A$3,"")) ->  | L25: =IF($A$25="Off","",IF('Tool interface'!$C$18>=5,K25+K25*$A$3,"")) ->  | M25: =IF($A$25="Off","",IF('Tool interface'!$C$18>=6,L25+L25*$A$3,"")) ->  | N25: =IF($A$25="Off","",IF('Tool interface'!$C$18>=7,M25+M25*$A$3,"")) ->  | O25: =IF($A$25="Off","",IF('Tool interface'!$C$18>=8,N25+N25*$A$3,"")) ->  | P25: =IF($A$25="Off","",IF('Tool interface'!$C$18>=9,O25+O25*$A$3,"")) ->  | Q25: =IF($A$25="Off","",IF('Tool interface'!$C$18>=10,P25+P25*$A$3,"")) ->  | R25: =IF($A$25="Off","",IF('Tool interface'!$C$19=0,0,IF('Tool interface'!$C$18=0,0,IF('Tool interface'!$C$23<=0,0,IF('Tool interface'!$C$18=1,IF('Tool interface'!$C$19=1,Database!$D$63*'CBA - BIM level 1'!$E$2,IF('Tool interface'!$C$19=2,(Database!$D$63)*'CBA - BIM level 1'!$F$2,IF('Tool interface'!$C$19=3,(Database!$D$63)*'CBA - BIM level 1'!$G$2,IF('Tool interface'!$C$19=4,(Database!$D$63)*'CBA - BIM level 1'!$H$2,IF('Tool interface'!$C$19=5,(Database!$D$63)*'CBA - BIM level 1'!$I$2,""))))),IF('Tool interface'!$C$18=2,IF('Tool interface'!$C$19=1,Database!$D$63*'CBA - BIM level 1'!$F$2,IF('Tool interface'!$C$19=2,(Database!$D$63)*'CBA - BIM level 1'!$G$2,IF('Tool interface'!$C$19=3,(Database!$D$63)*'CBA - BIM level 1'!$H$2,IF('Tool interface'!$C$19=4,(Database!$D$63)*'CBA - BIM level 1'!$I$2,IF('Tool interface'!$C$19=5,(Database!$D$63)*'CBA - BIM level 1'!$J$2,""))))),IF('Tool interface'!$C$18=3,IF('Tool interface'!$C$19=1,Database!$D$63*'CBA - BIM level 1'!$G$2,IF('Tool interface'!$C$19=2,(Database!$D$63)*'CBA - BIM level 1'!$H$2,IF('Tool interface'!$C$19=3,(Database!$D$63)*'CBA - BIM level 1'!$I$2,IF('Tool interface'!$C$19=4,(Database!$D$63)*'CBA - BIM level 1'!$J$2,IF('Tool interface'!$C$19=5,(Database!$D$63)*'CBA - BIM level 1'!$K$2,""))))),IF('Tool interface'!$C$18=4,IF('Tool interface'!$C$19=1,Database!$D$63*'CBA - BIM level 1'!$H$2,IF('Tool interface'!$C$19=2,(Database!$D$63)*'CBA - BIM level 1'!$I$2,IF('Tool interface'!$C$19=3,(Database!$D$63)*'CBA - BIM level 1'!$J$2,IF('Tool interface'!$C$19=4,(Database!$D$63)*'CBA - BIM level 1'!$K$2,IF('Tool interface'!$C$19=5,(Database!$D$63)*'CBA - BIM level 1'!$L$2,""))))),IF('Tool interface'!$C$18=5,IF('Tool interface'!$C$19=1,Database!$D$63*'CBA - BIM level 1'!$I$2,IF('Tool interface'!$C$19=2,(Database!$D$63)*'CBA - BIM level 1'!$J$2,IF('Tool interface'!$C$19=3,(Database!$D$63)*'CBA - BIM level 1'!$K$2,IF('Tool interface'!$C$19=4,(Database!$D$63)*'CBA - BIM level 1'!$L$2,IF('Tool interface'!$C$19=5,(Database!$D$63)*'CBA - BIM level 1'!$M$2,""))))),IF('Tool interface'!$C$18=6,IF('Tool interface'!$C$19=1,Database!$D$63*'CBA - BIM level 1'!$J$2,IF('Tool interface'!$C$19=2,(Database!$D$63)*'CBA - BIM level 1'!$K$2,IF('Tool interface'!$C$19=3,(Database!$D$63)*'CBA - BIM level 1'!$L$2,IF('Tool interface'!$C$19=4,(Database!$D$63)*'CBA - BIM level 1'!$M$2,IF('Tool interface'!$C$19=5,(Database!$D$63)*'CBA - BIM level 1'!$N$2,""))))),IF('Tool interface'!$C$18=7,IF('Tool interface'!$C$19=1,Database!$D$63*'CBA - BIM level 1'!$K$2,IF('Tool interface'!$C$19=2,(Database!$D$63)*'CBA - BIM level 1'!$L$2,IF('Tool interface'!$C$19=3,(Database!$D$63)*'CBA - BIM level 1'!$M$2,IF('Tool interface'!$C$19=4,(Database!$D$63)*'CBA - BIM level 1'!$N$2,IF('Tool interface'!$C$19=5,(Database!$D$63)*'CBA - BIM level 1'!$O$2,""))))),IF('Tool interface'!$C$18=8,IF('Tool interface'!$C$19=1,Database!$D$63*'CBA - BIM level 1'!$L$2,IF('Tool interface'!$C$19=2,(Database!$D$63)*'CBA - BIM level 1'!$M$2,IF('Tool interface'!$C$19=3,(Database!$D$63)*'CBA - BIM level 1'!$N$2,IF('Tool interface'!$C$19=4,(Database!$D$63)*'CBA - BIM level 1'!$O$2,IF('Tool interface'!$C$19=5,(Database!$D$63)*'CBA - BIM level 1'!$P$2,""))))),IF('Tool interface'!$C$18=9,IF('Tool interface'!$C$19=1,Database!$D$63*'CBA - BIM level 1'!$M$2,IF('Tool interface'!$C$19=2,(Database!$D$63)*'CBA - BIM level 1'!$N$2,IF('Tool interface'!$C$19=3,(Database!$D$63)*'CBA - BIM level 1'!$O$2,IF('Tool interface'!$C$19=4,(Database!$D$63)*'CBA - BIM level 1'!$P$2,IF('Tool interface'!$C$19=5,(Database!$D$63)*'CBA - BIM level 1'!$Q$2,""))))),IF('Tool interface'!$C$18=10,IF('Tool interface'!$C$19=1,Database!$D$63*'CBA - BIM level 1'!$N$2,IF('Tool interface'!$C$19=2,(Database!$D$63)*'CBA - BIM level 1'!$O$2,IF('Tool interface'!$C$19=3,(Database!$D$63)*'CBA - BIM level 1'!$P$2,IF('Tool interface'!$C$19=4,(Database!$D$63)*'CBA - BIM level 1'!$Q$2,IF('Tool interface'!$C$19=5,(Database!$D$63)*'CBA - BIM level 1'!$R$2,""))))),"")))))))))))))) -> 0 | S25: =IF($A$25="Off","",R25+R25*$A$3) -> 0 | T25: 0 | U25: 0 | V25: 0 | W25: 0 | X25: 0 | Y25: 0 | Z25: 0 | AA25: 0 | AB25: 0 | AC25: 0 | AD25: 0 | AE25: 0 | AF25: 0 | AG25: 0 | AH25: 0 | AI25: 0 | AJ25: 0 | AK25: 0
A26: On | B26: Náklady na školení zaměstnanců (podíl připadající na konkrétní projekt) | C26: =IF($A$26="Off","",IF('Tool interface'!$C$19=0,0,IF('Tool interface'!$C$18=0,0,Database!$D$72))) -> 0
A27: On | B27: Náklady na koordinaci BIM | C27: =IF($A$27="Off","",IF('Tool interface'!$C$34<=2,IF('Tool interface'!$C$19>=1,Database!$D$84/'Tool interface'!$C$19,""),"")) ->  | D27: =IF($A$27="Off","",IF('Tool interface'!$C$34<=2,IF('Tool interface'!$C$19>=2,C27+C27*$A$3,""),"")) ->  | E27: =IF($A$27="Off","",IF('Tool interface'!$C$34<=2,IF('Tool interface'!$C$19>=3,D27+D27*$A$3,""),"")) ->  | F27: =IF($A$27="Off","",IF('Tool interface'!$C$34<=2,IF('Tool interface'!$C$19>=4,E27+E27*$A$3,""),"")) ->  | G27: =IF($A$27="Off","",IF('Tool interface'!$C$34<=2,IF('Tool interface'!$C$19>=5,F27+F27*$A$3,""),"")) ->  | H27: =IF($A$27="Off","",IF('Tool interface'!$C$34=3,IF('Tool interface'!$C$19=1,(Database!$D$84/'Tool interface'!$C$18)*'CBA - BIM level 1'!$D$2,IF('Tool interface'!$C$19=2,(Database!$D$84/'Tool interface'!$C$18)*'CBA - BIM level 1'!$E$2,IF('Tool interface'!$C$19=3,(Database!$D$84/'Tool interface'!$C$18)*'CBA - BIM level 1'!$F$2,IF('Tool interface'!$C$19=4,(Database!$D$84/'Tool interface'!$C$18)*'CBA - BIM level 1'!$G$2,IF('Tool interface'!$C$19=5,(Database!$D$84/'Tool interface'!$C$18)*'CBA - BIM level 1'!$H$2,""))))),"")) ->  | I27: =IF($A$27="Off","",IF('Tool interface'!$C$34=3,IF('Tool interface'!$C$18>=2,H27+H27*$A$3,""),"")) ->  | J27: =IF($A$27="Off","",IF('Tool interface'!$C$34=3,IF('Tool interface'!$C$18>=3,I27+I27*$A$3,""),"")) ->  | K27: =IF($A$27="Off","",IF('Tool interface'!$C$34=3,IF('Tool interface'!$C$18>=4,J27+J27*$A$3,""),"")) ->  | L27: =IF($A$27="Off","",IF('Tool interface'!$C$34=3,IF('Tool interface'!$C$18>=5,K27+K27*$A$3,""),"")) ->  | M27: =IF($A$27="Off","",IF('Tool interface'!$C$34=3,IF('Tool interface'!$C$18>=6,L27+L27*$A$3,""),"")) ->  | N27: =IF($A$27="Off","",IF('Tool interface'!$C$34=3,IF('Tool interface'!$C$18>=7,M27+M27*$A$3,""),"")) ->  | O27: =IF($A$27="Off","",IF('Tool interface'!$C$34=3,IF('Tool interface'!$C$18>=8,N27+N27*$A$3,""),"")) ->  | P27: =IF($A$27="Off","",IF('Tool interface'!$C$34=3,IF('Tool interface'!$C$18>=9,O27+O27*$A$3,""),"")) ->  | Q27: =IF($A$27="Off","",IF('Tool interface'!$C$34=3,IF('Tool interface'!$C$18>=10,P27+P27*$A$3,""),"")) -> 
B28: Celkové náklady | C28: =+SUM(C19:C27) -> 0 | D28: =+SUM(D19:D27) -> 0 | E28: 0 | F28: 0 | G28: 0 | H28: 0 | I28: 0 | J28: 0 | K28: 0 | L28: 0 | M28: 0 | N28: 0 | O28: 0 | P28: 0 | Q28: 0 | R28: 0 | S28: 0 | T28: 0 | U28: 0 | V28: 0 | W28: 0 | X28: 0 | Y28: 0 | Z28: 0 | AA28: 0 | AB28: 0 | AC28: 0 | AD28: 0 | AE28: 0 | AF28: 0 | AG28: 0 | AH28: 0 | AI28: 0 | AJ28: 0 | AK28: 0
B29: Celkové náklady (upraveno pro vzorec) | C29: =+IF(C28<>0,C28,"") ->  | D29: =+IF(D28<>0,D28,"") -> 
